Workbook

Sheet Main
B10: 2020-11-18
B12: Sheet No. | C12: Template Name | D12: Summary
B13: 1 | C13: Future Intra | D13: For Intraday trading in F&O segment
B14: 2 | C14: Cash Intra | D14: For Intraday trading in cash market segment
B15: 3 | C15: Mid-cap Intra | D15: For Intraday trading in Mid-cap stocks
B16: 4 | C16: Bulk Deals | D16: Reveals Bulk Deals carried on NSE & BSE
B17: 5 | C17: Call Tracker
K27: `

Sheet Future Intra
M5: Back to Main Page
A6: FOR INTRA DAY TRADING | L6: =Main!B10 -> 2020-11-18
A9: Sr.no | B9: Sector | C9: Scrip | D9: CLOSE RATE | E9: Pivot Point | F9: Supports | I9: Resistances
B10: Sector | D10: Point | E10: Point | F10: S1 | G10: S2 | H10: S3 | I10: R1 | J10: R2 | K10: R3 | L10: HIGH | M10: LOW | N10: OI | O10: % Change in OI
A11: 1 | B11: Index | C11: BANKNIFTY | D11: 29151.90 | E11: 29023.97 | F11: 28834.93 | G11: 28517.97 | H11: 28328.93 | I11: 29340.93 | J11: 29529.97 | K11: 29846.93 | L11: 29213 | M11: 28707 | N11: 2031975 | O11: 1.38%
A12: 2 | B12: Index | C12: NIFTY | D12: 12881.85 | E12: 12863.22 | F12: 12819.63 | G12: 12757.42 | H12: 12713.83 | I12: 12925.43 | J12: 12969.02 | K12: 13031.23 | L12: 12906.8 | M12: 12801 | N12: 13626000 | O12: 0.26%
A13: 3 | B13: Cement | C13: ACC | D13: 1697.75 | E13: 1698.68 | F13: 1671.42 | G13: 1645.08 | H13: 1617.82 | I13: 1725.02 | J13: 1752.28 | K13: 1778.62 | L13: 1725.95 | M13: 1672.35 | N13: 2105000 | O13: 8.62%
A14: 4 | B14: Others | C14: ADANIENT | D14: 394.95 | E14: 389.48 | F14: 376.67 | G14: 358.38 | H14: 345.57 | I14: 407.77 | J14: 420.58 | K14: 438.87 | L14: 402.3 | M14: 371.2 | N14: 18802000 | O14: 4.46%
A15: 5 | B15: Others | C15: ADANIPORTS | D15: 381.00 | E15: 378.63 | F15: 369.37 | G15: 357.73 | H15: 348.47 | I15: 390.27 | J15: 399.53 | K15: 411.17 | L15: 387.9 | M15: 367 | N15: 52357500 | O15: 3.45%
A16: 6 | B16: Automobile | C16: AMARAJABAT | D16: 834.05 | E16: 830.38 | F16: 824.67 | G16: 815.28 | H16: 809.57 | I16: 839.77 | J16: 845.48 | K16: 854.87 | L16: 836.1 | M16: 821 | N16: 1065000 | O16: -3.97%
A17: 7 | B17: Cement | C17: AMBUJACEM | D17: 267.70 | E17: 266.42 | F17: 261.08 | G17: 254.47 | H17: 249.13 | I17: 273.03 | J17: 278.37 | K17: 284.98 | L17: 271.75 | M17: 259.8 | N17: 15162000 | O17: 6.27%
A18: 8 | B18: Others | C18: APOLLOHOSP | D18: 2306.10 | E18: 2304.85 | F18: 2271.70 | G18: 2237.30 | H18: 2204.15 | I18: 2339.25 | J18: 2372.40 | K18: 2406.80 | L18: 2338 | M18: 2270.45 | N18: 1878000 | O18: -6.98%
A19: 9 | B19: Automobile | C19: APOLLOTYRE | D19: 172.30 | E19: 170.78 | F19: 166.82 | G19: 161.33 | H19: 157.37 | I19: 176.27 | J19: 180.23 | K19: 185.72 | L19: 174.75 | M19: 165.3 | N19: 8430000 | O19: 7.73%
A20: 10 | B20: Automobile | C20: ASHOKLEY | D20: 92.05 | E20: 92.35 | F20: 91.25 | G20: 90.45 | H20: 89.35 | I20: 93.15 | J20: 94.25 | K20: 95.05 | L20: 93.45 | M20: 91.55 | N20: 31455000 | O20: -0.54%
A21: 11 | B21: FMCG | C21: ASIANPAINT | D21: 2193.30 | E21: 2201.83 | F21: 2179.62 | G21: 2165.93 | H21: 2143.72 | I21: 2215.52 | J21: 2237.73 | K21: 2251.42 | L21: 2224.05 | M21: 2188.15 | N21: 3509700 | O21: 3.24%
A22: 12 | B22: Pharma | C22: AUROPHARMA | D22: 855.35 | E22: 860.13 | F22: 844.32 | G22: 833.28 | H22: 817.47 | I22: 871.17 | J22: 886.98 | K22: 898.02 | L22: 875.95 | M22: 849.1 | N22: 12563200 | O22: -1.06%
A23: 13 | B23: Banking | C23: AXISBANK | D23: 629.30 | E23: 623.60 | F23: 615.80 | G23: 602.30 | H23: 594.50 | I23: 637.10 | J23: 644.90 | K23: 658.40 | L23: 631.4 | M23: 610.1 | N23: 59137200 | O23: 4.04%
A24: 14 | B24: Automobile | C24: BAJAJ-AUTO | D24: 3050.35 | E24: 3037.50 | F24: 3017.30 | G24: 2984.25 | H24: 2964.05 | I24: 3070.55 | J24: 3090.75 | K24: 3123.80 | L24: 3057.7 | M24: 3004.45 | N24: 2111250 | O24: 0.69%
A25: 15 | B25: Finance | C25: BAJAJFINSV | D25: 7388.35 | E25: 7353.80 | F25: 7287.60 | G25: 7186.85 | H25: 7120.65 | I25: 7454.55 | J25: 7520.75 | K25: 7621.50 | L25: 7420 | M25: 7253.05 | N25: 960625 | O25: -2.51%
A26: 16 | B26: Finance | C26: BAJFINANCE | D26: 4463.60 | E26: 4418.38 | F26: 4361.72 | G26: 4259.83 | H26: 4203.17 | I26: 4520.27 | J26: 4576.93 | K26: 4678.82 | L26: 4475.05 | M26: 4316.5 | N26: 6195500 | O26: 3.91%
A27: 17 | B27: Automobile | C27: BALKRISIND | D27: 1618.00 | E27: 1609.52 | F27: 1590.03 | G27: 1562.07 | H27: 1542.58 | I27: 1637.48 | J27: 1656.97 | K27: 1684.93 | L27: 1629 | M27: 1581.55 | N27: 1778400 | O27: -7.74%
A28: 18 | B28: Banking | C28: BANDHANBNK | D28: 352.90 | E28: 351.78 | F28: 348.57 | G28: 344.23 | H28: 341.02 | I28: 356.12 | J28: 359.33 | K28: 363.67 | L28: 355 | M28: 347.45 | N28: 13678200 | O28: -4.28%
A29: 19 | B29: Banking | C29: BANKBARODA | D29: 47.75 | E29: 47.58 | F29: 47.07 | G29: 46.38 | H29: 45.87 | I29: 48.27 | J29: 48.78 | K29: 49.47 | L29: 48.1 | M29: 46.9 | N29: 58425700 | O29: 4.35%
A30: 20 | B30: FMCG | C30: BATAINDIA | D30: 1381.75 | E30: 1372.28 | F30: 1359.77 | G30: 1337.78 | H30: 1325.27 | I30: 1394.27 | J30: 1406.78 | K30: 1428.77 | L30: 1384.8 | M30: 1350.3 | N30: 1189650 | O30: 4.39%
A31: 21 | B31: Capital_Goods | C31: BEL | D31: 96.20 | E31: 96.60 | F31: 95.50 | G31: 94.80 | H31: 93.70 | I31: 97.30 | J31: 98.40 | K31: 99.10 | L31: 97.7 | M31: 95.9 | N31: 35788400 | O31: 1.44%
A32: 22 | B32: FMCG | C32: BERGEPAINT | D32: 649.55 | E32: 648.77 | F32: 642.88 | G32: 636.22 | H32: 630.33 | I32: 655.43 | J32: 661.32 | K32: 667.98 | L32: 654.65 | M32: 642.1 | N32: 3410000 | O32: -3.09%
A33: 23 | B33: Automobile | C33: BHARATFORG | D33: 496.15 | E33: 494.28 | F33: 488.57 | G33: 480.98 | H33: 475.27 | I33: 501.87 | J33: 507.58 | K33: 515.17 | L33: 500 | M33: 486.7 | N33: 6624000 | O33: -2.54%
A34: 24 | B34: Telecom | C34: BHARTIARTL | D34: 484.95 | E34: 487.15 | F34: 479.45 | G34: 473.95 | H34: 466.25 | I34: 492.65 | J34: 500.35 | K34: 505.85 | L34: 494.85 | M34: 481.65 | N34: 95805909 | O34: -2.50%
A35: 25 | B35: Capital_Goods | C35: BHEL | D35: 28.35 | E35: 28.38 | F35: 28.17 | G35: 27.98 | H35: 27.77 | I35: 28.57 | J35: 28.78 | K35: 28.97 | L35: 28.6 | M35: 28.2 | N35: 74487000 | O35: -2.23%
A36: 26 | B36: Pharma | C36: BIOCON | D36: 428.10 | E36: 428.80 | F36: 421.60 | G36: 415.10 | H36: 407.90 | I36: 435.30 | J36: 442.50 | K36: 449.00 | L36: 436 | M36: 422.3 | N36: 10750200 | O36: -1.81%
A37: 27 | B37: Automobile | C37: BOSCHLTD | D37: 11660.55 | E37: 11711.03 | F37: 11571.72 | G37: 11482.88 | H37: 11343.57 | I37: 11799.87 | J37: 11939.18 | K37: 12028.02 | L37: 11850.35 | M37: 11622.2 | N37: 207050 | O37: 4.89%
A38: 28 | B38: Oil_Gas | C38: BPCL | D38: 395.60 | E38: 400.72 | F38: 387.43 | G38: 379.27 | H38: 365.98 | I38: 408.88 | J38: 422.17 | K38: 430.33 | L38: 414 | M38: 392.55 | N38: 21538800 | O38: 6.94%
A39: 29 | B39: FMCG | C39: BRITANNIA | D39: 3522.30 | E39: 3531.67 | F39: 3507.88 | G39: 3493.47 | H39: 3469.68 | I39: 3546.08 | J39: 3569.87 | K39: 3584.28 | L39: 3555.45 | M39: 3517.25 | N39: 1625000 | O39: -2.23%
A40: 30 | B40: Pharma | C40: CADILAHC | D40: 429.70 | E40: 429.80 | F40: 425.75 | G40: 421.80 | H40: 417.75 | I40: 433.75 | J40: 437.80 | K40: 441.75 | L40: 433.85 | M40: 425.85 | N40: 6298600 | O40: -6.47%
A41: 31 | B41: Banking | C41: CANBK | D41: 92.35 | E41: 92.57 | F41: 91.63 | G41: 90.92 | H41: 89.98 | I41: 93.28 | J41: 94.22 | K41: 94.93 | L41: 93.5 | M41: 91.85 | N41: 18984600 | O41: -4.58%
A42: 32 | B42: Finance | C42: CHOLAFIN | D42: 321.65 | E42: 318.68 | F42: 312.97 | G42: 304.28 | H42: 298.57 | I42: 327.37 | J42: 333.08 | K42: 341.77 | L42: 324.4 | M42: 310 | N42: 4967500 | O42: -1.10%
A43: 33 | B43: Pharma | C43: CIPLA | D43: 744.10 | E43: 744.02 | F43: 735.13 | G43: 726.17 | H43: 717.28 | I43: 752.98 | J43: 761.87 | K43: 770.83 | L43: 752.9 | M43: 735.05 | N43: 18086900 | O43: -1.17%
A44: 34 | B44: Others | C44: COALINDIA | D44: 128.85 | E44: 128.43 | F44: 127.62 | G44: 126.38 | H44: 125.57 | I44: 129.67 | J44: 130.48 | K44: 131.72 | L44: 129.25 | M44: 127.2 | N44: 33674600 | O44: -1.10%
A45: 35 | B45: Technology | C45: COFORGE | D45: 2312.55 | E45: 2309.97 | F45: 2284.18 | G45: 2255.82 | H45: 2230.03 | I45: 2338.33 | J45: 2364.12 | K45: 2392.48 | L45: 2335.75 | M45: 2281.6 | N45: 592500 | O45: 1.22%
A46: 36 | B46: FMCG | C46: COLPAL | D46: 1533.30 | E46: 1527.70 | F46: 1512.60 | G46: 1491.90 | H46: 1476.80 | I46: 1548.40 | J46: 1563.50 | K46: 1584.20 | L46: 1542.8 | M46: 1507 | N46: 2729300 | O46: -0.74%
A47: 37 | B47: Others | C47: CONCOR | D47: 406.25 | E47: 406.82 | F47: 398.88 | G47: 391.52 | H47: 383.58 | I47: 414.18 | J47: 422.12 | K47: 429.48 | L47: 414.75 | M47: 399.45 | N47: 6142590 | O47: -9.20%
A48: 38 | B48: Capital_Goods | C48: CUMMINSIND | D48: 493.85 | E48: 490.75 | F48: 482.70 | G48: 471.55 | H48: 463.50 | I48: 501.90 | J48: 509.95 | K48: 521.10 | L48: 498.8 | M48: 479.6 | N48: 2068800 | O48: 11.51%
A49: 39 | B49: FMCG | C49: DABUR | D49: 513.55 | E49: 515.38 | F49: 509.27 | G49: 504.98 | H49: 498.87 | I49: 519.67 | J49: 525.78 | K49: 530.07 | L49: 521.5 | M49: 511.1 | N49: 14841250 | O49: 6.71%
A50: 40 | B50: Pharma | C50: DIVISLAB | D50: 3428.10 | E50: 3439.35 | F50: 3385.75 | G50: 3343.40 | H50: 3289.80 | I50: 3481.70 | J50: 3535.30 | K50: 3577.65 | L50: 3492.95 | M50: 3397 | N50: 2698200 | O50: -5.27%
A51: 41 | B51: Realty | C51: DLF | D51: 188.40 | E51: 187.95 | F51: 184.90 | G51: 181.40 | H51: 178.35 | I51: 191.45 | J51: 194.50 | K51: 198.00 | L51: 191 | M51: 184.45 | N51: 30993600 | O51: -0.70%
A52: 42 | B52: Pharma | C52: DRREDDY | D52: 4799.10 | E52: 4824.82 | F52: 4755.63 | G52: 4712.17 | H52: 4642.98 | I52: 4868.28 | J52: 4937.47 | K52: 4980.93 | L52: 4894 | M52: 4781.35 | N52: 3664000 | O52: 3.10%
A53: 43 | B53: Automobile | C53: EICHERMOT | D53: 2549.60 | E53: 2539.43 | F53: 2508.47 | G53: 2467.33 | H53: 2436.37 | I53: 2580.57 | J53: 2611.53 | K53: 2652.67 | L53: 2570.4 | M53: 2498.3 | N53: 2590350 | O53: -3.39%
A54: 44 | B54: Automobile | C54: ESCORTS | D54: 1427.65 | E54: 1422.47 | F54: 1410.53 | G54: 1393.42 | H54: 1381.48 | I54: 1439.58 | J54: 1451.52 | K54: 1468.63 | L54: 1434.4 | M54: 1405.35 | N54: 2525050 | O54: 4.55%
A55: 45 | B55: Automobile | C55: EXIDEIND | D55: 170.95 | E55: 171.08 | F55: 169.77 | G55: 168.58 | H55: 167.27 | I55: 172.27 | J55: 173.58 | K55: 174.77 | L55: 172.4 | M55: 169.9 | N55: 15091200 | O55: 5.30%
A56: 46 | B56: Banking | C56: FEDERALBNK | D56: 58.30 | E56: 58.08 | F56: 57.32 | G56: 56.33 | H56: 55.57 | I56: 59.07 | J56: 59.83 | K56: 60.82 | L56: 58.85 | M56: 57.1 | N56: 113437000 | O56: 4.40%
A57: 47 | B57: Oil_Gas | C57: GAIL | D57: 93.65 | E57: 94.15 | F57: 92.70 | G57: 91.75 | H57: 90.30 | I57: 95.10 | J57: 96.55 | K57: 97.50 | L57: 95.6 | M57: 93.2 | N57: 23436200 | O57: -1.44%
A58: 48 | B58: Pharma | C58: GLENMARK | D58: 488.75 | E58: 487.95 | F58: 482.30 | G58: 475.85 | H58: 470.20 | I58: 494.40 | J58: 500.05 | K58: 506.50 | L58: 493.6 | M58: 481.5 | N58: 6339950 | O58: -0.79%
A59: 49 | B59: Infrastructure | C59: GMRINFRA | D59: 24.45 | E59: 24.53 | F59: 24.07 | G59: 23.68 | H59: 23.22 | I59: 24.92 | J59: 25.38 | K59: 25.77 | L59: 25 | M59: 24.15 | N59: 70110000 | O59: 2.70%
A60: 50 | B60: FMCG | C60: GODREJCP | D60: 680.95 | E60: 683.03 | F60: 673.32 | G60: 665.68 | H60: 655.97 | I60: 690.67 | J60: 700.38 | K60: 708.02 | L60: 692.75 | M60: 675.4 | N60: 4590000 | O60: 2.07%
A61: 51 | B61: Others | C61: GODREJPROP | D61: 1035.40 | E61: 1028.93 | F61: 1001.77 | G61: 968.13 | H61: 940.97 | I61: 1062.57 | J61: 1089.73 | K61: 1123.37 | L61: 1056.1 | M61: 995.3 | N61: 1734850 | O61: -6.78%
A62: 52 | B62: Cement | C62: GRASIM | D62: 846.05 | E62: 846.38 | F62: 837.87 | G62: 829.68 | H62: 821.17 | I62: 854.57 | J62: 863.08 | K62: 871.27 | L62: 854.9 | M62: 838.2 | N62: 20158050 | O62: -0.14%
A63: 53 | B63: Others | C63: HAVELLS | D63: 844.00 | E63: 841.10 | F63: 833.70 | G63: 823.40 | H63: 816.00 | I63: 851.40 | J63: 858.80 | K63: 869.10 | L63: 848.5 | M63: 830.8 | N63: 5238000 | O63: 0.65%
A64: 54 | B64: Technology | C64: HCLTECH | D64: 818.05 | E64: 824.00 | F64: 811.00 | G64: 803.95 | H64: 790.95 | I64: 831.05 | J64: 844.05 | K64: 851.10 | L64: 837 | M64: 816.95 | N64: 19025300 | O64: 5.10%
A65: 55 | B65: Finance | C65: HDFC | D65: 2353.80 | E65: 2345.45 | F65: 2322.90 | G65: 2292.00 | H65: 2269.45 | I65: 2376.35 | J65: 2398.90 | K65: 2429.80 | L65: 2368 | M65: 2314.55 | N65: 26613300 | O65: 1.19%
A66: 56 | B66: Banking | C66: HDFCBANK | D66: 1405.55 | E66: 1398.35 | F66: 1388.30 | G66: 1371.05 | H66: 1361.00 | I66: 1415.60 | J66: 1425.65 | K66: 1442.90 | L66: 1408.4 | M66: 1381.1 | N66: 35823700 | O66: 3.18%
A67: 57 | B67: Finance | C67: HDFCLIFE | D67: 671.20 | E67: 660.78 | F67: 645.77 | G67: 620.33 | H67: 605.32 | I67: 686.22 | J67: 701.23 | K67: 726.67 | L67: 675.8 | M67: 635.35 | N67: 10810800 | O67: 6.35%
A68: 58 | B68: Automobile | C68: HEROMOTOCO | D68: 3016.45 | E68: 3042.50 | F68: 2955.00 | G68: 2893.55 | H68: 2806.05 | I68: 3103.95 | J68: 3191.45 | K68: 3252.90 | L68: 3130 | M68: 2981.05 | N68: 3456900 | O68: 13.28%
A69: 59 | B69: Metals | C69: HINDALCO | D69: 213.55 | E69: 213.05 | F69: 209.95 | G69: 206.35 | H69: 203.25 | I69: 216.65 | J69: 219.75 | K69: 223.35 | L69: 216.15 | M69: 209.45 | N69: 29880700 | O69: -2.18%
A70: 60 | B70: Oil_Gas | C70: HINDPETRO | D70: 217.85 | E70: 219.27 | F70: 214.53 | G70: 211.22 | H70: 206.48 | I70: 222.58 | J70: 227.32 | K70: 230.63 | L70: 224 | M70: 215.95 | N70: 27918000 | O70: -3.00%
A71: 61 | B71: FMCG | C71: HINDUNILVR | D71: 2179.45 | E71: 2188.12 | F71: 2162.48 | G71: 2145.52 | H71: 2119.88 | I71: 2205.08 | J71: 2230.72 | K71: 2247.68 | L71: 2213.75 | M71: 2171.15 | N71: 5693400 | O71: -1.37%
A72: 62 | B72: Finance | C72: IBULHSGFIN | D72: 181.25 | E72: 178.68 | F72: 173.57 | G72: 165.88 | H72: 160.77 | I72: 186.37 | J72: 191.48 | K72: 199.17 | L72: 183.8 | M72: 171 | N72: 17781600 | O72: -3.74%
A73: 63 | B73: Banking | C73: ICICIBANK | D73: 486.95 | E73: 486.42 | F73: 479.43 | G73: 471.92 | H73: 464.93 | I73: 493.93 | J73: 500.92 | K73: 508.43 | L73: 493.4 | M73: 478.9 | N73: 124511750 | O73: 0.83%
A74: 64 | B74: Finance | C74: ICICIGI | D74: 1332.15 | E74: 1321.32 | F74: 1300.18 | G74: 1268.22 | H74: 1247.08 | I74: 1353.28 | J74: 1374.42 | K74: 1406.38 | L74: 1342.45 | M74: 1289.35 | N74: 459425 | O74: 0.46%
A75: 65 | B75: Finance | C75: ICICIPRULI | D75: 450.55 | E75: 445.92 | F75: 439.28 | G75: 428.02 | H75: 421.38 | I75: 457.18 | J75: 463.82 | K75: 475.08 | L75: 452.55 | M75: 434.65 | N75: 8565000 | O75: -2.18%
A76: 66 | B76: Telecom | C76: IDEA | D76: 9.30 | E76: 9.52 | F76: 8.93 | G76: 8.57 | H76: 7.98 | I76: 9.88 | J76: 10.47 | K76: 10.83 | L76: 10.1 | M76: 9.15 | N76: 524510000 | O76: 6.39%
A77: 67 | B77: Banking | C77: IDFCFIRSTB | D77: 33.60 | E77: 33.65 | F77: 33.20 | G77: 32.80 | H77: 32.35 | I77: 34.05 | J77: 34.50 | K77: 34.90 | L77: 34.1 | M77: 33.25 | N77: 134843000 | O77: 3.94%
A78: 68 | B78: Oil_Gas | C78: IGL | D78: 440.00 | E78: 437.83 | F78: 433.17 | G78: 426.33 | H78: 421.67 | I78: 444.67 | J78: 449.33 | K78: 456.17 | L78: 442.5 | M78: 431 | N78: 4602125 | O78: 5.38%
A79: 69 | B79: Others | C79: INDIGO | D79: 1647.75 | E79: 1636.90 | F79: 1601.00 | G79: 1554.25 | H79: 1518.35 | I79: 1683.65 | J79: 1719.55 | K79: 1766.30 | L79: 1672.8 | M79: 1590.15 | N79: 2809500 | O79: -0.64%
A80: 70 | B80: Banking | C80: INDUSINDBK | D80: 785.60 | E80: 784.50 | F80: 774.30 | G80: 763.00 | H80: 752.80 | I80: 795.80 | J80: 806.00 | K80: 817.30 | L80: 794.7 | M80: 773.2 | N80: 21516100 | O80: -0.53%
A81: 71 | B81: Telecom | C81: INFRATEL | D81: 186.15 | E81: 184.53 | F81: 181.62 | G81: 177.08 | H81: 174.17 | I81: 189.07 | J81: 191.98 | K81: 196.52 | L81: 187.45 | M81: 180 | N81: 14515200 | O81: 0.37%
A82: 72 | B82: Technology | C82: INFY | D82: 1127.65 | E82: 1130.40 | F82: 1113.85 | G82: 1100.05 | H82: 1083.50 | I82: 1144.20 | J82: 1160.75 | K82: 1174.55 | L82: 1146.95 | M82: 1116.6 | N82: 36078000 | O82: 1.22%
A83: 73 | B83: Oil_Gas | C83: IOC | D83: 85.15 | E83: 85.68 | F83: 84.12 | G83: 83.08 | H83: 81.52 | I83: 86.72 | J83: 88.28 | K83: 89.32 | L83: 87.25 | M83: 84.65 | N83: 47685700 | O83: 8.36%
A84: 74 | B84: FMCG | C84: ITC | D84: 187.55 | E84: 187.78 | F84: 186.37 | G84: 185.18 | H84: 183.77 | I84: 188.97 | J84: 190.38 | K84: 191.57 | L84: 189.2 | M84: 186.6 | N84: 90710400 | O84: 2.69%
A85: 75 | B85: Metals | C85: JINDALSTEL | D85: 228.55 | E85: 226.73 | F85: 223.47 | G85: 218.38 | H85: 215.12 | I85: 231.82 | J85: 235.08 | K85: 240.17 | L85: 230 | M85: 221.65 | N85: 25770000 | O85: -4.87%
A86: 76 | B86: Metals | C86: JSWSTEEL | D86: 341.75 | E86: 344.25 | F86: 337.85 | G86: 333.95 | H86: 327.55 | I86: 348.15 | J86: 354.55 | K86: 358.45 | L86: 350.65 | M86: 340.35 | N86: 38466900 | O86: -0.25%
A87: 77 | B87: Others | C87: JUBLFOOD | D87: 2526.60 | E87: 2511.43 | F87: 2482.52 | G87: 2438.43 | H87: 2409.52 | I87: 2555.52 | J87: 2584.43 | K87: 2628.52 | L87: 2540.35 | M87: 2467.35 | N87: 2132000 | O87: 1.49%
A88: 78 | B88: Banking | C88: KOTAKBANK | D88: 1791.60 | E88: 1783.97 | F88: 1771.23 | G88: 1750.87 | H88: 1738.13 | I88: 1804.33 | J88: 1817.07 | K88: 1837.43 | L88: 1796.7 | M88: 1763.6 | N88: 16437600 | O88: 0.90%
A89: 79 | B89: Finance | C89: L&TFH | D89: 70.75 | E89: 70.67 | F89: 69.83 | G89: 68.92 | H89: 68.08 | I89: 71.58 | J89: 72.42 | K89: 73.33 | L89: 71.5 | M89: 69.75 | N89: 36857200 | O89: 3.34%
A90: 80 | B90: Finance | C90: LICHSGFIN | D90: 314.50 | E90: 315.12 | F90: 310.63 | G90: 306.77 | H90: 302.28 | I90: 318.98 | J90: 323.47 | K90: 327.33 | L90: 319.6 | M90: 311.25 | N90: 13080000 | O90: -5.15%
A91: 81 | B91: Capital_Goods | C91: LT | D91: 1084.55 | E91: 1081.27 | F91: 1065.08 | G91: 1045.62 | H91: 1029.43 | I91: 1100.73 | J91: 1116.92 | K91: 1136.38 | L91: 1097.45 | M91: 1061.8 | N91: 12673650 | O91: 2.30%
A92: 82 | B92: Pharma | C92: LUPIN | D92: 890.65 | E92: 898.02 | F92: 880.83 | G92: 871.02 | H92: 853.83 | I92: 907.83 | J92: 925.02 | K92: 934.83 | L92: 915.2 | M92: 888.2 | N92: 9261600 | O92: 7.72%
A93: 83 | B93: Automobile | C93: M&M | D93: 639.15 | E93: 640.88 | F93: 633.62 | G93: 628.08 | H93: 620.82 | I93: 646.42 | J93: 653.68 | K93: 659.22 | L93: 648.15 | M93: 635.35 | N93: 16450000 | O93: -0.26%
A94: 84 | B94: Finance | C94: M&MFIN | D94: 145.80 | E94: 145.52 | F94: 143.48 | G94: 141.17 | H94: 139.13 | I94: 147.83 | J94: 149.87 | K94: 152.18 | L94: 147.55 | M94: 143.2 | N94: 22361012 | O94: 4.49%
A95: 85 | B95: Finance | C95: MANAPPURAM | D95: 163.35 | E95: 162.43 | F95: 160.87 | G95: 158.38 | H95: 156.82 | I95: 164.92 | J95: 166.48 | K95: 168.97 | L95: 164 | M95: 159.95 | N95: 20484000 | O95: 1.37%
A96: 86 | B96: FMCG | C96: MARICO | D96: 379.00 | E96: 377.45 | F96: 374.45 | G96: 369.90 | H96: 366.90 | I96: 382.00 | J96: 385.00 | K96: 389.55 | L96: 380.45 | M96: 372.9 | N96: 9996000 | O96: -3.03%
A97: 87 | B97: Automobile | C97: MARUTI | D97: 6987.80 | E97: 6958.03 | F97: 6909.77 | G97: 6831.73 | H97: 6783.47 | I97: 7036.07 | J97: 7084.33 | K97: 7162.37 | L97: 7006.3 | M97: 6880 | N97: 3327500 | O97: -4.57%
A98: 88 | B98: FMCG | C98: MCDOWELL-N | D98: 562.05 | E98: 561.55 | F98: 555.70 | G98: 549.35 | H98: 543.50 | I98: 567.90 | J98: 573.75 | K98: 580.10 | L98: 567.4 | M98: 555.2 | N98: 12208750 | O98: 0.49%
A99: 89 | B99: Finance | C99: MFSL | D99: 614.95 | E99: 611.65 | F99: 606.50 | G99: 598.05 | H99: 592.90 | I99: 620.10 | J99: 625.25 | K99: 633.70 | L99: 616.8 | M99: 603.2 | N99: 2935400 | O99: 10.52%
A100: 90 | B100: Oil_Gas | C100: MGL | D100: 871.40 | E100: 867.63 | F100: 860.27 | G100: 849.13 | H100: 841.77 | I100: 878.77 | J100: 886.13 | K100: 897.27 | L100: 875 | M100: 856.5 | N100: 1884000 | O100: -5.11%
A101: 91 | B101: Technology | C101: MINDTREE | D101: 1345.60 | E101: 1351.92 | F101: 1335.23 | G101: 1324.87 | H101: 1308.18 | I101: 1362.28 | J101: 1378.97 | K101: 1389.33 | L101: 1368.6 | M101: 1341.55 | N101: 1394400 | O101: -1.97%
A102: 92 | B102: Automobile | C102: MOTHERSUMI | D102: 131.10 | E102: 130.03 | F102: 127.07 | G102: 123.03 | H102: 120.07 | I102: 134.07 | J102: 137.03 | K102: 141.07 | L102: 133 | M102: 126 | N102: 22827000 | O102: 7.31%
A103: 93 | B103: Automobile | C103: MRF | D103: 74260.45 | E103: 73713.12 | F103: 72747.28 | G103: 71234.12 | H103: 70268.28 | I103: 75226.28 | J103: 76192.12 | K103: 77705.28 | L103: 74678.95 | M103: 72199.95 | N103: 39200 | O103: 4.93%
A104: 94 | B104: Finance | C104: MUTHOOTFIN | D104: 1169.05 | E104: 1173.32 | F104: 1151.73 | G104: 1134.42 | H104: 1112.83 | I104: 1190.63 | J104: 1212.22 | K104: 1229.53 | L104: 1194.9 | M104: 1156 | N104: 4818750 | O104: 8.95%
A105: 95 | B105: Metals | C105: NATIONALUM | D105: 36.60 | E105: 36.22 | F105: 35.73 | G105: 34.87 | H105: 34.38 | I105: 37.08 | J105: 37.57 | K105: 38.43 | L105: 36.7 | M105: 35.35 | N105: 51918000 | O105: 5.97%
A106: 96 | B106: Others | C106: NAUKRI | D106: 3927.25 | E106: 3893.05 | F106: 3837.20 | G106: 3747.15 | H106: 3691.30 | I106: 3983.10 | J106: 4038.95 | K106: 4129.00 | L106: 3948.9 | M106: 3803 | N106: 777750 | O106: -5.07%
A107: 97 | B107: FMCG | C107: NESTLEIND | D107: 16994.05 | E107: 16973.77 | F107: 16877.53 | G107: 16761.02 | H107: 16664.78 | I107: 17090.28 | J107: 17186.52 | K107: 17303.03 | L107: 17070 | M107: 16857.25 | N107: 437350 | O107: -1.52%
A108: 98 | B108: Metals | C108: NMDC | D108: 96.05 | E108: 95.55 | F108: 93.90 | G108: 91.75 | H108: 90.10 | I108: 97.70 | J108: 99.35 | K108: 101.50 | L108: 97.2 | M108: 93.4 | N108: 30357700 | O108: 9.26%
A109: 99 | B109: Power | C109: NTPC | D109: 89.05 | E109: 90.08 | F109: 87.62 | G109: 86.18 | H109: 83.72 | I109: 91.52 | J109: 93.98 | K109: 95.42 | L109: 92.55 | M109: 88.65 | N109: 54378000 | O109: 3.17%
A110: 100 | B110: Oil_Gas | C110: ONGC | D110: 71.55 | E110: 72.05 | F110: 70.60 | G110: 69.65 | H110: 68.20 | I110: 73.00 | J110: 74.45 | K110: 75.40 | L110: 73.5 | M110: 71.1 | N110: 45453100 | O110: 6.02%
A111: 101 | B111: Textile | C111: PAGEIND | D111: 22645.80 | E111: 22382.35 | F111: 22014.70 | G111: 21383.60 | H111: 21015.95 | I111: 23013.45 | J111: 23381.10 | K111: 24012.20 | L111: 22750 | M111: 21751.25 | N111: 112710 | O111: -1.00%
A112: 102 | B112: Pharma | C112: PEL | D112: 1413.85 | E112: 1423.77 | F112: 1377.53 | G112: 1341.22 | H112: 1294.98 | I112: 1460.08 | J112: 1506.32 | K112: 1542.63 | L112: 1470 | M112: 1387.45 | N112: 3084950 | O112: -4.67%
A113: 103 | B113: Oil_Gas | C113: PETRONET | D113: 251.80 | E113: 251.00 | F113: 249.30 | G113: 246.80 | H113: 245.10 | I113: 253.50 | J113: 255.20 | K113: 257.70 | L113: 252.7 | M113: 248.5 | N113: 11913000 | O113: -4.80%
A114: 104 | B114: Finance | C114: PFC | D114: 104.05 | E114: 103.57 | F114: 102.28 | G114: 100.52 | H114: 99.23 | I114: 105.33 | J114: 106.62 | K114: 108.38 | L114: 104.85 | M114: 101.8 | N114: 46555800 | O114: -1.05%
A115: 105 | B115: FMCG | C115: PIDILITIND | D115: 1568.20 | E115: 1574.73 | F115: 1553.47 | G115: 1538.73 | H115: 1517.47 | I115: 1589.47 | J115: 1610.73 | K115: 1625.47 | L115: 1596 | M115: 1560 | N115: 3093000 | O115: 5.47%
A116: 106 | B116: Banking | C116: PNB | D116: 29.95 | E116: 29.90 | F116: 29.50 | G116: 29.05 | H116: 28.65 | I116: 30.35 | J116: 30.75 | K116: 31.20 | L116: 30.3 | M116: 29.45 | N116: 79634000 | O116: 5.87%
A117: 107 | B117: Power | C117: POWERGRID | D117: 187.30 | E117: 187.67 | F117: 185.88 | G117: 184.47 | H117: 182.68 | I117: 189.08 | J117: 190.87 | K117: 192.28 | L117: 189.45 | M117: 186.25 | N117: 16368000 | O117: -2.71%
A118: 108 | B118: Media | C118: PVR | D118: 1300.90 | E118: 1305.47 | F118: 1282.63 | G118: 1264.37 | H118: 1241.53 | I118: 1323.73 | J118: 1346.57 | K118: 1364.83 | L118: 1328.3 | M118: 1287.2 | N118: 1717947 | O118: -3.30%
A119: 109 | B119: Cement | C119: RAMCOCEM | D119: 864.90 | E119: 861.75 | F119: 852.50 | G119: 840.10 | H119: 830.85 | I119: 874.15 | J119: 883.40 | K119: 895.80 | L119: 871 | M119: 849.35 | N119: 1392300 | O119: -0.91%
A120: 110 | B120: Banking | C120: RBLBANK | D120: 212.90 | E120: 211.15 | F120: 208.35 | G120: 203.80 | H120: 201.00 | I120: 215.70 | J120: 218.50 | K120: 223.05 | L120: 213.95 | M120: 206.6 | N120: 23913300 | O120: 0.83%
A121: 111 | B121: Power | C121: RECLTD | D121: 115.90 | E121: 114.83 | F121: 113.47 | G121: 111.03 | H121: 109.67 | I121: 117.27 | J121: 118.63 | K121: 121.07 | L121: 116.2 | M121: 112.4 | N121: 26550000 | O121: 2.24%
A122: 112 | B122: Oil_Gas | C122: RELIANCE | D122: 1997.65 | E122: 2021.72 | F122: 1963.43 | G122: 1929.22 | H122: 1870.93 | I122: 2055.93 | J122: 2114.22 | K122: 2148.43 | L122: 2080 | M122: 1987.5 | N122: 36287840 | O122: 2.63%
A123: 113 | B123: Metals | C123: SAIL | D123: 40.35 | E123: 40.45 | F123: 40.00 | G123: 39.65 | H123: 39.20 | I123: 40.80 | J123: 41.25 | K123: 41.60 | L123: 40.9 | M123: 40.1 | N123: 56297000 | O123: -4.67%
A124: 114 | B124: Finance | C124: SBILIFE | D124: 865.00 | E124: 856.92 | F124: 844.83 | G124: 824.67 | H124: 812.58 | I124: 877.08 | J124: 889.17 | K124: 909.33 | L124: 869 | M124: 836.75 | N124: 5244000 | O124: 1.60%
A125: 115 | B125: Banking | C125: SBIN | D125: 240.30 | E125: 237.72 | F125: 233.83 | G125: 227.37 | H125: 223.48 | I125: 244.18 | J125: 248.07 | K125: 254.53 | L125: 241.6 | M125: 231.25 | N125: 119139000 | O125: -1.32%
A126: 116 | B126: Cement | C126: SHREECEM | D126: 24067.90 | E126: 23918.32 | F126: 23689.43 | G126: 23310.97 | H126: 23082.08 | I126: 24296.78 | J126: 24525.67 | K126: 24904.13 | L126: 24147.2 | M126: 23539.85 | N126: 131100 | O126: 0.65%
A127: 117 | B127: Capital_Goods | C127: SIEMENS | D127: 1407.00 | E127: 1395.77 | F127: 1380.68 | G127: 1354.37 | H127: 1339.28 | I127: 1422.08 | J127: 1437.17 | K127: 1463.48 | L127: 1410.85 | M127: 1369.45 | N127: 1727550 | O127: -1.66%
A128: 118 | B128: Textile | C128: SRF | D128: 5082.30 | E128: 5106.48 | F128: 5028.42 | G128: 4974.53 | H128: 4896.47 | I128: 5160.37 | J128: 5238.43 | K128: 5292.32 | L128: 5184.55 | M128: 5052.6 | N128: 559250 | O128: -4.67%
A129: 119 | B129: Finance | C129: SRTRANSFIN | D129: 863.80 | E129: 868.13 | F129: 853.67 | G129: 843.53 | H129: 829.07 | I129: 878.27 | J129: 892.73 | K129: 902.87 | L129: 882.6 | M129: 858 | N129: 3975586 | O129: 4.14%
A130: 120 | B130: Pharma | C130: SUNPHARMA | D130: 518.50 | E130: 519.25 | F130: 514.25 | G130: 510.00 | H130: 505.00 | I130: 523.50 | J130: 528.50 | K130: 532.75 | L130: 524.25 | M130: 515 | N130: 41162800 | O130: 0.67%
A131: 121 | B131: Media | C131: SUNTV | D131: 416.25 | E131: 418.67 | F131: 412.33 | G131: 408.42 | H131: 402.08 | I131: 422.58 | J131: 428.92 | K131: 432.83 | L131: 425 | M131: 414.75 | N131: 5946000 | O131: -3.03%
A132: 122 | B132: Fertilisers | C132: TATACHEM | D132: 323.10 | E132: 322.83 | F132: 319.27 | G132: 315.43 | H132: 311.87 | I132: 326.67 | J132: 330.23 | K132: 334.07 | L132: 326.4 | M132: 319 | N132: 4762000 | O132: 2.67%
A133: 123 | B133: Others | C133: TATACONSUM | D133: 518.70 | E133: 518.13 | F133: 514.42 | G133: 510.13 | H133: 506.42 | I133: 522.42 | J133: 526.13 | K133: 530.42 | L133: 521.85 | M133: 513.85 | N133: 17571600 | O133: -1.19%
A134: 124 | B134: Automobile | C134: TATAMOTORS | D134: 158.25 | E134: 156.62 | F134: 154.18 | G134: 150.12 | H134: 147.68 | I134: 160.68 | J134: 163.12 | K134: 167.18 | L134: 159.05 | M134: 152.55 | N134: 83049000 | O134: -7.53%
A135: 125 | B135: Power | C135: TATAPOWER | D135: 57.90 | E135: 57.43 | F135: 56.47 | G135: 55.03 | H135: 54.07 | I135: 58.87 | J135: 59.83 | K135: 61.27 | L135: 58.4 | M135: 56 | N135: 92448000 | O135: 5.13%
A136: 126 | B136: Metals | C136: TATASTEEL | D136: 524.55 | E136: 519.87 | F136: 506.93 | G136: 489.32 | H136: 476.38 | I136: 537.48 | J136: 550.42 | K136: 568.03 | L136: 532.8 | M136: 502.25 | N136: 39671200 | O136: 9.05%
A137: 127 | B137: Technology | C137: TCS | D137: 2674.75 | E137: 2674.17 | F137: 2654.33 | G137: 2633.92 | H137: 2614.08 | I137: 2694.58 | J137: 2714.42 | K137: 2734.83 | L137: 2694 | M137: 2653.75 | N137: 7025400 | O137: 0.80%
A138: 128 | B138: Technology | C138: TECHM | D138: 846.15 | E138: 844.72 | F138: 833.23 | G138: 820.32 | H138: 808.83 | I138: 857.63 | J138: 869.12 | K138: 882.03 | L138: 856.2 | M138: 831.8 | N138: 9817200 | O138: -1.05%
A139: 129 | B139: FMCG | C139: TITAN | D139: 1302.10 | E139: 1294.68 | F139: 1284.87 | G139: 1267.63 | H139: 1257.82 | I139: 1311.92 | J139: 1321.73 | K139: 1338.97 | L139: 1304.5 | M139: 1277.45 | N139: 5674500 | O139: -2.44%
A140: 130 | B140: Pharma | C140: TORNTPHARM | D140: 2661.70 | E140: 2680.07 | F140: 2622.63 | G140: 2583.57 | H140: 2526.13 | I140: 2719.13 | J140: 2776.57 | K140: 2815.63 | L140: 2737.5 | M140: 2641 | N140: 861500 | O140: -1.63%
A141: 131 | B141: Power | C141: TORNTPOWER | D141: 308.40 | E141: 307.75 | F141: 305.80 | G141: 303.20 | H141: 301.25 | I141: 310.35 | J141: 312.30 | K141: 314.90 | L141: 309.7 | M141: 305.15 | N141: 2718000 | O141: 11.58%
A142: 132 | B142: Automobile | C142: TVSMOTOR | D142: 477.00 | E142: 476.58 | F142: 470.72 | G142: 464.43 | H142: 458.57 | I142: 482.87 | J142: 488.73 | K142: 495.02 | L142: 482.45 | M142: 470.3 | N142: 5217800 | O142: 4.25%
A143: 133 | B143: FMCG | C143: UBL | D143: 1041.75 | E143: 1039.95 | F143: 1030.00 | G143: 1018.25 | H143: 1008.30 | I143: 1051.70 | J143: 1061.65 | K143: 1073.40 | L143: 1049.9 | M143: 1028.2 | N143: 1545600 | O143: 1.24%
A144: 134 | B144: Cement | C144: ULTRACEMCO | D144: 4915.80 | E144: 4936.30 | F144: 4881.65 | G144: 4847.50 | H144: 4792.85 | I144: 4970.45 | J144: 5025.10 | K144: 5059.25 | L144: 4990.95 | M144: 4902.15 | N144: 1882800 | O144: -0.65%
A145: 135 | B145: Fertilisers | C145: UPL | D145: 431.00 | E145: 431.85 | F145: 427.70 | G145: 424.40 | H145: 420.25 | I145: 435.15 | J145: 439.30 | K145: 442.60 | L145: 436 | M145: 428.55 | N145: 20914400 | O145: 2.96%
A146: 136 | B146: Metals | C146: VEDL | D146: 107.55 | E146: 108.12 | F146: 105.78 | G146: 104.02 | H146: 101.68 | I146: 109.88 | J146: 112.22 | K146: 113.98 | L146: 110.45 | M146: 106.35 | N146: 83867400 | O146: 0.29%
A147: 137 | B147: Capital_Goods | C147: VOLTAS | D147: 775.85 | E147: 770.85 | F147: 762.55 | G147: 749.25 | H147: 740.95 | I147: 784.15 | J147: 792.45 | K147: 805.75 | L147: 779.15 | M147: 757.55 | N147: 3355000 | O147: 4.84%
A148: 138 | B148: Technology | C148: WIPRO | D148: 350.20 | E148: 348.82 | F148: 345.88 | G148: 341.57 | H148: 338.63 | I148: 353.13 | J148: 356.07 | K148: 360.38 | L148: 351.75 | M148: 344.5 | N148: 27641600 | O148: 4.66%
A149: 139 | B149: Media | C149: ZEEL | D149: 190.40 | E149: 191.37 | F149: 187.28 | G149: 184.17 | H149: 180.08 | I149: 194.48 | J149: 198.57 | K149: 201.68 | L149: 195.45 | M149: 188.25 | N149: 32679000 | O149: 3.59%
A150: 140
A151: 141
A152: 142
A153: 143
A154: 144
A155: 145
A156: 146
A157: 147
A175: Pivot Point: This is trigger point for intra day buy/sell based on the price range of the previous day
A176: As per the tool,the trader should take BUY position just above Pivot and keep the stop loss of pivot point and the first target would be Resistance 1(R1)
A177: If R1 is crossed then R2 becomes the next target with stop loss of at R1
A178: Similarly if price goes below pivot point then the trader should sell and keep a stop loss of pivot point and the first target would be S1
A179: If S1 is crossed then S2 becomes the next target with stop loss of at S1
A181: Disclaimer:
A182: This document has been prepared by the Retail Research Desk of Asit C Mehta
A183: Investment Intermediates Ltd. and is meant for use of the recipient only
A184: and is not for circulation. This document is not to be reported or
A185: copied or made available to others. It should not be considered to be
A186: taken as an offer to sell or a solicitation to buy any security. The
A187: information contained herein is from sources believed reliable. We do
A188: not represent that it is accurate or complete and it should not be
A189: relied upon as such. We may from time to time have positions in and buy
A190: and sell securities referred to herein

Sheet Cash Intra
M5: Back to Main Page
A6: FOR INTRA DAY TRADING | K6: =Main!B10 -> 2020-11-18
A8: Sr.no | B8: Scrip | C8: CLOSE RATE | D8: Pivot Point | E8: Supports | H8: Resistances
C9: Point | E9: S1 | F9: S2 | G9: S3 | H9: R1 | I9: R2 | J9: R3 | K9: HIGH | L9: LOW | M9: Total Trade Quanity in Lakhs
A10: 1 | B10: Nifty 50 | C10: 12874.2 | D10: 12868.45 | E10: 12802.85 | F10: 12731.50 | G10: 12665.90 | H10: 12939.80 | I10: 13005.40 | J10: 13076.75 | K10: 12934.05 | L10: 12797.1
A11: 2 | B11: Nifty Bank | C11: 29181.3 | D11: 29047.82 | E11: 28856.38 | F11: 28531.47 | G11: 28340.03 | H11: 29372.73 | I11: 29564.17 | J11: 29889.08 | K11: 29239.25 | L11: 28722.9
A12: 3 | B12: Nifty CPSE | C12: 1422.7 | D12: 1428.95 | E12: 1413.70 | F12: 1404.70 | G12: 1389.45 | H12: 1437.95 | I12: 1453.20 | J12: 1462.20 | K12: 1444.2 | L12: 1419.95
A13: 4 | B13: Nifty Infra | C13: 3390.45 | D13: 3396.72 | E13: 3378.03 | F13: 3365.62 | G13: 3346.93 | H13: 3409.13 | I13: 3427.82 | J13: 3440.23 | K13: 3415.4 | L13: 3384.3
A14: 5 | B14: Nifty IT | C14: 21488.55 | D14: 21518.73 | E14: 21331.27 | F14: 21173.98 | G14: 20986.52 | H14: 21676.02 | I14: 21863.48 | J14: 22020.77 | K14: 21706.2 | L14: 21361.45
A15: 6 | B15: Nifty PSE | C15: 2500.25 | D15: 2511.62 | E15: 2483.43 | F15: 2466.62 | G15: 2438.43 | H15: 2528.43 | I15: 2556.62 | J15: 2573.43 | K15: 2539.8 | L15: 2494.8
A16: 7 | B16: Nifty Midcap 50 | C16: 5188.05 | D16: 5171.98 | E16: 5150.92 | F16: 5113.78 | G16: 5092.72 | H16: 5209.12 | I16: 5230.18 | J16: 5267.32 | K16: 5193.05 | L16: 5134.85
A17: 8 | B17: AARTIIND | C17: 1128.15 | D17: 1126.38 | E17: 1111.77 | F17: 1095.38 | G17: 1080.77 | H17: 1142.77 | I17: 1157.38 | J17: 1173.77 | K17: 1141 | L17: 1110 | M17: 4.74494
A18: 9 | B18: ABBOTINDIA | C18: 15280.15 | D18: 15360.05 | E18: 15170.10 | F18: 15060.05 | G18: 14870.10 | H18: 15470.10 | I18: 15660.05 | J18: 15770.10 | K18: 15550 | L18: 15250 | M18: 0.15913
A19: 10 | B19: ABCAPITAL | C19: 81.65 | D19: 82.07 | E19: 79.68 | F19: 77.72 | G19: 75.33 | H19: 84.03 | I19: 86.42 | J19: 88.38 | K19: 84.45 | L19: 80.1 | M19: 63.32232
A20: 11 | B20: ABFRL | C20: 157.85 | D20: 157.37 | E20: 154.98 | F20: 152.12 | G20: 149.73 | H20: 160.23 | I20: 162.62 | J20: 165.48 | K20: 159.75 | L20: 154.5 | M20: 17.90034
A21: 12 | B21: ACC | C21: 1694.8 | D21: 1696.67 | E21: 1669.43 | F21: 1644.07 | G21: 1616.83 | H21: 1722.03 | I21: 1749.27 | J21: 1774.63 | K21: 1723.9 | L21: 1671.3 | M21: 26.26953
A22: 13 | B22: ADANIGAS | C22: 292.3 | D22: 276.15 | E22: 258.70 | F22: 225.10 | G22: 207.65 | H22: 309.75 | I22: 327.20 | J22: 360.80 | K22: 293.6 | L22: 242.55 | M22: 151.44641
A23: 14 | B23: ADANIPORTS | C23: 379.65 | D23: 377.55 | E23: 368.35 | F23: 357.05 | G23: 347.85 | H23: 388.85 | I23: 398.05 | J23: 409.35 | K23: 386.75 | L23: 366.25 | M23: 111.92618
A24: 15 | B24: ADANIPOWER | C24: 37.5 | D24: 37.22 | E24: 36.68 | F24: 35.87 | G24: 35.33 | H24: 38.03 | I24: 38.57 | J24: 39.38 | K24: 37.75 | L24: 36.4 | M24: 111.99945
A25: 16 | B25: ADANITRANS | C25: 368.65 | D25: 360.45 | E25: 347.50 | F25: 326.35 | G25: 313.40 | H25: 381.60 | I25: 394.55 | J25: 415.70 | K25: 373.4 | L25: 339.3 | M25: 26.79615
A26: 17 | B26: AJANTPHARM | C26: 1552.15 | D26: 1551.32 | E26: 1536.83 | F26: 1521.52 | G26: 1507.03 | H26: 1566.63 | I26: 1581.12 | J26: 1596.43 | K26: 1565.8 | L26: 1536 | M26: 1.35842
A27: 18 | B27: ALKEM | C27: 2677.8 | D27: 2685.60 | E27: 2659.20 | F27: 2640.60 | G27: 2614.20 | H27: 2704.20 | I27: 2730.60 | J27: 2749.20 | K27: 2712 | L27: 2667 | M27: 2.03422
A28: 19 | B28: AMARAJABAT | C28: 832.9 | D28: 830.13 | E28: 823.87 | F28: 814.83 | G28: 808.57 | H28: 839.17 | I28: 845.43 | J28: 854.47 | K28: 836.4 | L28: 821.1 | M28: 5.35893
A29: 20 | B29: AMBUJACEM | C29: 268.05 | D29: 266.68 | E29: 261.37 | F29: 254.68 | G29: 249.37 | H29: 273.37 | I29: 278.68 | J29: 285.37 | K29: 272 | L29: 260 | M29: 132.07472
A30: 21 | B30: APOLLOHOSP | C30: 2307.35 | D30: 2305.00 | E30: 2268.40 | F30: 2229.45 | G30: 2192.85 | H30: 2343.95 | I30: 2380.55 | J30: 2419.50 | K30: 2341.6 | L30: 2266.05 | M30: 18.32334
A31: 22 | B31: APOLLOTYRE | C31: 173.05 | D31: 170.78 | E31: 166.87 | F31: 160.68 | G31: 156.77 | H31: 176.97 | I31: 180.88 | J31: 187.07 | K31: 174.7 | L31: 164.6 | M31: 105.85162
A32: 23 | B32: ASHOKLEY | C32: 91.75 | D32: 92.00 | E32: 90.85 | F32: 89.95 | G32: 88.80 | H32: 92.90 | I32: 94.05 | J32: 94.95 | K32: 93.15 | L32: 91.1 | M32: 276.49089
A33: 24 | B33: ASIANPAINT | C33: 2187.65 | D33: 2197.18 | E33: 2172.47 | F33: 2157.28 | G33: 2132.57 | H33: 2212.37 | I33: 2237.08 | J33: 2252.27 | K33: 2221.9 | L33: 2182 | M33: 16.99293
A34: 25 | B34: AUBANK | C34: 891.85 | D34: 882.08 | E34: 859.77 | F34: 827.68 | G34: 805.37 | H34: 914.17 | I34: 936.48 | J34: 968.57 | K34: 904.4 | L34: 850 | M34: 19.31599
A35: 26 | B35: AUROPHARMA | C35: 855.6 | D35: 859.98 | E35: 844.07 | F35: 832.53 | G35: 816.62 | H35: 871.52 | I35: 887.43 | J35: 898.97 | K35: 875.9 | L35: 848.45 | M35: 55.85491
A36: 27 | B36: AXISBANK | C36: 628.8 | D36: 622.90 | E36: 614.90 | F36: 601.00 | G36: 593.00 | H36: 636.80 | I36: 644.80 | J36: 658.70 | K36: 630.9 | L36: 609 | M36: 259.6006
A37: 28 | B37: BAJAJ-AUTO | C37: 3045.15 | D37: 3030.17 | E37: 3011.43 | F37: 2977.72 | G37: 2958.98 | H37: 3063.88 | I37: 3082.62 | J37: 3116.33 | K37: 3048.9 | L37: 2996.45 | M37: 5.01135
A38: 29 | B38: BAJAJFINSV | C38: 7365.35 | D38: 7341.32 | E38: 7275.03 | F38: 7184.72 | G38: 7118.43 | H38: 7431.63 | I38: 7497.92 | J38: 7588.23 | K38: 7407.6 | L38: 7251 | M38: 11.72544
A39: 30 | B39: BAJAJHLDNG | C39: 2712.95 | D39: 2713.98 | E39: 2651.97 | F39: 2590.98 | G39: 2528.97 | H39: 2774.97 | I39: 2836.98 | J39: 2897.97 | K39: 2776 | L39: 2653 | M39: 1.26745
A40: 31 | B40: BAJFINANCE | C40: 4488 | D40: 4445.65 | E40: 4387.35 | F40: 4286.70 | G40: 4228.40 | H40: 4546.30 | I40: 4604.60 | J40: 4705.25 | K40: 4503.95 | L40: 4345 | M40: 58.51523
A41: 32 | B41: BALKRISIND | C41: 1613.1 | D41: 1604.70 | E41: 1584.40 | F41: 1555.70 | G41: 1535.40 | H41: 1633.40 | I41: 1653.70 | J41: 1682.40 | K41: 1625 | L41: 1576 | M41: 14.77904
A42: 33 | B42: BANDHANBNK | C42: 352.65 | D42: 351.52 | E42: 348.13 | F42: 343.62 | G42: 340.23 | H42: 356.03 | I42: 359.42 | J42: 363.93 | K42: 354.9 | L42: 347 | M42: 110.71629
A43: 34 | B43: BANKBARODA | C43: 47.55 | D43: 47.38 | E43: 46.87 | F43: 46.18 | G43: 45.67 | H43: 48.07 | I43: 48.58 | J43: 49.27 | K43: 47.9 | L43: 46.7 | M43: 214.94471
A44: 35 | B44: BANKINDIA | C44: 40.9 | D44: 41.05 | E44: 40.60 | F44: 40.30 | G44: 39.85 | H44: 41.35 | I44: 41.80 | J44: 42.10 | K44: 41.5 | L44: 40.75 | M44: 17.76083
A45: 36 | B45: BATAINDIA | C45: 1376.65 | D45: 1368.35 | E45: 1356.70 | F45: 1336.75 | G45: 1325.10 | H45: 1388.30 | I45: 1399.95 | J45: 1419.90 | K45: 1380 | L45: 1348.4 | M45: 5.97702
A46: 37 | B46: BBTC | C46: 1278.75 | D46: 1273.02 | E46: 1256.03 | F46: 1233.32 | G46: 1216.33 | H46: 1295.73 | I46: 1312.72 | J46: 1335.43 | K46: 1290 | L46: 1250.3 | M46: 0.82061
A47: 38 | B47: BEL | C47: 96.15 | D47: 96.55 | E47: 95.35 | F47: 94.55 | G47: 93.35 | H47: 97.35 | I47: 98.55 | J47: 99.35 | K47: 97.75 | L47: 95.75 | M47: 45.36016
A48: 39 | B48: BERGEPAINT | C48: 647.1 | D48: 647.22 | E48: 639.43 | F48: 631.77 | G48: 623.98 | H48: 654.88 | I48: 662.67 | J48: 670.33 | K48: 655 | L48: 639.55 | M48: 8.13193
A49: 40 | B49: BHARATFORG | C49: 495 | D49: 493.70 | E49: 487.80 | F49: 480.60 | G49: 474.70 | H49: 500.90 | I49: 506.80 | J49: 514.00 | K49: 499.6 | L49: 486.5 | M49: 32.3904
A50: 41 | B50: BHARTIARTL | C50: 484.55 | D50: 486.92 | E50: 478.88 | F50: 473.22 | G50: 465.18 | H50: 492.58 | I50: 500.62 | J50: 506.28 | K50: 494.95 | L50: 481.25 | M50: 186.99305
A51: 42 | B51: BHEL | C51: 28.25 | D51: 28.32 | E51: 28.03 | F51: 27.82 | G51: 27.53 | H51: 28.53 | I51: 28.82 | J51: 29.03 | K51: 28.6 | L51: 28.1 | M51: 156.66967
A52: 43 | B52: BIOCON | C52: 428.15 | D52: 429.13 | E52: 421.92 | F52: 415.68 | G52: 408.47 | H52: 435.37 | I52: 442.58 | J52: 448.82 | K52: 436.35 | L52: 422.9 | M52: 34.59673
A53: 44 | B53: BOSCHLTD | C53: 11621.15 | D53: 11724.77 | E53: 11481.43 | F53: 11341.72 | G53: 11098.38 | H53: 11864.48 | I53: 12107.82 | J53: 12247.53 | K53: 11968.1 | L53: 11585.05 | M53: 0.85398
A54: 45 | B54: BPCL | C54: 394.65 | D54: 400.58 | E54: 386.17 | F54: 377.68 | G54: 363.27 | H54: 409.07 | I54: 423.48 | J54: 431.97 | K54: 415 | L54: 392.1 | M54: 221.48246
A55: 46 | B55: BRITANNIA | C55: 3509.8 | D55: 3521.40 | E55: 3492.80 | F55: 3475.80 | G55: 3447.20 | H55: 3538.40 | I55: 3567.00 | J55: 3584.00 | K55: 3550 | L55: 3504.4 | M55: 6.94643
A56: 47 | B56: CADILAHC | C56: 429.85 | D56: 429.93 | E56: 425.92 | F56: 421.98 | G56: 417.97 | H56: 433.87 | I56: 437.88 | J56: 441.82 | K56: 433.95 | L56: 426 | M56: 38.4992
A57: 48 | B57: CANBK | C57: 92.45 | D57: 92.75 | E57: 91.75 | F57: 91.05 | G57: 90.05 | H57: 93.45 | I57: 94.45 | J57: 95.15 | K57: 93.75 | L57: 92.05 | M57: 61.69645
A58: 49 | B58: CASTROLIND | C58: 116 | D58: 116.40 | E58: 115.00 | F58: 114.00 | G58: 112.60 | H58: 117.40 | I58: 118.80 | J58: 119.80 | K58: 117.8 | L58: 115.4 | M58: 17.18747
A59: 50 | B59: CESC | C59: 582.5 | D59: 583.22 | E59: 578.43 | F59: 574.37 | G59: 569.58 | H59: 587.28 | I59: 592.07 | J59: 596.13 | K59: 588 | L59: 579.15 | M59: 1.53874
A60: 51 | B60: CHOLAFIN | C60: 322.5 | D60: 318.90 | E60: 313.30 | F60: 304.10 | G60: 298.50 | H60: 328.10 | I60: 333.70 | J60: 342.90 | K60: 324.5 | L60: 309.7 | M60: 49.44101
A61: 52 | B61: CIPLA | C61: 742.55 | D61: 742.82 | E61: 733.73 | F61: 724.92 | G61: 715.83 | H61: 751.63 | I61: 760.72 | J61: 769.53 | K61: 751.9 | L61: 734 | M61: 73.13289
A62: 53 | B62: COALINDIA | C62: 128.7 | D62: 128.40 | E62: 127.50 | F62: 126.30 | G62: 125.40 | H62: 129.60 | I62: 130.50 | J62: 131.70 | K62: 129.3 | L62: 127.2 | M62: 203.69194
A63: 54 | B63: COFORGE | C63: 2303.9 | D63: 2301.75 | E63: 2274.50 | F63: 2245.10 | G63: 2217.85 | H63: 2331.15 | I63: 2358.40 | J63: 2387.80 | K63: 2329 | L63: 2272.35 | M63: 2.73684
A64: 55 | B64: COLPAL | C64: 1533.45 | D64: 1526.42 | E64: 1510.83 | F64: 1488.22 | G64: 1472.63 | H64: 1549.03 | I64: 1564.62 | J64: 1587.23 | K64: 1542 | L64: 1503.8 | M64: 7.38588
A65: 56 | B65: CONCOR | C65: 409.05 | D65: 409.28 | E65: 401.72 | F65: 394.38 | G65: 386.82 | H65: 416.62 | I65: 424.18 | J65: 431.52 | K65: 416.85 | L65: 401.95 | M65: 29.92236
A66: 57 | B66: COROMANDEL | C66: 789.55 | D66: 776.52 | E66: 760.03 | F66: 730.52 | G66: 714.03 | H66: 806.03 | I66: 822.52 | J66: 852.03 | K66: 793 | L66: 747 | M66: 6.06981
A67: 58 | B67: CROMPTON | C67: 294.3 | D67: 294.30 | E67: 288.20 | F67: 282.10 | G67: 276.00 | H67: 300.40 | I67: 306.50 | J67: 312.60 | K67: 300.4 | L67: 288.2 | M67: 20.22516
A68: 59 | B68: CUB | C68: 188.1 | D68: 187.78 | E68: 183.57 | F68: 179.03 | G68: 174.82 | H68: 192.32 | I68: 196.53 | J68: 201.07 | K68: 192 | L68: 183.25 | M68: 22.79455
A69: 60 | B69: CUMMINSIND | C69: 493 | D69: 490.13 | E69: 482.37 | F69: 471.73 | G69: 463.97 | H69: 500.77 | I69: 508.53 | J69: 519.17 | K69: 497.9 | L69: 479.5 | M69: 26.5192
A70: 61 | B70: DABUR | C70: 511.65 | D70: 514.45 | E70: 506.70 | F70: 501.75 | G70: 494.00 | H70: 519.40 | I70: 527.15 | J70: 532.10 | K70: 522.2 | L70: 509.5 | M70: 30.16364
A71: 62 | B71: DALBHARAT | C71: 982 | D71: 977.30 | E71: 964.70 | F71: 947.40 | G71: 934.80 | H71: 994.60 | I71: 1007.20 | J71: 1024.50 | K71: 989.9 | L71: 960 | M71: 3.05803
A72: 63 | B72: DIVISLAB | C72: 3427 | D72: 3437.33 | E72: 3384.67 | F72: 3342.33 | G72: 3289.67 | H72: 3479.67 | I72: 3532.33 | J72: 3574.67 | K72: 3490 | L72: 3395 | M72: 16.52851
A73: 64 | B73: DLF | C73: 188.35 | D73: 187.68 | E73: 184.67 | F73: 180.98 | G73: 177.97 | H73: 191.37 | I73: 194.38 | J73: 198.07 | K73: 190.7 | L73: 184 | M73: 133.19247
A74: 65 | B74: DMART | C74: 2432.15 | D74: 2438.08 | E74: 2368.22 | F74: 2304.28 | G74: 2234.42 | H74: 2502.02 | I74: 2571.88 | J74: 2635.82 | K74: 2507.95 | L74: 2374.15 | M74: 11.27375
A75: 66 | B75: DRREDDY | C75: 4784.15 | D75: 4811.33 | E75: 4742.82 | F75: 4701.48 | G75: 4632.97 | H75: 4852.67 | I75: 4921.18 | J75: 4962.52 | K75: 4879.85 | L75: 4770 | M75: 12.83213
A76: 67 | B76: EDELWEISS | C76: 57.75 | D76: 56.77 | E76: 55.78 | F76: 53.82 | G76: 52.83 | H76: 58.73 | I76: 59.72 | J76: 61.68 | K76: 57.75 | L76: 54.8 | M76: 86.89948
A77: 68 | B77: EICHERMOT | C77: 2541.7 | D77: 2532.28 | E77: 2500.57 | F77: 2459.43 | G77: 2427.72 | H77: 2573.42 | I77: 2605.13 | J77: 2646.27 | K77: 2564 | L77: 2491.15 | M77: 21.12263
A78: 69 | B78: EMAMILTD | C78: 382.5 | D78: 382.75 | E78: 377.10 | F78: 371.70 | G78: 366.05 | H78: 388.15 | I78: 393.80 | J78: 399.20 | K78: 388.4 | L78: 377.35 | M78: 4.01021
A79: 70 | B79: ENDURANCE | C79: 1026.55 | D79: 1032.50 | E79: 1015.10 | F79: 1003.65 | G79: 986.25 | H79: 1043.95 | I79: 1061.35 | J79: 1072.80 | K79: 1049.9 | L79: 1021.05 | M79: 2.57343
A80: 71 | B80: ESCORTS | C80: 1422.3 | D80: 1419.03 | E80: 1404.27 | F80: 1386.23 | G80: 1371.47 | H80: 1437.07 | I80: 1451.83 | J80: 1469.87 | K80: 1433.8 | L80: 1401 | M80: 16.95746
A81: 72 | B81: EXIDEIND | C81: 170.35 | D81: 170.63 | E81: 169.27 | F81: 168.18 | G81: 166.82 | H81: 171.72 | I81: 173.08 | J81: 174.17 | K81: 172 | L81: 169.55 | M81: 48.65825
A82: 73 | B82: FEDERALBNK | C82: 58.05 | D82: 57.83 | E82: 57.12 | F82: 56.18 | G82: 55.47 | H82: 58.77 | I82: 59.48 | J82: 60.42 | K82: 58.55 | L82: 56.9 | M82: 346.51878
A83: 74 | B83: FORTIS | C83: 141.85 | D83: 141.63 | E83: 138.77 | F83: 135.68 | G83: 132.82 | H83: 144.72 | I83: 147.58 | J83: 150.67 | K83: 144.5 | L83: 138.55 | M83: 18.51079
A84: 75 | B84: FRETAIL | C84: 68.35 | D84: 69.07 | E84: 66.83 | F84: 65.32 | G84: 63.08 | H84: 70.58 | I84: 72.82 | J84: 74.33 | K84: 71.3 | L84: 67.55 | M84: 69.86162
A85: 76 | B85: GAIL | C85: 93.55 | D85: 93.97 | E85: 92.63 | F85: 91.72 | G85: 90.38 | H85: 94.88 | I85: 96.22 | J85: 97.13 | K85: 95.3 | L85: 93.05 | M85: 122.27481
A86: 77 | B86: GICRE | C86: 126.05 | D86: 126.23 | E86: 124.07 | F86: 122.08 | G86: 119.92 | H86: 128.22 | I86: 130.38 | J86: 132.37 | K86: 128.4 | L86: 124.25 | M86: 4.25987
A87: 78 | B87: GLENMARK | C87: 487.2 | D87: 486.62 | E87: 481.33 | F87: 475.47 | G87: 470.18 | H87: 492.48 | I87: 497.77 | J87: 503.63 | K87: 491.9 | L87: 480.75 | M87: 18.22612
A88: 79 | B88: GMRINFRA | C88: 24.35 | D88: 24.43 | E88: 24.02 | F88: 23.68 | G88: 23.27 | H88: 24.77 | I88: 25.18 | J88: 25.52 | K88: 24.85 | L88: 24.1 | M88: 97.58745
A89: 80 | B89: GODREJAGRO | C89: 504.85 | D89: 503.77 | E89: 502.08 | F89: 499.32 | G89: 497.63 | H89: 506.53 | I89: 508.22 | J89: 510.98 | K89: 505.45 | L89: 501 | M89: 0.7515
A90: 81 | B90: GODREJCP | C90: 679.05 | D90: 681.32 | E90: 673.18 | F90: 667.32 | G90: 659.18 | H90: 687.18 | I90: 695.32 | J90: 701.18 | K90: 689.45 | L90: 675.45 | M90: 9.81089
A91: 82 | B91: GODREJIND | C91: 395.2 | D91: 396.47 | E91: 389.93 | F91: 384.67 | G91: 378.13 | H91: 401.73 | I91: 408.27 | J91: 413.53 | K91: 403 | L91: 391.2 | M91: 3.71752
A92: 83 | B92: GODREJPROP | C92: 1033.4 | D92: 1029.13 | E92: 1002.27 | F92: 971.13 | G92: 944.27 | H92: 1060.27 | I92: 1087.13 | J92: 1118.27 | K92: 1056 | L92: 998 | M92: 26.15737
A93: 84 | B93: GRASIM | C93: 842.9 | D93: 843.98 | E93: 834.47 | F93: 826.03 | G93: 816.52 | H93: 852.42 | I93: 861.93 | J93: 870.37 | K93: 853.5 | L93: 835.55 | M93: 18.85867
A94: 85 | B94: GSPL | C94: 191.1 | D94: 191.15 | E94: 189.95 | F94: 188.80 | G94: 187.60 | H94: 192.30 | I94: 193.50 | J94: 194.65 | K94: 192.35 | L94: 190 | M94: 5.18322
A95: 86 | B95: GUJGASLTD | C95: 311 | D95: 310.52 | E95: 308.33 | F95: 305.67 | G95: 303.48 | H95: 313.18 | I95: 315.37 | J95: 318.03 | K95: 312.7 | L95: 307.85 | M95: 5.12076
A96: 87 | B96: HAVELLS | C96: 844.7 | D96: 841.62 | E96: 833.63 | F96: 822.57 | G96: 814.58 | H96: 852.68 | I96: 860.67 | J96: 871.73 | K96: 849.6 | L96: 830.55 | M96: 22.87511
A97: 88 | B97: HCLTECH | C97: 815 | D97: 822.32 | E97: 806.68 | F97: 798.37 | G97: 782.73 | H97: 830.63 | I97: 846.27 | J97: 854.58 | K97: 837.95 | L97: 814 | M97: 59.77903
A98: 89 | B98: HDFC | C98: 2349 | D98: 2340.38 | E98: 2316.02 | F98: 2283.03 | G98: 2258.67 | H98: 2373.37 | I98: 2397.73 | J98: 2430.72 | K98: 2364.75 | L98: 2307.4 | M98: 73.93052
A99: 90 | B99: HDFCAMC | C99: 2504.9 | D99: 2503.10 | E99: 2481.80 | F99: 2458.70 | G99: 2437.40 | H99: 2526.20 | I99: 2547.50 | J99: 2570.60 | K99: 2524.4 | L99: 2480 | M99: 5.5771
A100: 91 | B100: HDFCBANK | C100: 1408.45 | D100: 1400.55 | E100: 1388.50 | F100: 1368.55 | G100: 1356.50 | H100: 1420.50 | I100: 1432.55 | J100: 1452.50 | K100: 1412.6 | L100: 1380.6 | M100: 155.2995
A101: 92 | B101: HDFCLIFE | C101: 670.05 | D101: 659.68 | E101: 645.37 | F101: 620.68 | G101: 606.37 | H101: 684.37 | I101: 698.68 | J101: 723.37 | K101: 674 | L101: 635 | M101: 97.40753
A102: 93 | B102: HEROMOTOCO | C102: 3031.3 | D102: 3060.10 | E102: 2972.20 | F102: 2913.10 | G102: 2825.20 | H102: 3119.20 | I102: 3207.10 | J102: 3266.20 | K102: 3148 | L102: 3001 | M102: 19.3356
A103: 94 | B103: HINDALCO | C103: 213.55 | D103: 213.22 | E103: 210.43 | F103: 207.32 | G103: 204.53 | H103: 216.33 | I103: 219.12 | J103: 222.23 | K103: 216 | L103: 210.1 | M103: 222.84208
A104: 95 | B104: HINDPETRO | C104: 217.7 | D104: 218.92 | E104: 214.43 | F104: 211.17 | G104: 206.68 | H104: 222.18 | I104: 226.67 | J104: 229.93 | K104: 223.4 | L104: 215.65 | M104: 81.40364
A105: 96 | B105: HINDUNILVR | C105: 2177.6 | D105: 2189.98 | E105: 2159.62 | F105: 2141.63 | G105: 2111.27 | H105: 2207.97 | I105: 2238.33 | J105: 2256.32 | K105: 2220.35 | L105: 2172 | M105: 27.33542
A106: 97 | B106: HINDZINC | C106: 224.15 | D106: 225.08 | E106: 221.57 | F106: 218.98 | G106: 215.47 | H106: 227.67 | I106: 231.18 | J106: 233.77 | K106: 228.6 | L106: 222.5 | M106: 8.27016
A107: 98 | B107: HUDCO | C107: 33.45 | D107: 33.32 | E107: 32.53 | F107: 31.62 | G107: 30.83 | H107: 34.23 | I107: 35.02 | J107: 35.93 | K107: 34.1 | L107: 32.4 | M107: 20.87421
A108: 99 | B108: IBULHSGFIN | C108: 180.55 | D108: 180.50 | E108: 175.25 | F108: 169.95 | G108: 164.70 | H108: 185.80 | I108: 191.05 | J108: 196.35 | K108: 185.75 | L108: 175.2 | M108: 141.62276
A109: 100 | B109: ICICIBANK | C109: 486.4 | D109: 485.85 | E109: 478.70 | F109: 471.00 | G109: 463.85 | H109: 493.55 | I109: 500.70 | J109: 508.40 | K109: 493 | L109: 478.15 | M109: 361.27378
A110: 101 | B110: ICICIGI | C110: 1329.2 | D110: 1319.27 | E110: 1299.93 | F110: 1270.67 | G110: 1251.33 | H110: 1348.53 | I110: 1367.87 | J110: 1397.13 | K110: 1338.6 | L110: 1290 | M110: 9.52298
A111: 102 | B111: ICICIPRULI | C111: 448.95 | D111: 444.70 | E111: 438.40 | F111: 427.85 | G111: 421.55 | H111: 455.25 | I111: 461.55 | J111: 472.10 | K111: 451 | L111: 434.15 | M111: 21.42043
A112: 103 | B112: IDBI | C112: 37.4 | D112: 37.40 | E112: 37.10 | F112: 36.80 | G112: 36.50 | H112: 37.70 | I112: 38.00 | J112: 38.30 | K112: 37.7 | L112: 37.1 | M112: 11.41085
A113: 104 | B113: IDEA | C113: 9.3 | D113: 9.47 | E113: 8.93 | F113: 8.57 | G113: 8.03 | H113: 9.83 | I113: 10.37 | J113: 10.73 | K113: 10 | L113: 9.1 | M113: 6357.29848
A114: 105 | B114: IDFCFIRSTB | C114: 33.6 | D114: 33.67 | E114: 33.33 | F114: 33.07 | G114: 32.73 | H114: 33.93 | I114: 34.27 | J114: 34.53 | K114: 34 | L114: 33.4 | M114: 202.16603
A115: 106 | B115: IGL | C115: 439 | D115: 436.87 | E115: 431.73 | F115: 424.47 | G115: 419.33 | H115: 444.13 | I115: 449.27 | J115: 456.53 | K115: 442 | L115: 429.6 | M115: 23.02218
A116: 107 | B116: INDHOTEL | C116: 120.15 | D116: 118.97 | E116: 115.18 | F116: 110.22 | G116: 106.43 | H116: 123.93 | I116: 127.72 | J116: 132.68 | K116: 122.75 | L116: 114 | M116: 120.79563
A117: 108 | B117: INDIGO | C117: 1643.7 | D117: 1633.15 | E117: 1596.30 | F117: 1548.90 | G117: 1512.05 | H117: 1680.55 | I117: 1717.40 | J117: 1764.80 | K117: 1670 | L117: 1585.75 | M117: 21.58078
A118: 109 | B118: INDUSINDBK | C118: 784.15 | D118: 783.38 | E118: 773.02 | F118: 761.88 | G118: 751.52 | H118: 794.52 | I118: 804.88 | J118: 816.02 | K118: 793.75 | L118: 772.25 | M118: 148.73173
A119: 110 | B119: INFRATEL | C119: 185.5 | D119: 184.55 | E119: 182.35 | F119: 179.20 | G119: 177.00 | H119: 187.70 | I119: 189.90 | J119: 193.05 | K119: 186.75 | L119: 181.4 | M119: 77.13667
A120: 111 | B120: INFY | C120: 1123.7 | D120: 1127.12 | E120: 1109.23 | F120: 1094.77 | G120: 1076.88 | H120: 1141.58 | I120: 1159.47 | J120: 1173.93 | K120: 1145 | L120: 1112.65 | M120: 128.13968
A121: 112 | B121: IOC | C121: 84.95 | D121: 85.48 | E121: 83.97 | F121: 82.98 | G121: 81.47 | H121: 86.47 | I121: 87.98 | J121: 88.97 | K121: 87 | L121: 84.5 | M121: 250.35014
A122: 113 | B122: IPCALAB | C122: 2102.35 | D122: 2098.52 | E122: 2073.03 | F122: 2043.72 | G122: 2018.23 | H122: 2127.83 | I122: 2153.32 | J122: 2182.63 | K122: 2124 | L122: 2069.2 | M122: 8.59225
A123: 114 | B123: IRCTC | C123: 1380.3 | D123: 1386.63 | E123: 1366.27 | F123: 1352.23 | G123: 1331.87 | H123: 1400.67 | I123: 1421.03 | J123: 1435.07 | K123: 1407 | L123: 1372.6 | M123: 4.18712
A124: 115 | B124: ITC | C124: 187.35 | D124: 187.72 | E124: 186.03 | F124: 184.72 | G124: 183.03 | H124: 189.03 | I124: 190.72 | J124: 192.03 | K124: 189.4 | L124: 186.4 | M124: 209.50589
A125: 116 | B125: JINDALSTEL | C125: 228.85 | D125: 225.53 | E125: 220.32 | F125: 211.78 | G125: 206.57 | H125: 234.07 | I125: 239.28 | J125: 247.82 | K125: 230.75 | L125: 217 | M125: 109.20316
A126: 117 | B126: JSWENERGY | C126: 61.7 | D126: 62.52 | E126: 60.73 | F126: 59.77 | G126: 57.98 | H126: 63.48 | I126: 65.27 | J126: 66.23 | K126: 64.3 | L126: 61.55 | M126: 10.84313
A127: 118 | B127: JSWSTEEL | C127: 340.95 | D127: 343.68 | E127: 336.87 | F127: 332.78 | G127: 325.97 | H127: 347.77 | I127: 354.58 | J127: 358.67 | K127: 350.5 | L127: 339.6 | M127: 73.89747
A128: 119 | B128: JUBILANT | C128: 690.65 | D128: 693.88 | E128: 681.77 | F128: 672.88 | G128: 660.77 | H128: 702.77 | I128: 714.88 | J128: 723.77 | K128: 706 | L128: 685 | M128: 1.95554
A129: 120 | B129: JUBLFOOD | C129: 2520.65 | D129: 2505.45 | E129: 2476.40 | F129: 2432.15 | G129: 2403.10 | H129: 2549.70 | I129: 2578.75 | J129: 2623.00 | K129: 2534.5 | L129: 2461.2 | M129: 9.99804
A130: 121 | B130: KOTAKBANK | C130: 1796.65 | D130: 1787.72 | E130: 1773.43 | F130: 1750.22 | G130: 1735.93 | H130: 1810.93 | I130: 1825.22 | J130: 1848.43 | K130: 1802 | L130: 1764.5 | M130: 58.26745
A131: 122 | B131: L&TFH | C131: 70.5 | D131: 70.47 | E131: 69.68 | F131: 68.87 | G131: 68.08 | H131: 71.28 | I131: 72.07 | J131: 72.88 | K131: 71.25 | L131: 69.65 | M131: 140.28398
A132: 123 | B132: LALPATHLAB | C132: 2145.15 | D132: 2161.70 | E132: 2123.45 | F132: 2101.75 | G132: 2063.50 | H132: 2183.40 | I132: 2221.65 | J132: 2243.35 | K132: 2199.95 | L132: 2140 | M132: 2.41306
A133: 124 | B133: LICHSGFIN | C133: 314.7 | D133: 315.85 | E133: 311.10 | F133: 307.50 | G133: 302.75 | H133: 319.45 | I133: 324.20 | J133: 327.80 | K133: 320.6 | L133: 312.25 | M133: 51.54551
A134: 125 | B134: LT | C134: 1080.9 | D134: 1079.60 | E134: 1062.35 | F134: 1043.80 | G134: 1026.55 | H134: 1098.15 | I134: 1115.40 | J134: 1133.95 | K134: 1096.85 | L134: 1061.05 | M134: 76.11327
A135: 126 | B135: LTI | C135: 2997.95 | D135: 3014.15 | E135: 2969.80 | F135: 2941.65 | G135: 2897.30 | H135: 3042.30 | I135: 3086.65 | J135: 3114.80 | K135: 3058.5 | L135: 2986 | M135: 2.82279
A136: 127 | B136: LTTS | C136: 1698.95 | D136: 1706.98 | E136: 1681.97 | F136: 1664.98 | G136: 1639.97 | H136: 1723.97 | I136: 1748.98 | J136: 1765.97 | K136: 1732 | L136: 1690 | M136: 0.92688
A137: 128 | B137: LUPIN | C137: 887.6 | D137: 896.13 | E137: 876.97 | F137: 866.33 | G137: 847.17 | H137: 906.77 | I137: 925.93 | J137: 936.57 | K137: 915.3 | L137: 885.5 | M137: 28.99346
A138: 129 | B138: M&M | C138: 637.25 | D138: 638.97 | E138: 631.93 | F138: 626.62 | G138: 619.58 | H138: 644.28 | I138: 651.32 | J138: 656.63 | K138: 646 | L138: 633.65 | M138: 61.73551
A139: 130 | B139: M&MFIN | C139: 145.5 | D139: 145.27 | E139: 143.53 | F139: 141.57 | G139: 139.83 | H139: 147.23 | I139: 148.97 | J139: 150.93 | K139: 147 | L139: 143.3 | M139: 61.45974
A140: 131 | B140: MANAPPURAM | C140: 163.35 | D140: 162.58 | E140: 161.07 | F140: 158.78 | G140: 157.27 | H140: 164.87 | I140: 166.38 | J140: 168.67 | K140: 164.1 | L140: 160.3 | M140: 62.70262
A141: 132 | B141: MARICO | C141: 379.05 | D141: 377.52 | E141: 374.03 | F141: 369.02 | G141: 365.53 | H141: 382.53 | I141: 386.02 | J141: 391.03 | K141: 381 | L141: 372.5 | M141: 31.53244
A142: 133 | B142: MARUTI | C142: 6981.45 | D142: 6947.12 | E142: 6897.33 | F142: 6813.22 | G142: 6763.43 | H142: 7031.23 | I142: 7081.02 | J142: 7165.13 | K142: 6996.9 | L142: 6863 | M142: 12.43068
A143: 134 | B143: MCDOWELL-N | C143: 560.25 | D143: 560.53 | E143: 553.72 | F143: 547.18 | G143: 540.37 | H143: 567.07 | I143: 573.88 | J143: 580.42 | K143: 567.35 | L143: 554 | M143: 25.50588
A144: 135 | B144: MFSL | C144: 613.25 | D144: 610.18 | E144: 604.17 | F144: 595.08 | G144: 589.07 | H144: 619.27 | I144: 625.28 | J144: 634.37 | K144: 616.2 | L144: 601.1 | M144: 16.86818
A145: 136 | B145: MGL | C145: 869.9 | D145: 866.57 | E145: 859.58 | F145: 849.27 | G145: 842.28 | H145: 876.88 | I145: 883.87 | J145: 894.18 | K145: 873.55 | L145: 856.25 | M145: 6.56402
A146: 137 | B146: MINDTREE | C146: 1342.1 | D146: 1348.93 | E146: 1330.17 | F146: 1318.23 | G146: 1299.47 | H146: 1360.87 | I146: 1379.63 | J146: 1391.57 | K146: 1367.7 | L146: 1337 | M146: 10.60852
A147: 138 | B147: MOTHERSUMI | C147: 130.6 | D147: 129.63 | E147: 126.77 | F147: 122.93 | G147: 120.07 | H147: 133.47 | I147: 136.33 | J147: 140.17 | K147: 132.5 | L147: 125.8 | M147: 132.35062
A148: 139 | B148: MPHASIS | C148: 1314.15 | D148: 1318.08 | E148: 1303.17 | F148: 1292.18 | G148: 1277.27 | H148: 1329.07 | I148: 1343.98 | J148: 1354.97 | K148: 1333 | L148: 1307.1 | M148: 3.28612
A149: 140 | B149: MRF | C149: 74095.45 | D149: 73557.15 | E149: 72464.30 | F149: 70833.15 | G149: 69740.30 | H149: 75188.30 | I149: 76281.15 | J149: 77912.30 | K149: 74650 | L149: 71926 | M149: 0.48299
A150: 141 | B150: MRPL | C150: 28.1 | D150: 28.27 | E150: 27.83 | F150: 27.57 | G150: 27.13 | H150: 28.53 | I150: 28.97 | J150: 29.23 | K150: 28.7 | L150: 28 | M150: 17.58193
A151: 142 | B151: MUTHOOTFIN | C151: 1166.9 | D151: 1172.13 | E151: 1150.77 | F151: 1134.63 | G151: 1113.27 | H151: 1188.27 | I151: 1209.63 | J151: 1225.77 | K151: 1193.5 | L151: 1156 | M151: 24.47176
A152: 143 | B152: NAM-INDIA | C152: 289.2 | D152: 289.23 | E152: 286.47 | F152: 283.73 | G152: 280.97 | H152: 291.97 | I152: 294.73 | J152: 297.47 | K152: 292 | L152: 286.5 | M152: 6.28458
A153: 144 | B153: NATCOPHARM | C153: 911.4 | D153: 908.77 | E153: 902.83 | F153: 894.27 | G153: 888.33 | H153: 917.33 | I153: 923.27 | J153: 931.83 | K153: 914.7 | L153: 900.2 | M153: 2.57286
A154: 145 | B154: NATIONALUM | C154: 36.7 | D154: 36.30 | E154: 35.75 | F154: 34.80 | G154: 34.25 | H154: 37.25 | I154: 37.80 | J154: 38.75 | K154: 36.85 | L154: 35.35 | M154: 243.48128
A155: 146 | B155: NAUKRI | C155: 3925.25 | D155: 3891.55 | E155: 3834.90 | F155: 3744.55 | G155: 3687.90 | H155: 3981.90 | I155: 4038.55 | J155: 4128.90 | K155: 3948.2 | L155: 3801.2 | M155: 9.40379
A156: 147 | B156: NESTLEIND | C156: 16982.85 | D156: 16967.25 | E156: 16868.65 | F156: 16754.45 | G156: 16655.85 | H156: 17081.45 | I156: 17180.05 | J156: 17294.25 | K156: 17065.85 | L156: 16853.05 | M156: 1.19504
A157: 148 | B157: NHPC | C157: 20.55 | D157: 20.68 | E157: 20.42 | F157: 20.28 | G157: 20.02 | H157: 20.82 | I157: 21.08 | J157: 21.22 | K157: 20.95 | L157: 20.55 | M157: 34.07263
A158: 149 | B158: NMDC | C158: 96.05 | D158: 95.55 | E158: 94.00 | F158: 91.95 | G158: 90.40 | H158: 97.60 | I158: 99.15 | J158: 101.20 | K158: 97.1 | L158: 93.5 | M158: 167.37265
A159: 150 | B159: NTPC | C159: 88.7 | D159: 89.78 | E159: 87.17 | F159: 85.63 | G159: 83.02 | H159: 91.32 | I159: 93.93 | J159: 95.47 | K159: 92.4 | L159: 88.25 | M159: 553.24429
A160: 151 | B160: OBEROIRLTY | C160: 451.15 | D160: 449.95 | E160: 443.40 | F160: 435.65 | G160: 429.10 | H160: 457.70 | I160: 464.25 | J160: 472.00 | K160: 456.5 | L160: 442.2 | M160: 10.20865
A161: 152 | B161: OFSS | C161: 3068.65 | D161: 3076.85 | E161: 3041.80 | F161: 3014.95 | G161: 2979.90 | H161: 3103.70 | I161: 3138.75 | J161: 3165.60 | K161: 3111.9 | L161: 3050 | M161: 0.65036
A162: 153 | B162: OIL | C162: 93.05 | D162: 93.30 | E162: 92.45 | F162: 91.85 | G162: 91.00 | H162: 93.90 | I162: 94.75 | J162: 95.35 | K162: 94.15 | L162: 92.7 | M162: 6.37275
A163: 154 | B163: ONGC | C163: 71.3 | D163: 71.87 | E163: 70.43 | F163: 69.57 | G163: 68.13 | H163: 72.73 | I163: 74.17 | J163: 75.03 | K163: 73.3 | L163: 71 | M163: 188.52045
A164: 155 | B164: PAGEIND | C164: 22640.5 | D164: 22413.50 | E164: 22027.00 | F164: 21413.50 | G164: 21027.00 | H164: 23027.00 | I164: 23413.50 | J164: 24027.00 | K164: 22800 | L164: 21800 | M164: 0.70791
A165: 156 | B165: PEL | C165: 1411 | D165: 1422.10 | E165: 1374.10 | F165: 1337.20 | G165: 1289.20 | H165: 1459.00 | I165: 1507.00 | J165: 1543.90 | K165: 1470.1 | L165: 1385.2 | M165: 11.99249
A166: 157 | B166: PETRONET | C166: 259.35 | D166: 258.03 | E166: 255.82 | F166: 252.28 | G166: 250.07 | H166: 261.57 | I166: 263.78 | J166: 267.32 | K166: 260.25 | L166: 254.5 | M166: 47.6961
A167: 158 | B167: PFC | C167: 104 | D167: 103.43 | E167: 102.22 | F167: 100.43 | G167: 99.22 | H167: 105.22 | I167: 106.43 | J167: 108.22 | K167: 104.65 | L167: 101.65 | M167: 70.94651
A168: 159 | B168: PFIZER | C168: 4950.35 | D168: 5010.35 | E168: 4871.90 | F168: 4793.45 | G168: 4655.00 | H168: 5088.80 | I168: 5227.25 | J168: 5305.70 | K168: 5148.8 | L168: 4931.9 | M168: 2.07931
A169: 160 | B169: PGHH | C169: 10618.7 | D169: 10708.68 | E169: 10490.02 | F169: 10361.33 | G169: 10142.67 | H169: 10837.37 | I169: 11056.03 | J169: 11184.72 | K169: 10927.35 | L169: 10580 | M169: 0.05047
A170: 161 | B170: PIDILITIND | C170: 1561.9 | D170: 1571.82 | E170: 1546.23 | F170: 1530.57 | G170: 1504.98 | H170: 1587.48 | I170: 1613.07 | J170: 1628.73 | K170: 1597.4 | L170: 1556.15 | M170: 9.41894
A171: 162 | B171: PIIND | C171: 2379.4 | D171: 2379.32 | E171: 2338.63 | F171: 2297.87 | G171: 2257.18 | H171: 2420.08 | I171: 2460.77 | J171: 2501.53 | K171: 2420 | L171: 2338.55 | M171: 6.07854
A172: 163 | B172: PNB | C172: 29.85 | D172: 29.82 | E172: 29.43 | F172: 29.02 | G172: 28.63 | H172: 30.23 | I172: 30.62 | J172: 31.03 | K172: 30.2 | L172: 29.4 | M172: 308.80948
A173: 164 | B173: PNBHOUSING | C173: 389.55 | D173: 390.95 | E173: 386.60 | F173: 383.65 | G173: 379.30 | H173: 393.90 | I173: 398.25 | J173: 401.20 | K173: 395.3 | L173: 388 | M173: 1.54245
A174: 165 | B174: POLYCAB | C174: 928.1 | D174: 929.33 | E174: 923.77 | F174: 919.43 | G174: 913.87 | H174: 933.67 | I174: 939.23 | J174: 943.57 | K174: 934.9 | L174: 925 | M174: 1.1954
A175: 166 | B175: POWERGRID | C175: 186.8 | D175: 187.30 | E175: 185.35 | F175: 183.90 | G175: 181.95 | H175: 188.75 | I175: 190.70 | J175: 192.15 | K175: 189.25 | L175: 185.85 | M175: 94.90792
A176: 167 | B176: PRESTIGE | C176: 260.2 | D176: 260.85 | E176: 255.70 | F176: 251.20 | G176: 246.05 | H176: 265.35 | I176: 270.50 | J176: 275.00 | K176: 266 | L176: 256.35 | M176: 4.39406
A177: 168 | B177: QUESS | C177: 407.05 | D177: 407.37 | E177: 403.73 | F177: 400.42 | G177: 396.78 | H177: 410.68 | I177: 414.32 | J177: 417.63 | K177: 411 | L177: 404.05 | M177: 0.44308
A178: 169 | B178: RAJESHEXPO | C178: 465.5 | D178: 469.12 | E178: 459.38 | F178: 453.27 | G178: 443.53 | H178: 475.23 | I178: 484.97 | J178: 491.08 | K178: 478.85 | L178: 463 | M178: 1.74898
A179: 170 | B179: RAMCOCEM | C179: 864.45 | D179: 861.72 | E179: 854.98 | F179: 845.52 | G179: 838.78 | H179: 871.18 | I179: 877.92 | J179: 887.38 | K179: 868.45 | L179: 852.25 | M179: 6.09182
A180: 171 | B180: RBLBANK | C180: 212.3 | D180: 210.65 | E180: 207.90 | F180: 203.50 | G180: 200.75 | H180: 215.05 | I180: 217.80 | J180: 222.20 | K180: 213.4 | L180: 206.25 | M180: 201.73068
A181: 172 | B181: RECLTD | C181: 115.5 | D181: 114.47 | E181: 113.08 | F181: 110.67 | G181: 109.28 | H181: 116.88 | I181: 118.27 | J181: 120.68 | K181: 115.85 | L181: 112.05 | M181: 78.13029
A182: 173 | B182: RELIANCE | C182: 1993.25 | D182: 2021.08 | E182: 1957.17 | F182: 1921.08 | G182: 1857.17 | H182: 2057.17 | I182: 2121.08 | J182: 2157.17 | K182: 2085 | L182: 1985 | M182: 214.79385
A183: 174 | B183: SAIL | C183: 40.3 | D183: 40.37 | E183: 39.83 | F183: 39.37 | G183: 38.83 | H183: 40.83 | I183: 41.37 | J183: 41.83 | K183: 40.9 | L183: 39.9 | M183: 204.30699
A184: 175 | B184: SBICARD | C184: 782.95 | D184: 786.08 | E184: 777.17 | F184: 771.38 | G184: 762.47 | H184: 791.87 | I184: 800.78 | J184: 806.57 | K184: 795 | L184: 780.3 | M184: 13.12729
A185: 176 | B185: SBILIFE | C185: 863.15 | D185: 855.45 | E185: 844.00 | F185: 824.85 | G185: 813.40 | H185: 874.60 | I185: 886.05 | J185: 905.20 | K185: 866.9 | L185: 836.3 | M185: 21.40176
A186: 177 | B186: SBIN | C186: 240.2 | D186: 237.60 | E186: 233.60 | F186: 227.00 | G186: 223.00 | H186: 244.20 | I186: 248.20 | J186: 254.80 | K186: 241.6 | L186: 231 | M186: 805.01583
A187: 178 | B187: SHREECEM | C187: 23989.75 | D187: 23828.25 | E187: 23561.50 | F187: 23133.25 | G187: 22866.50 | H187: 24256.50 | I187: 24523.25 | J187: 24951.50 | K187: 24095 | L187: 23400 | M187: 0.87042
A188: 179 | B188: SIEMENS | C188: 1407.6 | D188: 1394.72 | E188: 1378.43 | F188: 1349.27 | G188: 1332.98 | H188: 1423.88 | I188: 1440.17 | J188: 1469.33 | K188: 1411 | L188: 1365.55 | M188: 3.4569
A189: 180 | B189: SRF | C189: 5062 | D189: 5091.92 | E189: 5005.58 | F189: 4949.17 | G189: 4862.83 | H189: 5148.33 | I189: 5234.67 | J189: 5291.08 | K189: 5178.25 | L189: 5035.5 | M189: 2.33538
A190: 181 | B190: SRTRANSFIN | C190: 861 | D190: 865.92 | E190: 852.08 | F190: 843.17 | G190: 829.33 | H190: 874.83 | I190: 888.67 | J190: 897.58 | K190: 879.75 | L190: 857 | M190: 31.45692
A191: 182 | B191: SUNPHARMA | C191: 518.4 | D191: 518.62 | E191: 513.83 | F191: 509.27 | G191: 504.48 | H191: 523.18 | I191: 527.97 | J191: 532.53 | K191: 523.4 | L191: 514.05 | M191: 124.11197
A192: 183 | B192: SUNTV | C192: 416.25 | D192: 420.42 | E192: 410.83 | F192: 405.42 | G192: 395.83 | H192: 425.83 | I192: 435.42 | J192: 440.83 | K192: 430 | L192: 415 | M192: 16.17872
A193: 184 | B193: SYNGENE | C193: 577.1 | D193: 573.35 | E193: 564.20 | F193: 551.30 | G193: 542.15 | H193: 586.25 | I193: 595.40 | J193: 608.30 | K193: 582.5 | L193: 560.45 | M193: 6.52355
A194: 185 | B194: TATACONSUM | C194: 518.3 | D194: 517.75 | E194: 513.65 | F194: 509.00 | G194: 504.90 | H194: 522.40 | I194: 526.50 | J194: 531.15 | K194: 521.85 | L194: 513.1 | M194: 27.74413
A195: 186 | B195: TATAMOTORS | C195: 158 | D195: 156.52 | E195: 153.68 | F195: 149.37 | G195: 146.53 | H195: 160.83 | I195: 163.67 | J195: 167.98 | K195: 159.35 | L195: 152.2 | M195: 826.44841
A196: 187 | B196: TATAPOWER | C196: 57.65 | D196: 57.25 | E196: 56.30 | F196: 54.95 | G196: 54.00 | H196: 58.60 | I196: 59.55 | J196: 60.90 | K196: 58.2 | L196: 55.9 | M196: 268.01425
A197: 188 | B197: TATASTEEL | C197: 522.7 | D197: 518.45 | E197: 505.95 | F197: 489.20 | G197: 476.70 | H197: 535.20 | I197: 547.70 | J197: 564.45 | K197: 530.95 | L197: 501.7 | M197: 642.84599
A198: 189 | B198: TCS | C198: 2666.05 | D198: 2670.37 | E198: 2645.73 | F198: 2625.42 | G198: 2600.78 | H198: 2690.68 | I198: 2715.32 | J198: 2735.63 | K198: 2695 | L198: 2650.05 | M198: 28.27273
A199: 190 | B199: TECHM | C199: 845.25 | D199: 844.22 | E199: 831.93 | F199: 818.62 | G199: 806.33 | H199: 857.53 | I199: 869.82 | J199: 883.13 | K199: 856.5 | L199: 830.9 | M199: 36.35434
A200: 191 | B200: TITAN | C200: 1301.95 | D200: 1294.68 | E200: 1284.57 | F200: 1267.18 | G200: 1257.07 | H200: 1312.07 | I200: 1322.18 | J200: 1339.57 | K200: 1304.8 | L200: 1277.3 | M200: 21.85705
A201: 192 | B201: TORNTPHARM | C201: 2656.2 | D201: 2678.42 | E201: 2616.83 | F201: 2577.47 | G201: 2515.88 | H201: 2717.78 | I201: 2779.37 | J201: 2818.73 | K201: 2740 | L201: 2639.05 | M201: 9.97314
A202: 193 | B202: TORNTPOWER | C202: 307 | D202: 306.60 | E202: 304.55 | F202: 302.10 | G202: 300.05 | H202: 309.05 | I202: 311.10 | J202: 313.55 | K202: 308.65 | L202: 304.15 | M202: 11.35739
A203: 194 | B203: TRENT | C203: 743.75 | D203: 753.85 | E203: 727.90 | F203: 712.05 | G203: 686.10 | H203: 769.70 | I203: 795.65 | J203: 811.50 | K203: 779.8 | L203: 738 | M203: 20.20786
A204: 195 | B204: TVSMOTOR | C204: 475.3 | D204: 475.35 | E204: 469.25 | F204: 463.20 | G204: 457.10 | H204: 481.40 | I204: 487.50 | J204: 493.55 | K204: 481.45 | L204: 469.3 | M204: 17.78137
A205: 196 | B205: UBL | C205: 1038.75 | D205: 1037.88 | E205: 1027.87 | F205: 1016.98 | G205: 1006.97 | H205: 1048.77 | I205: 1058.78 | J205: 1069.67 | K205: 1047.9 | L205: 1027 | M205: 3.35775
... 27 more rows

Sheet MidCap Intra
L5: Back To Main Page
A6: FOR INTRA DAY TRADING | K6: =Main!B10 -> 2020-11-18
A9: Sr.no | B9: Scrip | C9: CLOSE RATE | D9: Pivot Point | E9: Supports | H9: Resistances
C10: Point | E10: S1 | F10: S2 | G10: S3 | H10: R1 | I10: R2 | J10: R3 | K10: HIGH | L10: LOW | M10: Total Trade Quanity in Lakhs
A11: 1 | B11: 3MINDIA | C11: 21195.45 | D11: 20992.68 | E11: 20764.37 | F11: 20333.28 | G11: 20104.97 | H11: 21423.77 | I11: 21652.08 | J11: 22083.17 | K11: 21221 | L11: 20561.6 | M11: 0.07637
A12: 2 | B12: AARTIIND | C12: 1128.15 | D12: 1126.38 | E12: 1111.77 | F12: 1095.38 | G12: 1080.77 | H12: 1142.77 | I12: 1157.38 | J12: 1173.77 | K12: 1141 | L12: 1110 | M12: 4.74494
A13: 3 | B13: AAVAS | C13: 1470.7 | D13: 1480.20 | E13: 1455.40 | F13: 1440.10 | G13: 1415.30 | H13: 1495.50 | I13: 1520.30 | J13: 1535.60 | K13: 1505 | L13: 1464.9 | M13: 0.2939
A14: 4 | B14: ABB | C14: 982.85 | D14: 989.80 | E14: 973.05 | F14: 963.25 | G14: 946.50 | H14: 999.60 | I14: 1016.35 | J14: 1026.15 | K14: 1006.55 | L14: 980 | M14: 0.94002
A15: 5 | B15: ABBOTINDIA | C15: 15280.15 | D15: 15360.05 | E15: 15170.10 | F15: 15060.05 | G15: 14870.10 | H15: 15470.10 | I15: 15660.05 | J15: 15770.10 | K15: 15550 | L15: 15250 | M15: 0.15913
A16: 6 | B16: ABCAPITAL | C16: 81.65 | D16: 82.07 | E16: 79.68 | F16: 77.72 | G16: 75.33 | H16: 84.03 | I16: 86.42 | J16: 88.38 | K16: 84.45 | L16: 80.1 | M16: 63.32232
A17: 7 | B17: ABFRL | C17: 157.85 | D17: 157.37 | E17: 154.98 | F17: 152.12 | G17: 149.73 | H17: 160.23 | I17: 162.62 | J17: 165.48 | K17: 159.75 | L17: 154.5 | M17: 17.90034
A18: 8 | B18: ACC | C18: 1694.8 | D18: 1696.67 | E18: 1669.43 | F18: 1644.07 | G18: 1616.83 | H18: 1722.03 | I18: 1749.27 | J18: 1774.63 | K18: 1723.9 | L18: 1671.3 | M18: 26.26953
A19: 9 | B19: ADANIGAS | C19: 292.3 | D19: 276.15 | E19: 258.70 | F19: 225.10 | G19: 207.65 | H19: 309.75 | I19: 327.20 | J19: 360.80 | K19: 293.6 | L19: 242.55 | M19: 151.44641
A20: 10 | B20: ADANIGREEN | C20: 1058.45 | D20: 1046.17 | E20: 1033.33 | F20: 1008.22 | G20: 995.38 | H20: 1071.28 | I20: 1084.12 | J20: 1109.23 | K20: 1059 | L20: 1021.05 | M20: 53.33462
A21: 11 | B21: ADANIPORTS | C21: 379.65 | D21: 377.55 | E21: 368.35 | F21: 357.05 | G21: 347.85 | H21: 388.85 | I21: 398.05 | J21: 409.35 | K21: 386.75 | L21: 366.25 | M21: 111.92618
A22: 12 | B22: ADANIPOWER | C22: 37.5 | D22: 37.22 | E22: 36.68 | F22: 35.87 | G22: 35.33 | H22: 38.03 | I22: 38.57 | J22: 39.38 | K22: 37.75 | L22: 36.4 | M22: 111.99945
A23: 13 | B23: ADANITRANS | C23: 368.65 | D23: 360.45 | E23: 347.50 | F23: 326.35 | G23: 313.40 | H23: 381.60 | I23: 394.55 | J23: 415.70 | K23: 373.4 | L23: 339.3 | M23: 26.79615
A24: 14 | B24: ADVENZYMES | C24: 322.05 | D24: 326.67 | E24: 315.38 | F24: 308.72 | G24: 297.43 | H24: 333.33 | I24: 344.62 | J24: 351.28 | K24: 337.95 | L24: 320 | M24: 2.04198
A25: 15 | B25: AEGISCHEM | C25: 227.3 | D25: 224.82 | E25: 219.63 | F25: 211.97 | G25: 206.78 | H25: 232.48 | I25: 237.67 | J25: 245.33 | K25: 230 | L25: 217.15 | M25: 5.05587
A26: 16 | B26: AFFLE | C26: 3000.2 | D26: 2992.08 | E26: 2948.17 | F26: 2896.13 | G26: 2852.22 | H26: 3044.12 | I26: 3088.03 | J26: 3140.07 | K26: 3036 | L26: 2940.05 | M26: 1.21263
A27: 17 | B27: AIAENG | C27: 1741.7 | D27: 1749.60 | E27: 1729.25 | F27: 1716.80 | G27: 1696.45 | H27: 1762.05 | I27: 1782.40 | J27: 1794.85 | K27: 1769.95 | L27: 1737.15 | M27: 0.10893
A28: 18 | B28: AJANTPHARM | C28: 1552.15 | D28: 1551.32 | E28: 1536.83 | F28: 1521.52 | G28: 1507.03 | H28: 1566.63 | I28: 1581.12 | J28: 1596.43 | K28: 1565.8 | L28: 1536 | M28: 1.35842
A29: 19 | B29: AKZOINDIA | C29: 2033.25 | D29: 2023.42 | E29: 1999.83 | F29: 1966.42 | G29: 1942.83 | H29: 2056.83 | I29: 2080.42 | J29: 2113.83 | K29: 2047 | L29: 1990 | M29: 0.24975
A30: 20 | B30: ALKEM | C30: 2677.8 | D30: 2685.60 | E30: 2659.20 | F30: 2640.60 | G30: 2614.20 | H30: 2704.20 | I30: 2730.60 | J30: 2749.20 | K30: 2712 | L30: 2667 | M30: 2.03422
A31: 21 | B31: ALKYLAMINE | C31: 3308.45 | D31: 3327.82 | E31: 3255.63 | F31: 3202.82 | G31: 3130.63 | H31: 3380.63 | I31: 3452.82 | J31: 3505.63 | K31: 3400 | L31: 3275 | M31: 0.34536
A32: 22 | B32: ALLCARGO | C32: 127.45 | D32: 128.28 | E32: 125.57 | F32: 123.68 | G32: 120.97 | H32: 130.17 | I32: 132.88 | J32: 134.77 | K32: 131 | L32: 126.4 | M32: 10.15066
A33: 23 | B33: AMARAJABAT | C33: 832.9 | D33: 830.13 | E33: 823.87 | F33: 814.83 | G33: 808.57 | H33: 839.17 | I33: 845.43 | J33: 854.47 | K33: 836.4 | L33: 821.1 | M33: 5.35893
A34: 24 | B34: AMBER | C34: 2282.55 | D34: 2297.48 | E34: 2251.07 | F34: 2219.58 | G34: 2173.17 | H34: 2328.97 | I34: 2375.38 | J34: 2406.87 | K34: 2343.9 | L34: 2266 | M34: 0.88338
A35: 25 | B35: AMBUJACEM | C35: 268.05 | D35: 266.68 | E35: 261.37 | F35: 254.68 | G35: 249.37 | H35: 273.37 | I35: 278.68 | J35: 285.37 | K35: 272 | L35: 260 | M35: 132.07472
A36: 26 | B36: APLAPOLLO | C36: 3309.5 | D36: 3299.20 | E36: 3284.00 | F36: 3258.50 | G36: 3243.30 | H36: 3324.70 | I36: 3339.90 | J36: 3365.40 | K36: 3314.4 | L36: 3273.7 | M36: 0.3248
A37: 27 | B37: APLLTD | C37: 962.35 | D37: 971.72 | E37: 950.63 | F37: 938.92 | G37: 917.83 | H37: 983.43 | I37: 1004.52 | J37: 1016.23 | K37: 992.8 | L37: 960 | M37: 3.22892
A38: 28 | B38: APOLLOHOSP | C38: 2307.35 | D38: 2305.00 | E38: 2268.40 | F38: 2229.45 | G38: 2192.85 | H38: 2343.95 | I38: 2380.55 | J38: 2419.50 | K38: 2341.6 | L38: 2266.05 | M38: 18.32334
A39: 29 | B39: APOLLOTYRE | C39: 173.05 | D39: 170.78 | E39: 166.87 | F39: 160.68 | G39: 156.77 | H39: 176.97 | I39: 180.88 | J39: 187.07 | K39: 174.7 | L39: 164.6 | M39: 105.85162
A40: 30 | B40: ARVINDFASN | C40: 135.95 | D40: 134.22 | E40: 129.43 | F40: 122.92 | G40: 118.13 | H40: 140.73 | I40: 145.52 | J40: 152.03 | K40: 139 | L40: 127.7 | M40: 6.82217
A41: 31 | B41: ASAHIINDIA | C41: 240.95 | D41: 240.70 | E41: 236.40 | F41: 231.85 | G41: 227.55 | H41: 245.25 | I41: 249.55 | J41: 254.10 | K41: 245 | L41: 236.15 | M41: 0.53775
A42: 32 | B42: ASHOKA | C42: 71.3 | D42: 70.92 | E42: 69.98 | F42: 68.67 | G42: 67.73 | H42: 72.23 | I42: 73.17 | J42: 74.48 | K42: 71.85 | L42: 69.6 | M42: 18.49361
A43: 33 | B43: ASHOKLEY | C43: 91.75 | D43: 92.00 | E43: 90.85 | F43: 89.95 | G43: 88.80 | H43: 92.90 | I43: 94.05 | J43: 94.95 | K43: 93.15 | L43: 91.1 | M43: 276.49089
A44: 34 | B44: ASIANPAINT | C44: 2187.65 | D44: 2197.18 | E44: 2172.47 | F44: 2157.28 | G44: 2132.57 | H44: 2212.37 | I44: 2237.08 | J44: 2252.27 | K44: 2221.9 | L44: 2182 | M44: 16.99293
A45: 35 | B45: ASTERDM | C45: 164.65 | D45: 161.70 | E45: 156.95 | F45: 149.25 | G45: 144.50 | H45: 169.40 | I45: 174.15 | J45: 181.85 | K45: 166.45 | L45: 154 | M45: 7.07917
A46: 36 | B46: ASTRAL | C46: 1476.8 | D46: 1441.32 | E46: 1334.48 | F46: 1192.17 | G46: 1085.33 | H46: 1583.63 | I46: 1690.47 | J46: 1832.78 | K46: 1548.15 | L46: 1299 | M46: 11.75764
A47: 37 | B47: ASTRAZEN | C47: 4358.6 | D47: 4392.87 | E47: 4307.73 | F47: 4256.87 | G47: 4171.73 | H47: 4443.73 | I47: 4528.87 | J47: 4579.73 | K47: 4478 | L47: 4342 | M47: 0.45345
A48: 38 | B48: ATUL | C48: 6457.95 | D48: 6449.30 | E48: 6398.65 | F48: 6339.35 | G48: 6288.70 | H48: 6508.60 | I48: 6559.25 | J48: 6618.55 | K48: 6499.95 | L48: 6390 | M48: 0.17031
A49: 39 | B49: AUBANK | C49: 891.85 | D49: 882.08 | E49: 859.77 | F49: 827.68 | G49: 805.37 | H49: 914.17 | I49: 936.48 | J49: 968.57 | K49: 904.4 | L49: 850 | M49: 19.31599
A50: 40 | B50: AUROPHARMA | C50: 855.6 | D50: 859.98 | E50: 844.07 | F50: 832.53 | G50: 816.62 | H50: 871.52 | I50: 887.43 | J50: 898.97 | K50: 875.9 | L50: 848.45 | M50: 55.85491
A51: 41 | B51: AVANTIFEED | C51: 487 | D51: 479.95 | E51: 466.05 | F51: 445.10 | G51: 431.20 | H51: 500.90 | I51: 514.80 | J51: 535.75 | K51: 493.85 | L51: 459 | M51: 2.11416
A52: 42 | B52: AXISBANK | C52: 628.8 | D52: 622.90 | E52: 614.90 | F52: 601.00 | G52: 593.00 | H52: 636.80 | I52: 644.80 | J52: 658.70 | K52: 630.9 | L52: 609 | M52: 259.6006
A53: 43 | B53: BAJAJ-AUTO | C53: 3045.15 | D53: 3030.17 | E53: 3011.43 | F53: 2977.72 | G53: 2958.98 | H53: 3063.88 | I53: 3082.62 | J53: 3116.33 | K53: 3048.9 | L53: 2996.45 | M53: 5.01135
A54: 44 | B54: BAJAJCON | C54: 180.25 | D54: 180.80 | E54: 179.10 | F54: 177.95 | G54: 176.25 | H54: 181.95 | I54: 183.65 | J54: 184.80 | K54: 182.5 | L54: 179.65 | M54: 4.17024
A55: 45 | B55: BAJAJELEC | C55: 561.15 | D55: 556.00 | E55: 545.20 | F55: 529.25 | G55: 518.45 | H55: 571.95 | I55: 582.75 | J55: 598.70 | K55: 566.8 | L55: 540.05 | M55: 8.50594
A56: 46 | B56: BAJAJFINSV | C56: 7365.35 | D56: 7341.32 | E56: 7275.03 | F56: 7184.72 | G56: 7118.43 | H56: 7431.63 | I56: 7497.92 | J56: 7588.23 | K56: 7407.6 | L56: 7251 | M56: 11.72544
A57: 47 | B57: BAJAJHLDNG | C57: 2712.95 | D57: 2713.98 | E57: 2651.97 | F57: 2590.98 | G57: 2528.97 | H57: 2774.97 | I57: 2836.98 | J57: 2897.97 | K57: 2776 | L57: 2653 | M57: 1.26745
A58: 48 | B58: BAJFINANCE | C58: 4488 | D58: 4445.65 | E58: 4387.35 | F58: 4286.70 | G58: 4228.40 | H58: 4546.30 | I58: 4604.60 | J58: 4705.25 | K58: 4503.95 | L58: 4345 | M58: 58.51523
A59: 49 | B59: BALKRISIND | C59: 1613.1 | D59: 1604.70 | E59: 1584.40 | F59: 1555.70 | G59: 1535.40 | H59: 1633.40 | I59: 1653.70 | J59: 1682.40 | K59: 1625 | L59: 1576 | M59: 14.77904
A60: 50 | B60: BALMLAWRIE | C60: 100.75 | D60: 101.25 | E60: 100.10 | F60: 99.45 | G60: 98.30 | H60: 101.90 | I60: 103.05 | J60: 103.70 | K60: 102.4 | L60: 100.6 | M60: 2.0558
A61: 51 | B61: BALRAMCHIN | C61: 153.2 | D61: 153.43 | E61: 151.27 | F61: 149.33 | G61: 147.17 | H61: 155.37 | I61: 157.53 | J61: 159.47 | K61: 155.6 | L61: 151.5 | M61: 10.63306
A62: 52 | B62: BANDHANBNK | C62: 352.65 | D62: 351.52 | E62: 348.13 | F62: 343.62 | G62: 340.23 | H62: 356.03 | I62: 359.42 | J62: 363.93 | K62: 354.9 | L62: 347 | M62: 110.71629
A63: 53 | B63: BANKBARODA | C63: 47.55 | D63: 47.38 | E63: 46.87 | F63: 46.18 | G63: 45.67 | H63: 48.07 | I63: 48.58 | J63: 49.27 | K63: 47.9 | L63: 46.7 | M63: 214.94471
A64: 54 | B64: BANKINDIA | C64: 40.9 | D64: 41.05 | E64: 40.60 | F64: 40.30 | G64: 39.85 | H64: 41.35 | I64: 41.80 | J64: 42.10 | K64: 41.5 | L64: 40.75 | M64: 17.76083
A65: 55 | B65: BASF | C65: 1510.5 | D65: 1516.75 | E65: 1498.75 | F65: 1487.00 | G65: 1469.00 | H65: 1528.50 | I65: 1546.50 | J65: 1558.25 | K65: 1534.75 | L65: 1505 | M65: 0.31077
A66: 56 | B66: BATAINDIA | C66: 1376.65 | D66: 1368.35 | E66: 1356.70 | F66: 1336.75 | G66: 1325.10 | H66: 1388.30 | I66: 1399.95 | J66: 1419.90 | K66: 1380 | L66: 1348.4 | M66: 5.97702
A67: 57 | B67: BAYERCROP | C67: 5088.95 | D67: 5132.98 | E67: 5035.97 | F67: 4982.98 | G67: 4885.97 | H67: 5185.97 | I67: 5282.98 | J67: 5335.97 | K67: 5230 | L67: 5080 | M67: 0.3096
A68: 58 | B68: BBTC | C68: 1278.75 | D68: 1273.02 | E68: 1256.03 | F68: 1233.32 | G68: 1216.33 | H68: 1295.73 | I68: 1312.72 | J68: 1335.43 | K68: 1290 | L68: 1250.3 | M68: 0.82061
A69: 59 | B69: BDL | C69: 306.9 | D69: 308.58 | E69: 303.12 | F69: 299.33 | G69: 293.87 | H69: 312.37 | I69: 317.83 | J69: 321.62 | K69: 314.05 | L69: 304.8 | M69: 1.55515
A70: 60 | B70: BEL | C70: 96.15 | D70: 96.55 | E70: 95.35 | F70: 94.55 | G70: 93.35 | H70: 97.35 | I70: 98.55 | J70: 99.35 | K70: 97.75 | L70: 95.75 | M70: 45.36016
A71: 61 | B71: BEML | C71: 620.2 | D71: 620.65 | E71: 615.80 | F71: 611.40 | G71: 606.55 | H71: 625.05 | I71: 629.90 | J71: 634.30 | K71: 625.5 | L71: 616.25 | M71: 2.39361
A72: 62 | B72: BERGEPAINT | C72: 647.1 | D72: 647.22 | E72: 639.43 | F72: 631.77 | G72: 623.98 | H72: 654.88 | I72: 662.67 | J72: 670.33 | K72: 655 | L72: 639.55 | M72: 8.13193
A73: 63 | B73: BHARATFORG | C73: 495 | D73: 493.70 | E73: 487.80 | F73: 480.60 | G73: 474.70 | H73: 500.90 | I73: 506.80 | J73: 514.00 | K73: 499.6 | L73: 486.5 | M73: 32.3904
A74: 64 | B74: BHARATRAS | C74: 8733.4 | D74: 8783.78 | E74: 8569.57 | F74: 8405.73 | G74: 8191.52 | H74: 8947.62 | I74: 9161.83 | J74: 9325.67 | K74: 8998 | L74: 8619.95 | M74: 0.048
A75: 65 | B75: BHARTIARTL | C75: 484.55 | D75: 486.92 | E75: 478.88 | F75: 473.22 | G75: 465.18 | H75: 492.58 | I75: 500.62 | J75: 506.28 | K75: 494.95 | L75: 481.25 | M75: 186.99305
A76: 66 | B76: BHEL | C76: 28.25 | D76: 28.32 | E76: 28.03 | F76: 27.82 | G76: 27.53 | H76: 28.53 | I76: 28.82 | J76: 29.03 | K76: 28.6 | L76: 28.1 | M76: 156.66967
A77: 67 | B77: BIOCON | C77: 428.15 | D77: 429.13 | E77: 421.92 | F77: 415.68 | G77: 408.47 | H77: 435.37 | I77: 442.58 | J77: 448.82 | K77: 436.35 | L77: 422.9 | M77: 34.59673
A78: 68 | B78: BIRLACORPN | C78: 764.7 | D78: 766.57 | E78: 754.13 | F78: 743.57 | G78: 731.13 | H78: 777.13 | I78: 789.57 | J78: 800.13 | K78: 779 | L78: 756 | M78: 3.74174
A79: 69 | B79: BLISSGVS | C79: 167.3 | D79: 167.47 | E79: 164.93 | F79: 162.57 | G79: 160.03 | H79: 169.83 | I79: 172.37 | J79: 174.73 | K79: 170 | L79: 165.1 | M79: 4.06946
A80: 70 | B80: BLUEDART | C80: 4224.1 | D80: 4219.63 | E80: 4139.47 | F80: 4054.83 | G80: 3974.67 | H80: 4304.27 | I80: 4384.43 | J80: 4469.07 | K80: 4299.8 | L80: 4135 | M80: 0.33978
A81: 71 | B81: BLUESTARCO | C81: 695.65 | D81: 691.88 | E81: 683.77 | F81: 671.88 | G81: 663.77 | H81: 703.77 | I81: 711.88 | J81: 723.77 | K81: 700 | L81: 680 | M81: 1.05644
A82: 72 | B82: BOMDYEING | C82: 68.7 | D82: 67.65 | E82: 65.75 | F82: 62.80 | G82: 60.90 | H82: 70.60 | I82: 72.50 | J82: 75.45 | K82: 69.55 | L82: 64.7 | M82: 44.59466
A83: 73 | B83: BOSCHLTD | C83: 11621.15 | D83: 11724.77 | E83: 11481.43 | F83: 11341.72 | G83: 11098.38 | H83: 11864.48 | I83: 12107.82 | J83: 12247.53 | K83: 11968.1 | L83: 11585.05 | M83: 0.85398
A84: 74 | B84: BPCL | C84: 394.65 | D84: 400.58 | E84: 386.17 | F84: 377.68 | G84: 363.27 | H84: 409.07 | I84: 423.48 | J84: 431.97 | K84: 415 | L84: 392.1 | M84: 221.48246
A85: 75 | B85: BRIGADE | C85: 218.6 | D85: 214.90 | E85: 209.80 | F85: 201.00 | G85: 195.90 | H85: 223.70 | I85: 228.80 | J85: 237.60 | K85: 220 | L85: 206.1 | M85: 15.20061
A86: 76 | B86: BRITANNIA | C86: 3509.8 | D86: 3521.40 | E86: 3492.80 | F86: 3475.80 | G86: 3447.20 | H86: 3538.40 | I86: 3567.00 | J86: 3584.00 | K86: 3550 | L86: 3504.4 | M86: 6.94643
A87: 77 | B87: BSE | C87: 532.7 | D87: 528.40 | E87: 519.30 | F87: 505.90 | G87: 496.80 | H87: 541.80 | I87: 550.90 | J87: 564.30 | K87: 537.5 | L87: 515 | M87: 4.53828
A88: 78 | B88: BSOFT | C88: 183.4 | D88: 183.43 | E88: 180.07 | F88: 176.73 | G88: 173.37 | H88: 186.77 | I88: 190.13 | J88: 193.47 | K88: 186.8 | L88: 180.1 | M88: 8.98493
A89: 79 | B89: CADILAHC | C89: 429.85 | D89: 429.93 | E89: 425.92 | F89: 421.98 | G89: 417.97 | H89: 433.87 | I89: 437.88 | J89: 441.82 | K89: 433.95 | L89: 426 | M89: 38.4992
A90: 80 | B90: CANBK | C90: 92.45 | D90: 92.75 | E90: 91.75 | F90: 91.05 | G90: 90.05 | H90: 93.45 | I90: 94.45 | J90: 95.15 | K90: 93.75 | L90: 92.05 | M90: 61.69645
A91: 81 | B91: CANFINHOME | C91: 484.8 | D91: 480.60 | E91: 475.70 | F91: 466.60 | G91: 461.70 | H91: 489.70 | I91: 494.60 | J91: 503.70 | K91: 485.5 | L91: 471.5 | M91: 5.00016
A92: 82 | B92: CAPLIPOINT | C92: 471.6 | D92: 476.40 | E92: 463.30 | F92: 455.00 | G92: 441.90 | H92: 484.70 | I92: 497.80 | J92: 506.10 | K92: 489.5 | L92: 468.1 | M92: 1.37535
A93: 83 | B93: CARBORUNIV | C93: 312.05 | D93: 308.65 | E93: 297.90 | F93: 283.75 | G93: 273.00 | H93: 322.80 | I93: 333.55 | J93: 347.70 | K93: 319.4 | L93: 294.5 | M93: 6.73397
A94: 84 | B94: CARERATING | C94: 442.8 | D94: 447.43 | E94: 430.47 | F94: 418.13 | G94: 401.17 | H94: 459.77 | I94: 476.73 | J94: 489.07 | K94: 464.4 | L94: 435.1 | M94: 4.99761
A95: 85 | B95: CASTROLIND | C95: 116 | D95: 116.40 | E95: 115.00 | F95: 114.00 | G95: 112.60 | H95: 117.40 | I95: 118.80 | J95: 119.80 | K95: 117.8 | L95: 115.4 | M95: 17.18747
A96: 86 | B96: CCL | C96: 247.5 | D96: 246.20 | E96: 243.75 | F96: 240.00 | G96: 237.55 | H96: 249.95 | I96: 252.40 | J96: 256.15 | K96: 248.65 | L96: 242.45 | M96: 0.90489
A97: 87 | B97: CDSL | C97: 506.2 | D97: 502.68 | E97: 490.52 | F97: 474.83 | G97: 462.67 | H97: 518.37 | I97: 530.53 | J97: 546.22 | K97: 514.85 | L97: 487 | M97: 22.55985
A98: 88 | B98: CEATLTD | C98: 1130.55 | D98: 1140.58 | E98: 1111.27 | F98: 1091.98 | G98: 1062.67 | H98: 1159.87 | I98: 1189.18 | J98: 1208.47 | K98: 1169.9 | L98: 1121.3 | M98: 3.55781
A99: 89 | B99: CENTRALBK | C99: 11.7 | D99: 11.67 | E99: 11.58 | F99: 11.47 | G99: 11.38 | H99: 11.78 | I99: 11.87 | J99: 11.98 | K99: 11.75 | L99: 11.55 | M99: 29.85814
A100: 90 | B100: CENTURYPLY | C100: 202.1 | D100: 200.87 | E100: 194.83 | F100: 187.57 | G100: 181.53 | H100: 208.13 | I100: 214.17 | J100: 221.43 | K100: 206.9 | L100: 193.6 | M100: 15.92892
A101: 91 | B101: CENTURYTEX | C101: 315.05 | D101: 315.70 | E101: 311.90 | F101: 308.75 | G101: 304.95 | H101: 318.85 | I101: 322.65 | J101: 325.80 | K101: 319.5 | L101: 312.55 | M101: 10.90054
A102: 92 | B102: CERA | C102: 3097.35 | D102: 3110.18 | E102: 3057.17 | F102: 3016.98 | G102: 2963.97 | H102: 3150.37 | I102: 3203.38 | J102: 3243.57 | K102: 3163.2 | L102: 3070 | M102: 0.17166
A103: 93 | B103: CESC | C103: 582.5 | D103: 583.22 | E103: 578.43 | F103: 574.37 | G103: 569.58 | H103: 587.28 | I103: 592.07 | J103: 596.13 | K103: 588 | L103: 579.15 | M103: 1.53874
A104: 94 | B104: CGCL | C104: 248.2 | D104: 249.60 | E104: 245.00 | F104: 241.80 | G104: 237.20 | H104: 252.80 | I104: 257.40 | J104: 260.60 | K104: 254.2 | L104: 246.4 | M104: 2.02486
A105: 95 | B105: CHAMBLFERT | C105: 186.2 | D105: 186.40 | E105: 183.50 | F105: 180.80 | G105: 177.90 | H105: 189.10 | I105: 192.00 | J105: 194.70 | K105: 189.3 | L105: 183.7 | M105: 11.98297
A106: 96 | B106: CHENNPETRO | C106: 79.8 | D106: 80.30 | E106: 78.60 | F106: 77.40 | G106: 75.70 | H106: 81.50 | I106: 83.20 | J106: 84.40 | K106: 82 | L106: 79.1 | M106: 10.05317
A107: 97 | B107: CHOLAFIN | C107: 322.5 | D107: 318.90 | E107: 313.30 | F107: 304.10 | G107: 298.50 | H107: 328.10 | I107: 333.70 | J107: 342.90 | K107: 324.5 | L107: 309.7 | M107: 49.44101
A108: 98 | B108: CHOLAHLDNG | C108: 446.5 | D108: 442.50 | E108: 436.00 | F108: 425.50 | G108: 419.00 | H108: 453.00 | I108: 459.50 | J108: 470.00 | K108: 449 | L108: 432 | M108: 0.68537
A109: 99 | B109: CIPLA | C109: 742.55 | D109: 742.82 | E109: 733.73 | F109: 724.92 | G109: 715.83 | H109: 751.63 | I109: 760.72 | J109: 769.53 | K109: 751.9 | L109: 734 | M109: 73.13289
A110: 100 | B110: COALINDIA | C110: 128.7 | D110: 128.40 | E110: 127.50 | F110: 126.30 | G110: 125.40 | H110: 129.60 | I110: 130.50 | J110: 131.70 | K110: 129.3 | L110: 127.2 | M110: 203.69194
A111: 101 | B111: COCHINSHIP | C111: 339.15 | D111: 340.50 | E111: 336.95 | F111: 334.75 | G111: 331.20 | H111: 342.70 | I111: 346.25 | J111: 348.45 | K111: 344.05 | L111: 338.3 | M111: 2.85967
A112: 102 | B112: COFORGE | C112: 2303.9 | D112: 2301.75 | E112: 2274.50 | F112: 2245.10 | G112: 2217.85 | H112: 2331.15 | I112: 2358.40 | J112: 2387.80 | K112: 2329 | L112: 2272.35 | M112: 2.73684
A113: 103 | B113: COLPAL | C113: 1533.45 | D113: 1526.42 | E113: 1510.83 | F113: 1488.22 | G113: 1472.63 | H113: 1549.03 | I113: 1564.62 | J113: 1587.23 | K113: 1542 | L113: 1503.8 | M113: 7.38588
A114: 104 | B114: CONCOR | C114: 409.05 | D114: 409.28 | E114: 401.72 | F114: 394.38 | G114: 386.82 | H114: 416.62 | I114: 424.18 | J114: 431.52 | K114: 416.85 | L114: 401.95 | M114: 29.92236
A115: 105 | B115: COROMANDEL | C115: 789.55 | D115: 776.52 | E115: 760.03 | F115: 730.52 | G115: 714.03 | H115: 806.03 | I115: 822.52 | J115: 852.03 | K115: 793 | L115: 747 | M115: 6.06981
A116: 106 | B116: CREDITACC | C116: 719.75 | D116: 713.37 | E116: 701.73 | F116: 683.72 | G116: 672.08 | H116: 731.38 | I116: 743.02 | J116: 761.03 | K116: 725 | L116: 695.35 | M116: 1.62808
A117: 107 | B117: CRISIL | C117: 2022.6 | D117: 2010.20 | E117: 1992.40 | F117: 1962.20 | G117: 1944.40 | H117: 2040.40 | I117: 2058.20 | J117: 2088.40 | K117: 2028 | L117: 1980 | M117: 0.437
A118: 108 | B118: CROMPTON | C118: 294.3 | D118: 294.30 | E118: 288.20 | F118: 282.10 | G118: 276.00 | H118: 300.40 | I118: 306.50 | J118: 312.60 | K118: 300.4 | L118: 288.2 | M118: 20.22516
A119: 109 | B119: CSBBANK | C119: 251.95 | D119: 254.45 | E119: 247.90 | F119: 243.85 | G119: 237.30 | H119: 258.50 | I119: 265.05 | J119: 269.10 | K119: 261 | L119: 250.4 | M119: 1.65797
A120: 110 | B120: CUB | C120: 188.1 | D120: 187.78 | E120: 183.57 | F120: 179.03 | G120: 174.82 | H120: 192.32 | I120: 196.53 | J120: 201.07 | K120: 192 | L120: 183.25 | M120: 22.79455
A121: 111 | B121: CUMMINSIND | C121: 493 | D121: 490.13 | E121: 482.37 | F121: 471.73 | G121: 463.97 | H121: 500.77 | I121: 508.53 | J121: 519.17 | K121: 497.9 | L121: 479.5 | M121: 26.5192
A122: 112 | B122: CYIENT | C122: 428.75 | D122: 430.60 | E122: 424.15 | F122: 419.55 | G122: 413.10 | H122: 435.20 | I122: 441.65 | J122: 446.25 | K122: 437.05 | L122: 426 | M122: 6.64968
A123: 113 | B123: DABUR | C123: 511.65 | D123: 514.45 | E123: 506.70 | F123: 501.75 | G123: 494.00 | H123: 519.40 | I123: 527.15 | J123: 532.10 | K123: 522.2 | L123: 509.5 | M123: 30.16364
A124: 114 | B124: DALBHARAT | C124: 982 | D124: 977.30 | E124: 964.70 | F124: 947.40 | G124: 934.80 | H124: 994.60 | I124: 1007.20 | J124: 1024.50 | K124: 989.9 | L124: 960 | M124: 3.05803
A125: 115 | B125: DBCORP | C125: 76.15 | D125: 76.28 | E125: 75.37 | F125: 74.58 | G125: 73.67 | H125: 77.07 | I125: 77.98 | J125: 78.77 | K125: 77.2 | L125: 75.5 | M125: 0.89197
A126: 116 | B126: DBL | C126: 361.7 | D126: 359.22 | E126: 355.48 | F126: 349.27 | G126: 345.53 | H126: 365.43 | I126: 369.17 | J126: 375.38 | K126: 362.95 | L126: 353 | M126: 1.69812
A127: 117 | B127: DCAL | C127: 144.85 | D127: 142.72 | E127: 138.13 | F127: 131.42 | G127: 126.83 | H127: 149.43 | I127: 154.02 | J127: 160.73 | K127: 147.3 | L127: 136 | M127: 6.50803
A128: 118 | B128: DCBBANK | C128: 90.9 | D128: 91.10 | E128: 89.85 | F128: 88.80 | G128: 87.55 | H128: 92.15 | I128: 93.40 | J128: 94.45 | K128: 92.35 | L128: 90.05 | M128: 20.5783
A129: 119 | B129: DCMSHRIRAM | C129: 339.95 | D129: 338.82 | E129: 336.18 | F129: 332.42 | G129: 329.78 | H129: 342.58 | I129: 345.22 | J129: 348.98 | K129: 341.45 | L129: 335.05 | M129: 0.58701
A130: 120 | B130: DEEPAKNTR | C130: 803.15 | D130: 809.83 | E130: 793.82 | F130: 784.48 | G130: 768.47 | H130: 819.17 | I130: 835.18 | J130: 844.52 | K130: 825.85 | L130: 800.5 | M130: 6.22246
A131: 121 | B131: DELTACORP | C131: 132.55 | D131: 133.20 | E131: 129.60 | F131: 126.65 | G131: 123.05 | H131: 136.15 | I131: 139.75 | J131: 142.70 | K131: 136.8 | L131: 130.25 | M131: 24.6821
A132: 122 | B132: DHANUKA | C132: 704.15 | D132: 706.63 | E132: 696.57 | F132: 688.98 | G132: 678.92 | H132: 714.22 | I132: 724.28 | J132: 731.87 | K132: 716.7 | L132: 699.05 | M132: 0.40002
A133: 123 | B133: DISHTV | C133: 10.45 | D133: 10.53 | E133: 10.27 | F133: 10.08 | G133: 9.82 | H133: 10.72 | I133: 10.98 | J133: 11.17 | K133: 10.8 | L133: 10.35 | M133: 71.2806
A134: 124 | B134: DIVISLAB | C134: 3427 | D134: 3437.33 | E134: 3384.67 | F134: 3342.33 | G134: 3289.67 | H134: 3479.67 | I134: 3532.33 | J134: 3574.67 | K134: 3490 | L134: 3395 | M134: 16.52851
A135: 125 | B135: DIXON | C135: 10097.25 | D135: 10110.75 | E135: 9936.50 | F135: 9775.75 | G135: 9601.50 | H135: 10271.50 | I135: 10445.75 | J135: 10606.50 | K135: 10285 | L135: 9950 | M135: 0.45433
A136: 126 | B136: DLF | C136: 188.35 | D136: 187.68 | E136: 184.67 | F136: 180.98 | G136: 177.97 | H136: 191.37 | I136: 194.38 | J136: 198.07 | K136: 190.7 | L136: 184 | M136: 133.19247
A137: 127 | B137: DMART | C137: 2432.15 | D137: 2438.08 | E137: 2368.22 | F137: 2304.28 | G137: 2234.42 | H137: 2502.02 | I137: 2571.88 | J137: 2635.82 | K137: 2507.95 | L137: 2374.15 | M137: 11.27375
A138: 128 | B138: DRREDDY | C138: 4784.15 | D138: 4811.33 | E138: 4742.82 | F138: 4701.48 | G138: 4632.97 | H138: 4852.67 | I138: 4921.18 | J138: 4962.52 | K138: 4879.85 | L138: 4770 | M138: 12.83213
A139: 129 | B139: ECLERX | C139: 716.4 | D139: 717.58 | E139: 711.17 | F139: 705.93 | G139: 699.52 | H139: 722.82 | I139: 729.23 | J139: 734.47 | K139: 724 | L139: 712.35 | M139: 0.34038
A140: 130 | B140: EDELWEISS | C140: 57.75 | D140: 56.77 | E140: 55.78 | F140: 53.82 | G140: 52.83 | H140: 58.73 | I140: 59.72 | J140: 61.68 | K140: 57.75 | L140: 54.8 | M140: 86.89948
A141: 131 | B141: EICHERMOT | C141: 2541.7 | D141: 2532.28 | E141: 2500.57 | F141: 2459.43 | G141: 2427.72 | H141: 2573.42 | I141: 2605.13 | J141: 2646.27 | K141: 2564 | L141: 2491.15 | M141: 21.12263
A142: 132 | B142: EIDPARRY | C142: 300.15 | D142: 295.38 | E142: 288.32 | F142: 276.48 | G142: 269.42 | H142: 307.22 | I142: 314.28 | J142: 326.12 | K142: 302.45 | L142: 283.55 | M142: 6.70279
A143: 133 | B143: EIHOTEL | C143: 88.4 | D143: 87.23 | E143: 84.52 | F143: 80.63 | G143: 77.92 | H143: 91.12 | I143: 93.83 | J143: 97.72 | K143: 89.95 | L143: 83.35 | M143: 29.95066
A144: 134 | B144: ELGIEQUIP | C144: 117.9 | D144: 119.30 | E144: 116.10 | F144: 114.30 | G144: 111.10 | H144: 121.10 | I144: 124.30 | J144: 126.10 | K144: 122.5 | L144: 117.5 | M144: 0.59469
A145: 135 | B145: EMAMILTD | C145: 382.5 | D145: 382.75 | E145: 377.10 | F145: 371.70 | G145: 366.05 | H145: 388.15 | I145: 393.80 | J145: 399.20 | K145: 388.4 | L145: 377.35 | M145: 4.01021
A146: 136 | B146: ENDURANCE | C146: 1026.55 | D146: 1032.50 | E146: 1015.10 | F146: 1003.65 | G146: 986.25 | H146: 1043.95 | I146: 1061.35 | J146: 1072.80 | K146: 1049.9 | L146: 1021.05 | M146: 2.57343
A147: 137 | B147: ENGINERSIN | C147: 70.65 | D147: 70.93 | E147: 70.27 | F147: 69.88 | G147: 69.22 | H147: 71.32 | I147: 71.98 | J147: 72.37 | K147: 71.6 | L147: 70.55 | M147: 14.21118
A148: 138 | B148: EQUITAS | C148: 51.95 | D148: 52.08 | E148: 51.52 | F148: 51.08 | G148: 50.52 | H148: 52.52 | I148: 53.08 | J148: 53.52 | K148: 52.65 | L148: 51.65 | M148: 48.80259
A149: 139 | B149: ERIS | C149: 527.95 | D149: 519.30 | E149: 506.10 | F149: 484.25 | G149: 471.05 | H149: 541.15 | I149: 554.35 | J149: 576.20 | K149: 532.5 | L149: 497.45 | M149: 1.5455
A150: 140 | B150: ESABINDIA | C150: 1363.7 | D150: 1369.23 | E150: 1345.47 | F150: 1327.23 | G150: 1303.47 | H150: 1387.47 | I150: 1411.23 | J150: 1429.47 | K150: 1393 | L150: 1351 | M150: 0.03238
A151: 141 | B151: ESCORTS | C151: 1422.3 | D151: 1419.03 | E151: 1404.27 | F151: 1386.23 | G151: 1371.47 | H151: 1437.07 | I151: 1451.83 | J151: 1469.87 | K151: 1433.8 | L151: 1401 | M151: 16.95746
A152: 143 | B152: EXIDEIND | C152: 170.35 | D152: 170.63 | E152: 169.27 | F152: 168.18 | G152: 166.82 | H152: 171.72 | I152: 173.08 | J152: 174.17 | K152: 172 | L152: 169.55 | M152: 48.65825
A153: 144 | B153: FCONSUMER | C153: 7.2 | D153: 7.18 | E153: 7.02 | F153: 6.83 | G153: 6.67 | H153: 7.37 | I153: 7.53 | J153: 7.72 | K153: 7.35 | L153: 7 | M153: 91.63076
A154: 145 | B154: FDC | C154: 324.8 | D154: 327.92 | E154: 318.88 | F154: 312.97 | G154: 303.93 | H154: 333.83 | I154: 342.87 | J154: 348.78 | K154: 336.95 | L154: 322 | M154: 2.01892
A155: 146 | B155: FEDERALBNK | C155: 58.05 | D155: 57.83 | E155: 57.12 | F155: 56.18 | G155: 55.47 | H155: 58.77 | I155: 59.48 | J155: 60.42 | K155: 58.55 | L155: 56.9 | M155: 346.51878
A156: 147 | B156: FINCABLES | C156: 276.8 | D156: 276.62 | E156: 274.83 | F156: 272.87 | G156: 271.08 | H156: 278.58 | I156: 280.37 | J156: 282.33 | K156: 278.4 | L156: 274.65 | M156: 1.74644
A157: 148 | B157: FINEORG | C157: 2596.85 | D157: 2608.57 | E157: 2569.13 | F157: 2541.42 | G157: 2501.98 | H157: 2636.28 | I157: 2675.72 | J157: 2703.43 | K157: 2648 | L157: 2580.85 | M157: 0.4984
A158: 149 | B158: FINPIPE | C158: 610.75 | D158: 610.58 | E158: 598.17 | F158: 585.58 | G158: 573.17 | H158: 623.17 | I158: 635.58 | J158: 648.17 | K158: 623 | L158: 598 | M158: 1.25981
A159: 150 | B159: FLUOROCHEM | C159: 528.25 | D159: 531.63 | E159: 521.77 | F159: 515.28 | G159: 505.42 | H159: 538.12 | I159: 547.98 | J159: 554.47 | K159: 541.5 | L159: 525.15 | M159: 1.27951
A160: 151 | B160: FORTIS | C160: 141.85 | D160: 141.63 | E160: 138.77 | F160: 135.68 | G160: 132.82 | H160: 144.72 | I160: 147.58 | J160: 150.67 | K160: 144.5 | L160: 138.55 | M160: 18.51079
A161: 152 | B161: FRETAIL | C161: 68.35 | D161: 69.07 | E161: 66.83 | F161: 65.32 | G161: 63.08 | H161: 70.58 | I161: 72.82 | J161: 74.33 | K161: 71.3 | L161: 67.55 | M161: 69.86162
A162: 153 | B162: FSL | C162: 75.9 | D162: 75.30 | E162: 73.95 | F162: 72.00 | G162: 70.65 | H162: 77.25 | I162: 78.60 | J162: 80.55 | K162: 76.65 | L162: 73.35 | M162: 29.14693
A163: 154 | B163: GAIL | C163: 93.55 | D163: 93.97 | E163: 92.63 | F163: 91.72 | G163: 90.38 | H163: 94.88 | I163: 96.22 | J163: 97.13 | K163: 95.3 | L163: 93.05 | M163: 122.27481
A164: 155 | B164: GALAXYSURF | C164: 1945.6 | D164: 1919.12 | E164: 1851.48 | F164: 1757.37 | G164: 1689.73 | H164: 2013.23 | I164: 2080.87 | J164: 2174.98 | K164: 1986.75 | L164: 1825 | M164: 0.77702
A165: 156 | B165: GARFIBRES | C165: 2110.6 | D165: 2099.40 | E165: 2063.80 | F165: 2017.00 | G165: 1981.40 | H165: 2146.20 | I165: 2181.80 | J165: 2228.60 | K165: 2135 | L165: 2052.6 | M165: 0.30643
A166: 157 | B166: GEPIL | C166: 275.1 | D166: 271.07 | E166: 267.03 | F166: 258.97 | G166: 254.93 | H166: 279.13 | I166: 283.17 | J166: 291.23 | K166: 275.1 | L166: 263 | M166: 6.79149
A167: 158 | B167: GESHIP | C167: 248.5 | D167: 246.08 | E167: 242.17 | F167: 235.83 | G167: 231.92 | H167: 252.42 | I167: 256.33 | J167: 262.67 | K167: 250 | L167: 239.75 | M167: 3.38234
A168: 159 | B168: GET&D | C168: 93.45 | D168: 93.62 | E168: 92.23 | F168: 91.02 | G168: 89.63 | H168: 94.83 | I168: 96.22 | J168: 97.43 | K168: 95 | L168: 92.4 | M168: 0.76812
A169: 160 | B169: GHCL | C169: 166.9 | D169: 166.95 | E169: 163.80 | F169: 160.70 | G169: 157.55 | H169: 170.05 | I169: 173.20 | J169: 176.30 | K169: 170.1 | L169: 163.85 | M169: 2.49316
A170: 161 | B170: GICRE | C170: 126.05 | D170: 126.23 | E170: 124.07 | F170: 122.08 | G170: 119.92 | H170: 128.22 | I170: 130.38 | J170: 132.37 | K170: 128.4 | L170: 124.25 | M170: 4.25987
A171: 162 | B171: GILLETTE | C171: 5878.05 | D171: 5832.02 | E171: 5701.03 | F171: 5524.02 | G171: 5393.03 | H171: 6009.03 | I171: 6140.02 | J171: 6317.03 | K171: 5963 | L171: 5655 | M171: 0.27871
A172: 163 | B172: GLAXO | C172: 1444.05 | D172: 1443.63 | E172: 1432.92 | F172: 1421.78 | G172: 1411.07 | H172: 1454.77 | I172: 1465.48 | J172: 1476.62 | K172: 1454.35 | L172: 1432.5 | M172: 0.37928
A173: 164 | B173: GLENMARK | C173: 487.2 | D173: 486.62 | E173: 481.33 | F173: 475.47 | G173: 470.18 | H173: 492.48 | I173: 497.77 | J173: 503.63 | K173: 491.9 | L173: 480.75 | M173: 18.22612
A174: 165 | B174: GMDCLTD | C174: 45.85 | D174: 45.07 | E174: 43.83 | F174: 41.82 | G174: 40.58 | H174: 47.08 | I174: 48.32 | J174: 50.33 | K174: 46.3 | L174: 43.05 | M174: 42.68297
A175: 166 | B175: GMMPFAUDLR | C175: 3528.2 | D175: 3496.17 | E175: 3422.03 | F175: 3315.87 | G175: 3241.73 | H175: 3602.33 | I175: 3676.47 | J175: 3782.63 | K175: 3570.3 | L175: 3390 | M175: 0.585
A176: 167 | B176: GMRINFRA | C176: 24.35 | D176: 24.43 | E176: 24.02 | F176: 23.68 | G176: 23.27 | H176: 24.77 | I176: 25.18 | J176: 25.52 | K176: 24.85 | L176: 24.1 | M176: 97.58745
A177: 168 | B177: GNFC | C177: 190.9 | D177: 193.18 | E177: 187.72 | F177: 184.53 | G177: 179.07 | H177: 196.37 | I177: 201.83 | J177: 205.02 | K177: 198.65 | L177: 190 | M177: 5.33539
A178: 169 | B178: GODFRYPHLP | C178: 875.25 | D178: 871.67 | E178: 865.33 | F178: 855.42 | G178: 849.08 | H178: 881.58 | I178: 887.92 | J178: 897.83 | K178: 878 | L178: 861.75 | M178: 0.4346
A179: 170 | B179: GODREJAGRO | C179: 504.85 | D179: 503.77 | E179: 502.08 | F179: 499.32 | G179: 497.63 | H179: 506.53 | I179: 508.22 | J179: 510.98 | K179: 505.45 | L179: 501 | M179: 0.7515
A180: 171 | B180: GODREJCP | C180: 679.05 | D180: 681.32 | E180: 673.18 | F180: 667.32 | G180: 659.18 | H180: 687.18 | I180: 695.32 | J180: 701.18 | K180: 689.45 | L180: 675.45 | M180: 9.81089
A181: 172 | B181: GODREJIND | C181: 395.2 | D181: 396.47 | E181: 389.93 | F181: 384.67 | G181: 378.13 | H181: 401.73 | I181: 408.27 | J181: 413.53 | K181: 403 | L181: 391.2 | M181: 3.71752
A182: 173 | B182: GODREJPROP | C182: 1033.4 | D182: 1029.13 | E182: 1002.27 | F182: 971.13 | G182: 944.27 | H182: 1060.27 | I182: 1087.13 | J182: 1118.27 | K182: 1056 | L182: 998 | M182: 26.15737
A183: 174 | B183: GPPL | C183: 90.75 | D183: 91.00 | E183: 90.00 | F183: 89.25 | G183: 88.25 | H183: 91.75 | I183: 92.75 | J183: 93.50 | K183: 92 | L183: 90.25 | M183: 1.77406
A184: 175 | B184: GRANULES | C184: 386.35 | D184: 383.12 | E184: 378.23 | F184: 370.12 | G184: 365.23 | H184: 391.23 | I184: 396.12 | J184: 404.23 | K184: 388 | L184: 375 | M184: 9.68897
A185: 176 | B185: GRAPHITE | C185: 180.1 | D185: 180.37 | E185: 178.13 | F185: 176.17 | G185: 173.93 | H185: 182.33 | I185: 184.57 | J185: 186.53 | K185: 182.6 | L185: 178.4 | M185: 4.73439
A186: 177 | B186: GRASIM | C186: 842.9 | D186: 843.98 | E186: 834.47 | F186: 826.03 | G186: 816.52 | H186: 852.42 | I186: 861.93 | J186: 870.37 | K186: 853.5 | L186: 835.55 | M186: 18.85867
A187: 178 | B187: GREAVESCOT | C187: 73.75 | D187: 73.78 | E187: 73.07 | F187: 72.38 | G187: 71.67 | H187: 74.47 | I187: 75.18 | J187: 75.87 | K187: 74.5 | L187: 73.1 | M187: 4.33264
A188: 179 | B188: GRINDWELL | C188: 554.35 | D188: 554.35 | E188: 545.00 | F188: 535.65 | G188: 526.30 | H188: 563.70 | I188: 573.05 | J188: 582.40 | K188: 563.7 | L188: 545 | M188: 1.73108
A189: 180 | B189: GRSE | C189: 192.25 | D189: 193.62 | E189: 190.23 | F189: 188.22 | G189: 184.83 | H189: 195.63 | I189: 199.02 | J189: 201.03 | K189: 197 | L189: 191.6 | M189: 0.8625
A190: 181 | B190: GSFC | C190: 63.85 | D190: 64.20 | E190: 63.25 | F190: 62.65 | G190: 61.70 | H190: 64.80 | I190: 65.75 | J190: 66.35 | K190: 65.15 | L190: 63.6 | M190: 9.23195
A191: 182 | B191: GSPL | C191: 191.1 | D191: 191.15 | E191: 189.95 | F191: 188.80 | G191: 187.60 | H191: 192.30 | I191: 193.50 | J191: 194.65 | K191: 192.35 | L191: 190 | M191: 5.18322
A192: 183 | B192: GUJALKALI | C192: 316.7 | D192: 315.93 | E192: 313.87 | F192: 311.03 | G192: 308.97 | H192: 318.77 | I192: 320.83 | J192: 323.67 | K192: 318 | L192: 313.1 | M192: 0.47366
A193: 184 | B193: GUJGASLTD | C193: 311 | D193: 310.52 | E193: 308.33 | F193: 305.67 | G193: 303.48 | H193: 313.18 | I193: 315.37 | J193: 318.03 | K193: 312.7 | L193: 307.85 | M193: 5.12076
A194: 185 | B194: GULFOILLUB | C194: 709.85 | D194: 708.27 | E194: 696.58 | F194: 683.32 | G194: 671.63 | H194: 721.53 | I194: 733.22 | J194: 746.48 | K194: 719.95 | L194: 695 | M194: 0.30394
A195: 186 | B195: HAL | C195: 779.6 | D195: 776.25 | E195: 765.50 | F195: 751.40 | G195: 740.65 | H195: 790.35 | I195: 801.10 | J195: 815.20 | K195: 787 | L195: 762.15 | M195: 4.56771
A196: 187 | B196: HATHWAY | C196: 28.5 | D196: 28.38 | E196: 28.12 | F196: 27.73 | G196: 27.47 | H196: 28.77 | I196: 29.03 | J196: 29.42 | K196: 28.65 | L196: 28 | M196: 2.1372
A197: 188 | B197: HATSUN | C197: 857.9 | D197: 851.28 | E197: 842.57 | F197: 827.23 | G197: 818.52 | H197: 866.62 | I197: 875.33 | J197: 890.67 | K197: 860 | L197: 835.95 | M197: 0.42687
A198: 189 | B198: HAVELLS | C198: 844.7 | D198: 841.62 | E198: 833.63 | F198: 822.57 | G198: 814.58 | H198: 852.68 | I198: 860.67 | J198: 871.73 | K198: 849.6 | L198: 830.55 | M198: 22.87511
A199: 190 | B199: HCLTECH | C199: 815 | D199: 822.32 | E199: 806.68 | F199: 798.37 | G199: 782.73 | H199: 830.63 | I199: 846.27 | J199: 854.58 | K199: 837.95 | L199: 814 | M199: 59.77903
A200: 191 | B200: HDFC | C200: 2349 | D200: 2340.38 | E200: 2316.02 | F200: 2283.03 | G200: 2258.67 | H200: 2373.37 | I200: 2397.73 | J200: 2430.72 | K200: 2364.75 | L200: 2307.4 | M200: 73.93052
A201: 192 | B201: HDFCAMC | C201: 2504.9 | D201: 2503.10 | E201: 2481.80 | F201: 2458.70 | G201: 2437.40 | H201: 2526.20 | I201: 2547.50 | J201: 2570.60 | K201: 2524.4 | L201: 2480 | M201: 5.5771
A202: 193 | B202: HDFCBANK | C202: 1408.45 | D202: 1400.55 | E202: 1388.50 | F202: 1368.55 | G202: 1356.50 | H202: 1420.50 | I202: 1432.55 | J202: 1452.50 | K202: 1412.6 | L202: 1380.6 | M202: 155.2995
A203: 194 | B203: HDFCLIFE | C203: 670.05 | D203: 659.68 | E203: 645.37 | F203: 620.68 | G203: 606.37 | H203: 684.37 | I203: 698.68 | J203: 723.37 | K203: 674 | L203: 635 | M203: 97.40753
A204: 195 | B204: HEG | C204: 703.65 | D204: 707.62 | E204: 697.23 | F204: 690.82 | G204: 680.43 | H204: 714.03 | I204: 724.42 | J204: 730.83 | K204: 718 | L204: 701.2 | M204: 1.22137
A205: 196 | B205: HEIDELBERG | C205: 205.95 | D205: 201.95 | E205: 196.50 | F205: 187.05 | G205: 181.60 | H205: 211.40 | I205: 216.85 | J205: 226.30 | K205: 207.4 | L205: 192.5 | M205: 13.64419
A206: 197 | B206: HERITGFOOD | C206: 272.85 | D206: 276.62 | E206: 266.23 | F206: 259.62 | G206: 249.23 | H206: 283.23 | I206: 293.62 | J206: 300.23 | K206: 287 | L206: 270 | M206: 0.57261
... 317 more rows

Sheet Bulk Deals
E6: Back To Main Page
A7: Subject : | B7: BULK DEAL | D7: =Main!B10 -> 2020-11-18
A9: Date | B9: Scrip code | C9: Scrip Name | D9: Client Name | E9: Buy / Sell | F9: Quantity Traded | G9: Trade Price / Wt.Avg.trade price | H9: Exchange
A10: 2020-11-17 | B10: 520123 | C10: ABCINDQ | D10: AVENUE PROPERTIES PRIVATE LTD | E10: BUY | F10: 28,547 | G10: 44.14 | H10: BSE
A11: 2020-11-17 | B11: 532762 | C11: ACE | D11: IIFL RE ORGANIZE INDIA EQUITY FUND - ORGANIZE INDIA EQUITY FUND | E11: SELL | F11: 650,000 | G11: 87.05 | H11: BSE
A12: 2020-11-17 | B12: 532762 | C12: ACE | D12: VANTAGE EQUITY FUND | E12: BUY | F12: 631,000 | G12: 87.05 | H12: BSE
A13: 2020-11-17 | B13: 512493 | C13: GARNETINT | D13: HEM SECURITIES LIMITED | E13: BUY | F13: 110,000 | G13: 26.05 | H13: BSE
A14: 2020-11-17 | B14: 512493 | C14: GARNETINT | D14: BLUE SQUARE CORPORATE SERVICES PRIVATE LIMITED | E14: BUY | F14: 136,326 | G14: 26.05 | H14: BSE
A15: 2020-11-17 | B15: 512493 | C15: GARNETINT | D15: BLUE SQUARE CORPORATE SERVICES PRIVATE LIMITED | E15: SELL | F15: 136,326 | G15: 26.05 | H15: BSE
A16: 2020-11-17 | B16: 512493 | C16: GARNETINT | D16: HETANSHI PROPERTIES PRIVATE LIMITED | E16: SELL | F16: 117,542 | G16: 26.05 | H16: BSE
A17: 2020-11-17 | B17: 519463 | C17: IBINFO | D17: RAJKUMAR SHYAMNARAYAN SINGH | E17: BUY | F17: 6,780 | G17: 10.33 | H17: BSE
A18: 2020-11-17 | B18: 511551 | C18: MONARCH | D18: METAPHOR REALTY INVESTMENTS PRIVATE LIMITED | E18: SELL | F18: 500,000 | G18: 29.6 | H18: BSE
A19: 2020-11-17 | B19: 511551 | C19: MONARCH | D19: CARE WEALTH ADVISORS LLP | E19: BUY | F19: 478,931 | G19: 29.6 | H19: BSE
A20: 2020-11-17 | B20: 539673 | C20: RCL | D20: IDEAL PLYWOOD TRADERS PRIVATE LIMITED | E20: BUY | F20: 10,350 | G20: 14.17 | H20: BSE
A21: 2020-11-17 | B21: 539673 | C21: RCL | D21: BISWAJIT TALUKDAR | E21: SELL | F21: 9,731 | G21: 14.1 | H21: BSE
A22: 2020-11-17 | B22: 539526 | C22: SCTL | D22: SAIANAND COMMERCIAL LIMITED | E22: SELL | F22: 842,000 | G22: 0.87 | H22: BSE
A23: 2020-11-17 | B23: 539526 | C23: SCTL | D23: NITU TRADING COMPANY LIMITED | E23: SELL | F23: 1,026,000 | G23: 0.86 | H23: BSE
A24: 2020-11-17 | B24: 539026 | C24: SSPNFIN | D24: DEVJEET CHAKRABORTY | E24: SELL | F24: 20,000 | G24: 37.5 | H24: BSE
A25: 2020-11-17 | B25: 539026 | C25: SSPNFIN | D25: RAMESH R VYAS | E25: BUY | F25: 20,000 | G25: 37.5 | H25: BSE
A26: 2020-11-17 | B26: 532070 | C26: SUPRBPA | D26: KHUSHBU ARJUNBHAI PADHIYAR | E26: BUY | F26: 27,900 | G26: 10.93 | H26: BSE
A27: 2020-11-17 | B27: 532070 | C27: SUPRBPA | D27: KHUSHBU ARJUNBHAI PADHIYAR | E27: SELL | F27: 12,900 | G27: 10.95 | H27: BSE
A28: 2020-11-17 | B28: 533200 | C28: TALWALKARS | D28: RASHID AHMED MIRZA | E28: BUY | F28: 380,000 | G28: 2.38 | H28: BSE
A29: 2020-11-17 | B29: 533200 | C29: TALWALKARS | D29: YASMIN MIRZA | E29: SELL | F29: 375,000 | G29: 2.38 | H29: BSE
A30: 2020-11-17 | B30: 532790 | C30: TANLA | D30: MOBILE TECHSOL PRIVATE LIMITED | E30: BUY | F30: 1,710,000 | G30: 391.3 | H30: BSE
A31: 2020-11-17 | B31: 532790 | C31: TANLA | D31: AMANSA INVESTMENTS LIMITED | E31: BUY | F31: 4,084,000 | G31: 391.3 | H31: BSE
A32: 2020-11-17 | B32: 532790 | C32: TANLA | D32: AMERICAN FUNDS INSURANCE SERIES A/C INTERNATIONAL FUND | E32: BUY | F32: 8,600,000 | G32: 391.3 | H32: BSE
A33: 2020-11-17 | B33: 532790 | C33: TANLA | D33: BANYAN INVESTMENTS LIMITED | E33: SELL | F33: 15,000,000 | G33: 391.3 | H33: BSE
A34: 2020-11-17 | B34: 505285 | C34: TULIVE | D34: ATUL GUPTA | E34: BUY | F34: 20,100 | G34: 200.8 | H34: BSE
A35: 2020-11-17 | B35: 505285 | C35: TULIVE | D35: ASL CAPITAL HOLDINGS PRIVATE LIMITED | E35: SELL | F35: 20,000 | G35: 200.8 | H35: BSE
A36: 2020-11-17 | B36: ASHIANA | C36: Ashiana Housing Ltd | D36: SBI MUTUAL FUND | E36: BUY | F36: 2,329,821 | G36: 82.9 | H36: NSE
A37: 2020-11-17 | B37: ASLIND | C37: ASL Industries Limited | D37: D D MASTER HUF | E37: BUY | F37: 120,000 | G37: 9.65 | H37: NSE
A38: 2020-11-17 | B38: EVEREADY | C38: Eveready Industries India | D38: PARTH INFIN BROKERS PVT LTD | E38: BUY | F38: 439,335 | G38: 164.22 | H38: NSE
A39: 2020-11-17 | B39: EVEREADY | C39: Eveready Industries India | D39: ANIRUDH DAMANI | E39: BUY | F39: 5,000 | G39: 159 | H39: NSE
A40: 2020-11-17 | B40: HSIL | C40: HSIL Limited | D40: HSIL LIMITED | E40: BUY | F40: 617,000 | G40: 100.41 | H40: NSE
A41: 2020-11-17 | B41: JUSTDIAL | C41: Justdial Ltd. | D41: XTX MARKETS LLP | E41: BUY | F41: 305,771 | G41: 634.53 | H41: NSE
A42: 2020-11-17 | B42: SITINET | C42: Siti Networks Limited | D42: ALTIUS FINSERV PRIVATE LIMITED | E42: BUY | F42: 15,000,000 | G42: 0.6 | H42: NSE
A43: 2020-11-17 | B43: SITINET | C43: Siti Networks Limited | D43: SUBHASH RATHOD | E43: BUY | F43: 8,000,000 | G43: 0.6 | H43: NSE
A44: 2020-11-17 | B44: SNOWMAN | C44: Snowman Logistics Ltd. | D44: ALPHA LEON ENTERPRISES LLP | E44: BUY | F44: 1,085,140 | G44: 58.91 | H44: NSE
A45: 2020-11-17 | B45: ASHIANA | C45: Ashiana Housing Ltd | D45: SBI MUTUAL FUND | E45: SELL | F45: 2,329,821 | G45: 82.9 | H45: NSE
A46: 2020-11-17 | B46: ASLIND | C46: ASL Industries Limited | D46: ARIHANT TRACOM PRIVATE LIMITED | E46: SELL | F46: 88,000 | G46: 9.65 | H46: NSE
A47: 2020-11-17 | B47: EVEREADY | C47: Eveready Industries India | D47: INDUSIND BANK LTD CLIENT A/C | E47: SELL | F47: 850,000 | G47: 156.37 | H47: NSE
A48: 2020-11-17 | B48: EVEREADY | C48: Eveready Industries India | D48: PARTH INFIN BROKERS PVT LTD | E48: SELL | F48: 399,335 | G48: 169.1 | H48: NSE
A49: 2020-11-17 | B49: EVEREADY | C49: Eveready Industries India | D49: ANIRUDH DAMANI | E49: SELL | F49: 701,076 | G49: 165.39 | H49: NSE
A50: 2020-11-17 | B50: JUSTDIAL | C50: Justdial Ltd. | D50: XTX MARKETS LLP | E50: SELL | F50: 315,777 | G50: 635.01 | H50: NSE
A51: 2020-11-17 | B51: SITINET | C51: Siti Networks Limited | D51: MULTIPLIER S AND S ADV PVT LTD | E51: SELL | F51: 5,000,000 | G51: 0.6 | H51: NSE
A52: 2020-11-17 | B52: SITINET | C52: Siti Networks Limited | D52: TOPGAIN FINANCE PRIVATE LIMITED | E52: SELL | F52: 15,000,000 | G52: 0.6 | H52: NSE
A53: 2020-11-17 | B53: SNOWMAN | C53: Snowman Logistics Ltd. | D53: ALPHA LEON ENTERPRISES LLP | E53: SELL | F53: 1,055,142 | G53: 59.73 | H53: NSE

Sheet Call Tracker (Equity & F&O)
M5: Back To Main Page
A6: Retail Research Technical Calls & Fundamental Performance Report for the month of November-2020
M7: =Main!B10 -> 2020-11-18
B8: Positional Call
A9: Sr.no | B9: Date | D9: Company | E9: Rec | F9: Rec Price | G9: Stop Loss*** | H9: Call Closed At | I9: Target | J9: Remark | K9: Profit / Loss per Share | L9: All charges | M9: Net Gain / Loss % | N9: Status | O9: Closed Date
A10: 1 | B10: 2020-10-06 | D10: M&M | E10: Buy | F10: 619 | G10: 590.00 | H10: 646.00 | I10: 690 | J10: Part Profit of Rs.27/- | K10: =H10-F10 -> 27 | L10: =(F10*-0.8)/100 -> -4.95 | M10: =(K10+L10)/F10 -> 3.56% | N10: Successful | O10: 2020-10-09 | R10: A
A11: 2 | B11: 2020-10-06 | D11: MARUTI | E11: Buy | F11: 6890 | G11: 6,600.00 | H11: 7,170.00 | I11: 7450 | J11: Part Profit of Rs.280/- | K11: =H11-F11 -> 280 | L11: =(F11*-0.8)/100 -> -55.12 | M11: =(K11+L11)/F11 -> 3.26% | N11: Successful | O11: 2020-10-27 | R11: A
A12: 3 | B12: 2020-10-08 | D12: HDFCLIFE | E12: Buy | F12: 581.5 | G12: 548.00 | H12: 621.00 | I12: 640 | J12: Profit of Rs.39.5/- | K12: 39.5 | L12: -4.65 | M12: 5.99% | N12: Successful | O12: 2020-11-11 | R12: N
A13: 4 | B13: 2020-10-22 | D13: AKZOINDIA | E13: Buy | F13: 2010-2040 | G13: 1895 | I13: 2200-2300 | J13: Open | R13: H
A14: 5 | B14: 2020-10-27 | D14: BIOCON | E14: Buy | F14: 403.5 | G14: 375 | H14: 427.50 | I14: 450-460 | J14: Profit of Rs.24/- | K14: =H14-F14 -> 24 | L14: =(F14*-0.8)/100 -> -3.23 | M14: =(K14+L14)/F14 -> 5.15% | N14: Successful | O14: 2020-11-12 | R14: N
A15: 6 | B15: 2020-10-29 | D15: ICICIBANK | E15: Buy | F15: 392 | G15: 368 | H15: 417.00 | I15: 430-440 | J15: Profit of Rs.25/- | K15: =H15-F15 -> 25 | L15: =(F15*-0.8)/100 -> -3.14 | M15: =(K15+L15)/F15 -> 5.58% | N15: Successful | O15: 2020-11-02 | R15: H
A16: 7 | B16: 2020-10-29 | D16: GODREJCP | E16: Buy | F16: 675-680 | G16: 640 | I16: 740-760 | J16: Open | R16: N
A17: 8 | B17: 2020-10-30 | D17: BPCL | E17: Buy | F17: 355 | G17: 337 | H17: 376.50 | I17: 390-400 | J17: Profit of Rs.21.5/- | K17: =H17-F17 -> 21.5 | L17: =(F17*-0.8)/100 -> -2.84 | M17: =(K17+L17)/F17 -> 5.26% | N17: Successful | O17: 2020-11-09 | R17: A
A18: 9 | B18: 2020-11-02 | D18: GMMPFAUDLR | E18: Buy | F18: 3500-3530 | G18: 3280 | I18: 4200 | J18: Open | R18: H
A19: 10 | B19: 2020-11-02 | D19: HAVELLS | E19: Sell | F19: 772.5 | G19: 805 | H19: 810.00 | I19: 700 | J19: Loss of Rs.37.5/- | K19: =F19-H19 -> -37.5 | L19: =(F19*-0.7)/100 -> -5.41 | M19: =(K19+L19)/F19 -> -5.55% | N19: Unsuccessful | O19: 2020-11-03 | R19: H
A20: 11 | B20: 2020-11-04 | D20: WHIRLPOOL | E20: Buy | F20: 2060 | G20: 1,980.00 | H20: 2,140.00 | I20: 2300 | J20: Part Profit of Rs.80/- | K20: =H20-F20 -> 80 | L20: =(F20*-0.8)/100 -> -16.48 | M20: 3.08% | N20: Successful | O20: 2020-11-12 | R20: H
A21: 12 | B21: 2020-11-04 | D21: COFORGE | E21: Buy | F21: 2200 | G21: 2150 | H21: 2,345.00 | I21: 2400-2500 | J21: Profit of Rs.145/- | K21: =H21-F21 -> 145 | L21: =(F21*-0.8)/100 -> -17.60 | M21: =(K21+L21)/F21 -> 5.79% | N21: Successful | O21: 2020-11-10 | R21: H
A22: 13 | B22: 2020-11-06 | D22: VGUARD | E22: Buy | F22: 168-170 | G22: 160 | I22: 195 | J22: Open | R22: N
A27: CLBS = Closing Basis ***
A28: Dividend adjusted <> | F28: Reinitiated $
A29: Part book {} | F29: Revised stoploss #
B31: Momentum Call
A32: Sr.no | B32: Date | D32: Company | E32: Rec | F32: Rec Price | G32: Stop Loss | H32: Call Closed At | I32: Target | J32: Remark | K32: Profit / Loss per Share/Lot | L32: All charges | M32: Net Gain / Loss % | N32: Status | O32: Closed Date
A33: 1 | B33: 2020-10-19 | D33: DIVISLAB | E33: Buy | F33: 3150 | G33: 3040 | H33: 3225 | I33: 3350 | J33: Profit of Rs.75/- | K33: =H33-F33 -> 75 | L33: =(F33*-0.7)/100 -> -22.05 | M33: =(K33+L33)/F33 -> 1.68% | N33: Successful | O33: 2020-11-05 | R33: H
A34: 2 | B34: 2020-10-30 | D34: PIIND | E34: Buy | F34: 2195 | G34: 2140 | H34: 2247.5 | I34: 2300 | J34: Profit of Rs.52.5/- | K34: =H34-F34 -> 52.5 | L34: =(F34*-0.7)/100 -> -15.37 | M34: =(K34+L34)/F34 -> 1.69% | N34: Successful | O34: 2020-11-02 | R34: N
A35: 3 | B35: 2020-10-30 | D35: APOLLOTYRE | E35: Buy | F35: 139.5 | G35: 134.9 | H35: 143 | I35: 145-147 | J35: Profit of Rs.3.5/- | K35: 3.5 | L35: -0.98 | M35: 1.81% | N35: Successful | O35: 2020-11-03 | R35: H
A36: 4 | B36: 2020-10-30 | D36: TATACONSUM | E36: Buy | F36: 490.5 | G36: 477 | H36: 502 | I36: 520 | J36: Profit of Rs.11.5/- | K36: =H36-F36 -> 11.5 | L36: =(F36*-0.7)/100 -> -3.43 | M36: =(K36+L36)/F36 -> 1.64% | N36: Successful | O36: 2020-11-03 | R36: H
A37: 5 | B37: 2020-11-02 | D37: CCL | E37: Buy | F37: 242 | G37: 235 | H37: 235 | I37: 250-255 | J37: Loss of Rs.7 /- | K37: =H37-F37 -> -7 | L37: =(F37*-0.07)/100 -> -0.17 | M37: =(K37+L37)/F37 -> -2.96% | N37: Unsuccessful | O37: 2020-11-02 | R37: H
A38: 6 | B38: 2020-11-02 | D38: APOLLOHOSP | E38: Buy | F38: 2090 | G38: 2025 | H38: 2135 | I38: 2200 | J38: Profit of Rs.45/- | K38: 45 | L38: =(F38*-0.7)/100 -> -14.63 | M38: 1.45% | N38: Successful | O38: 2020-11-03 | R38: N
A39: 7 | B39: 2020-11-02 | D39: CDSL | E39: Buy | F39: 467.5 | G39: 455 | H39: 478 | I39: 490-500 | J39: Profit of Rs.10.5/- | K39: 10.5 | L39: -3.27 | M39: 1.55% | N39: Successful | O39: 2020-11-09 | R39: H
A40: 8 | B40: 2020-11-03 | D40: TORNTPHARM | E40: Buy | F40: 2574 | G40: 2495 | H40: 2632.5 | I40: 2700 | J40: Profit of Rs.58.5/- | K40: =H40-F40 -> 58.5 | L40: =(F40*-0.7)/100 -> -18.02 | M40: =(K40+L40)/F40 -> 1.57% | N40: Successful | O40: 2020-11-05 | R40: N
A41: 9 | B41: 2020-11-03 | D41: TATACONSUM | E41: Buy | F41: 494 | G41: 479 | H41: 510 | I41: 520 | J41: Profit of Rs.16/- | K41: =H41-F41 -> 16 | L41: =(F41*-0.7)/100 -> -3.46 | M41: =(K41+L41)/F41 -> 2.54% | N41: Successful | O41: 2020-11-06 | R41: H
A42: 10 | B42: 2020-11-04 | D42: MPHASIS | E42: Buy | F42: 1380 | G42: 1335 | H42: 1335 | I42: 1450-1460 | J42: Loss of Rs.45 /- | K42: =H42-F42 -> -45 | L42: =(F42*-0.7)/100 -> -9.66 | M42: =(K42+L42)/F42 -> -3.96% | N42: Unsuccessful | O42: 2020-11-06 | R42: N
A43: 11 | B43: 2020-11-04 | D43: HAVELLS | E43: Sell | F43: 798.5 | G43: 822 | H43: 822.5 | I43: 760-750 | J43: Loss of Rs.24/- | K43: =F43-H43 -> -24 | L43: -5.59 | M43: -3.71% | N43: Unsuccessful | O43: 2020-11-06 | R43: H
A44: 12 | B44: 2020-11-05 | D44: COLPAL | E44: Buy | F44: 1477.5 | G44: 1435 | H44: 1510 | I44: 1550-1560 | J44: Profit of Rs.32.5/- | K44: =H44-F44 -> 32.5 | L44: -10.34 | M44: 1.50% | N44: Successful | O44: 2020-11-06 | R44: N
A45: 13 | B45: 2020-11-05 | D45: DIVISLAB | E45: Buy | F45: 3190 | G45: 3090 | H45: 3420 | I45: 3350-3400 | J45: Profit of Rs.230/- | K45: =H45-F45 -> 230 | L45: =(F45*-0.7)/100 -> -22.33 | M45: =(K45+L45)/F45 -> 6.51% | N45: Successful | O45: 2020-11-09 | R45: H
A46: 14 | B46: 2020-11-05 | D46: BRITANNIA | E46: Buy | F46: 3467.5 | G46: 3350 | H46: 3550 | I46: 3630-3670 | J46: Profit of Rs.82.5/- | K46: =H46-F46 -> 82.5 | L46: =(F46*-0.7)/100 -> -24.27 | M46: =(K46+L46)/F46 -> 1.68% | N46: Successful | O46: 2020-11-06 | R46: H
A47: 15 | B47: 2020-11-06 | D47: INDIACEM | E47: Buy | F47: 124.5 | G47: 120.4 | H47: 120.4 | I47: 132-135 | J47: Loss of Rs.4.1/- | K47: -4.1 | L47: -0.87 | M47: -3.99% | N47: Unsuccessful | O47: 2020-11-09 | R47: H
A48: 16 | B48: 2020-11-09 | D48: TORNTPHARM | E48: Buy | F48: 2560 | G48: 2485 | H48: 2485 | I48: 2700-2720 | J48: Loss of Rs.75/- | K48: =H48-F48 -> -75 | L48: =(F48*-0.7)/100 -> -17.92 | M48: =(K48+L48)/F48 -> -3.63% | N48: Unsuccessful | O48: 2020-11-10 | R48: N
A49: 17 | B49: 2020-11-09 | D49: IRCTC | E49: Buy | F49: 1314 | G49: 1274 | H49: 1380 | I49: 1360-1380 | J49: Profit of Rs.66/- | K49: =H49-F49 -> 66 | L49: =(F49*-0.7)/100 -> -9.20 | M49: =(K49+L49)/F49 -> 4.32% | N49: Successful | O49: 2020-11-10 | R49: H
A50: 18 | B50: 2020-11-09 | D50: APOLLOHOSP | E50: Buy | F50: 2060 | G50: 1995 | H50: 1995 | I50: 2150-2170 | J50: Loss of Rs.65/- | K50: -65 | L50: -14.42 | M50: -3.86% | N50: Unsuccessful | O50: 2020-11-10 | R50: N
A51: 19 | B51: 2020-11-10 | D51: BRITANNIA | E51: Buy | F51: 3457.5 | G51: 3350 | H51: 3512.5 | I51: 3630-3670 | J51: Profit of Rs.55/- | K51: =H51-F51 -> 55 | L51: =(F51*-0.07)/100 -> -2.42 | M51: =(K51+L51)/F51 -> 1.52% | N51: Successful | O51: 2020-11-10 | R51: H
A52: 20 | B52: 2020-11-11 | D52: NH | E52: Buy | F52: 334 | G52: 322 | H52: 346 | I52: 355 | J52: Profit of Rs.12/- | K52: =H52-F52 -> 12 | L52: =(F52*-0.07)/100 -> -0.23 | M52: =(K52+L52)/F52 -> 3.52% | N52: Successful | O52: 2020-11-11 | R52: N
A53: 21 | B53: 2020-11-11 | D53: BRITANNIA | E53: Buy | F53: 3465 | G53: 3450 | H53: 3545 | I53: 3630-3670 | J53: Profit of Rs.80/- | K53: 80 | L53: =(F53*-0.7)/100 -> -24.26 | M53: 1.61% | N53: Successful | O53: 2020-11-17 | R53: H
A54: 22 | B54: 2020-11-11 | D54: IPCALAB | E54: Buy | F54: 2010 | G54: 1950 | H54: 2047.5 | I54: 2100 | J54: Profit of Rs.37.5/- | K54: =H54-F54 -> 37.5 | L54: =(F54*-0.07)/100 -> -1.41 | M54: =(K54+L54)/F54 -> 1.80% | N54: Successful | O54: 2020-11-11 | R54: H
A55: 23 | B55: 2020-11-11 | D55: LTI | E55: Buy | F55: 2907.5 | G55: 2830 | H55: 2960 | I55: 3000-3050 | J55: Profit of Rs.52.5/- | K55: =H55-F55 -> 52.5 | L55: =(F55*-0.07)/100 -> -2.04 | M55: =(K55+L55)/F55 -> 1.74% | N55: Successful | O55: 2020-11-11 | R55: H
A56: 24 | B56: 2020-11-12 | D56: SBIN | E56: Sell | F56: 231 | G56: 237 | H56: 227.4 | I56: 220 | J56: Profit of Rs.3.6/- | K56: =F56-H56 -> 3.6 | L56: =(F56*-0.07)/100 -> -0.16 | M56: 1.49% | N56: Successful | O56: 2020-11-12 | R56: H
A57: 25 | B57: 2020-11-12 | D57: TITAN | E57: Sell | F57: 1280-1290 | G57: 1325 | I57: 1230-1200 | J57: Open | R57: H
A58: 26 | B58: 2020-11-12 | D58: SUPREMEIND | E58: Buy | F58: 1405 | G58: 1360 | H58: 1438 | I58: 1490 | J58: Profit of Rs.33/- | K58: =H58-F58 -> 33 | L58: =(F58*-0.7)/100 -> -9.84 | M58: =(K58+L58)/F58 -> 1.65% | N58: Successful | O58: 2020-11-17 | R58: N
A59: 27 | B59: 2020-11-12 | D59: DHANUKA | E59: Buy | F59: 700-705 | G59: 680 | I59: 730-740 | J59: Open | R59: H
A60: 28 | B60: 2020-11-17 | D60: AXISBANK | E60: Sell | F60: 611-616 | G60: 632 | I60: 580-570 | J60: Open
A61: 29 | B61: 2020-11-17 | D61: VARROC | E61: Buy | F61: 304-306 | G61: 295 | I61: 325 | J61: Open
A67: CLBS = Closing Basis *** | H67: *
A68: Dividend adjusted <> | F68: Reinitiated $
F69: Revised stoploss #
A71: Master Trade High Risk
A72: Sr.no | B72: Date | D72: Company | E72: Rec | F72: Rec Price | G72: Stop Loss | H72: Call Closed At | I72: Target | J72: Remark | K72: Profit / Loss per share | L72: All charges | M72: Gain / Loss per Lot | N72: Lot | O72: Status | P72: Closed Date
A73: 1 | B73: 2020-10-30 | D73: INFY NOV FUT | E73: Buy | F73: 1076 | G73: 1052 | H73: 1056 | I73: 1120 | J73: Loss of Rs.20/- | K73: =H73-F73 -> -20 | L73: =(H73*N73)*0.035% -> 221.76 | M73: =(K73*N73)-L73 -> -12221.8 | N73: 600 | O73: Unsuccessful | P73: 2020-11-02 | R73: N
A74: 2 | B74: 2020-10-30 | D74: CUMMINSIND NOV FUT | E74: Buy | F74: 436.5 | G74: 425 | H74: 442.5 | I74: 460 | J74: Profit of Rs.6/- | K74: 6 | L74: 185.85 | M74: 7014.2 | N74: 1200 | O74: Successful | P74: 2020-11-03 | R74: N
A75: 3 | B75: 2020-10-30 | D75: ASIANPAINT NOV FUT | E75: Buy | F75: 2202.5 | G75: 2160 | H75: 2225 | I75: 2260-2280 | J75: Profit of Rs.22.5/- | K75: =H75-F75 -> 22.5 | L75: =(H75*N75)*0.035% -> 233.63 | M75: =(K75*N75)-L75 -> 6516.4 | N75: 300 | O75: Successful | P75: 2020-11-02 | R75: N
A76: 4 | B76: 2020-11-02 | D76: BANKNIFTY NOV FUT | E76: Sell | F76: 25080 | G76: 25400 | H76: 24890 | I76: 24500 | J76: Profit of Rs.190/- | K76: =F76-H76 -> 190 | L76: 217.79 | M76: 4532.2 | N76: 25 | O76: Successful | P76: 2020-11-02 | R76: H
A77: 5 | B77: 2020-11-03 | D77: ASIANPAINT NOV FUT | E77: Buy | F77: 2190 | G77: 2150 | H77: 2214 | I77: 2260-2280 | J77: Profit of Rs.24/- | K77: =H77-F77 -> 24 | L77: =(H77*N77)*0.035% -> 232.47 | M77: =(K77*N77)-L77 -> 6967.5 | N77: 300 | O77: Successful | P77: 2020-11-04 | R77: N
A78: 6 | B78: 2020-11-04 | D78: BATAINDIA NOV FUT | E78: Buy | F78: 1303 | G78: 1279 | H78: 1315.5 | I78: 1330-1340 | J78: Profit of Rs.12.5/- | K78: =H78-F78 -> 12.5 | L78: =(H78*N78)*0.035% -> 253.23 | M78: =(K78*N78)-L78 -> 6621.8 | N78: 550 | O78: Successful | P78: 2020-11-04 | R78: H
A79: 7 | B79: 2020-11-04 | D79: BHARATFORG NOV FUT | E79: Buy | F79: 468 | G79: 459 | H79: 473.25 | I79: 487 | J79: Profit of Rs.5.25/- | K79: =H79-F79 -> 5.25 | L79: =(H79*N79)*0.035% -> 248.46 | M79: =(K79*N79)-L79 -> 7626.5 | N79: 1500 | O79: Successful | P79: 2020-11-04 | R79: N
A80: 8 | B80: 2020-11-04 | D80: NIFTY NOV FUT | E80: Sell | F80: 11910 | G80: 12040 | H80: 11835 | I80: 11700 | J80: Profit of Rs.75/- | K80: =F80-H80 -> 75 | L80: 310.67 | M80: 5314.3 | N80: 75 | O80: Successful | P80: 2020-11-04 | R80: H
A81: 9 | B81: 2020-11-04 | D81: BHARATFORG NOV FUT | E81: Buy | F81: 464.5 | G81: 456 | H81: 472.5 | I81: 480 | J81: Profit of Rs.8/- | K81: =H81-F81 -> 8 | L81: 248.06 | M81: 11751.9 | N81: 1500 | O81: Successful | P81: 2020-11-05 | R81: N
A82: 10 | B82: 2020-11-04 | D82: NIFTY NOV FUT | E82: Sell | F82: 11900 | G82: 12030 | H82: 11835 | I82: 11700 | J82: Profit of Rs.65/- | K82: =F82-H82 -> 65 | L82: =(H82*N82)*0.035% -> 310.67 | M82: =(K82*N82)-L82 -> 4564.3 | N82: 75 | O82: Successful | P82: 2020-11-04 | R82: H
A83: 11 | B83: 2020-11-04 | D83: ASIANPAINT NOV FUT | E83: Buy | F83: 2172 | G83: 2210 | H83: 2196.5 | I83: 2260-2280 | J83: Profit of Rs.24.5/- | K83: =H83-F83 -> 24.5 | L83: 230.63 | M83: 7119.4 | N83: 300 | O83: Successful | P83: 2020-11-05 | R83: N
A84: 12 | B84: 2020-11-04 | D84: HINDUNILVR NOV FUT | E84: Buy | F84: 2064 | G84: 2024 | H84: 2090 | I84: 2140 | J84: Profit of Rs.26/- | K84: =H84-F84 -> 26 | L84: =(H84*N84)*0.035% -> 219.45 | M84: =(K84*N84)-L84 -> 7580.6 | N84: 300 | O84: Successful | P84: 2020-11-05 | R84: H
A85: 13 | B85: 2020-11-05 | D85: NIFTY NOV FUT | E85: Sell | F85: 12070 | G85: 12200 | H85: 12200 | I85: 11800 | J85: Loss of Rs.130/- | K85: =F85-H85 -> -130 | L85: 320.25 | M85: -10070.3 | N85: 75 | O85: Unsuccessful | P85: 2020-11-06 | R85: H
A86: 14 | B86: 2020-11-06 | D86: RELIANCE NOV FUT | E86: Sell | F86: 2003.5 | G86: 2024 | H86: 2020 | I86: 1960 | J86: Loss of Rs.16.5/- | K86: -16.5 | L86: =(H86*N86)*0.035% -> 357.04 | M86: =(K86*N86)-L86 -> -8689.5 | N86: 505 | O86: Unsuccessful | P86: 2020-11-06 | R86: H
A87: 15 | B87: 2020-11-09 | D87: NIFTY NOV FUT | E87: Sell | F87: 12440 | G87: 12550 | H87: 12610 | I87: 12200 | J87: Loss of Rs.170/- | K87: -170 | L87: 331.01 | M87: -13081.0 | N87: 75 | O87: Unsuccessful | P87: 2020-11-10 | R87: H
A88: 16 | B88: 2020-11-09 | D88: SBIN NOV FUT | E88: Sell | F88: 220.5 | G88: 224.5 | H88: 224.25 | I88: 210 | J88: Loss of Rs.3.75/- | K88: -3.75 | L88: =(H88*N88)*0.035% -> 235.46 | M88: =(K88*N88)-L88 -> -11485.5 | N88: 3000 | O88: Unsuccessful | P88: 2020-11-10 | R88: H
A89: 17 | B89: 2020-11-11 | D89: NIFTY NOV FUT | E89: Sell | F89: 11755 | G89: 11860 | H89: 11695 | I89: 11500 | J89: Profit of Rs.60/- | K89: 60 | L89: 306.99 | M89: 4193.0 | N89: 75 | O89: Successful | P89: 2020-11-11 | R89: H
A90: 18 | B90: 2020-11-11 | D90: HDFCBANK NOV FUT | E90: Sell | F90: 1376 | G90: 1410 | H90: 1352 | I90: 1330 | J90: Profit of Rs.23/- | K90: 24 | L90: 260.26 | M90: 12290 | N90: 550 | O90: Successful | P90: 2020-11-13 | R90: H
D91: HDFCBANK 1340 PE NOV | E91: Sell | F91: 22.5 | H91: 23.5 | K91: -1 | L91: 100 | R91: H
A92: 19 | B92: 2020-11-11 | D92: ASIANPAINT NOV FUT | E92: Buy | F92: 2171 | G92: 2130 | H92: 2194 | I92: 2250 | J92: Profit of Rs.23/- | K92: =H92-F92 -> 23 | L92: =(H92*N92)*0.035% -> 230.37 | M92: =(K92*N92)-L92 -> 6669.6 | N92: 300 | O92: Successful | P92: 2020-11-11 | R92: N
A93: 20 | B93: 2020-11-13 | D93: BHARTIARTL NOV FUT | E93: Buy | F93: 474.5 | G93: 468 | H93: 484 | I93: 486 | J93: Profit of Rs.9.5/- | K93: 9.5 | L93: 313.39 | M93: 17261.6 | N93: 1850 | O93: Successful | P93: 2020-11-14 | R93: H
A94: 21 | B94: 2020-11-13 | D94: EXIDEIND NOV FUT | E94: Buy | F94: 168.75 | G94: 165.5 | H94: 171.25 | I94: 175 | J94: Profit of Rs.2.5/- | K94: =H94-F94 -> 2.5 | L94: =(H94*N94)*0.035% -> 215.78 | M94: =(K94*N94)-L94 -> 8784.2 | N94: 3600 | O94: Successful | P94: 2020-11-13 | R94: H
A95: 22 | B95: 2020-11-13 | D95: CUMMINSIND NOV FUT | E95: Buy | F95: 473 | G95: 463 | H95: 482.5 | I95: 493 | J95: Profit of Rs.9.5/- | K95: =H95-F95 -> 9.5 | L95: =(H95*N95)*0.035% -> 202.65 | M95: =(K95*N95)-L95 -> 11197.4 | N95: 1200 | O95: Successful | P95: 2020-11-13 | R95: N
A96: 23 | B96: 2020-11-13 | D96: EXIDEIND NOV FUT | E96: Buy | F96: 167.75 | G96: 165 | H96: 169.75 | I96: 175 | J96: Profit of Rs.2/- | K96: =H96-F96 -> 2 | L96: =(H96*N96)*0.035% -> 213.89 | M96: =(K96*N96)-L96 -> 6986.1 | N96: 3600 | O96: Successful | P96: 2020-11-13 | R96: H
A97: 24 | B97: 2020-11-17 | D97: SBIN NOV FUT | E97: Sell | F97: 237 | G97: 241 | H97: 240.5 | I97: 230-228 | J97: Loss of Rs.3.5/- | K97: =F97-H97 -> -3.5 | L97: 252.53 | M97: -10752.5 | N97: 3000 | O97: Unsuccessful | P97: 2020-11-17
A98: 25 | B98: 2020-11-17 | D98: VOLTAS NOV FUT | E98: Buy | F98: 764 | G98: 752 | H98: 771.5 | I98: 790 | J98: Profit of Rs.7.5/- | K98: =H98-F98 -> 7.5 | L98: =(H98*N98)*0.035% -> 270.03 | M98: =(K98*N98)-L98 -> 7230.0 | N98: 1000 | O98: Successful | P98: 2020-11-17
A104: Master Trade Medium Risk
A105: Sr.no | B105: Date | D105: Company | E105: Rec | F105: Rec Price | G105: Stop Loss | H105: Call Closed At | I105: Target | J105: Remark | K105: Profit/ Loss per lot | L105: All charges | M105: Gain / Loss per Lot | N105: Lot | O105: Status | P105: Closed Date
A106: 1 | B106: 2020-10-30 | D106: ICICIBANK 420 CE NOV | E106: Buy | F106: 13.2 | G106: 8 | H106: 17 | I106: 22 | J106: Profit of Rs.3.8/- | K106: =H106-F106 -> 3.8 | L106: 100.00 | M106: =(K106*N106)-100 -> 5125 | N106: 1375 | O106: Successful | P106: 2020-11-02 | R106: H
A107: 2 | B107: 2020-11-02 | D107: TATACONSUM 520 CE NOV | E107: Buy | F107: 12.5 | G107: 8 | H107: 15.25 | I107: 20 | J107: Profit of Rs.2.75/- | K107: =H107-F107 -> 2.75 | L107: 100.00 | M107: =(K107*N107)-100 -> 3612.5 | N107: 1350 | O107: Successful | P107: 2020-11-03 | R107: H
A108: 3 | B108: 2020-11-02 | D108: NIFTY 11500 PE 05-NOV | E108: Buy | F108: 72 | G108: 30 | H108: 82.5 | I108: 130 | J108: Profit of Rs.10.5/- | K108: =H108-F108 -> 10.5 | L108: 100.00 | M108: =(K108*N108)-100 -> 687.5 | N108: 75 | O108: Successful | P108: 2020-11-02 | R108: N
A109: 4 | B109: 2020-11-03 | D109: NIFTY 11500 PE 12-NOV | E109: Buy | F109: 105 | G109: 60 | H109: 60 | I109: 180 | J109: Loss of Rs.45/- | K109: =H109-F109 -> -45 | L109: 100.00 | M109: =(K109*N109)-100 -> -3475 | N109: 75 | O109: Unsuccessful | P109: 2020-11-04 | R109: N
A110: 5 | B110: 2020-11-05 | D110: TATACONSUM 520 CE NOV | E110: Buy | F110: 15 | G110: 10 | H110: 17.2 | I110: 23 | J110: Profit of Rs.2.2/- | K110: 2.2 | L110: 100.00 | M110: 2870 | N110: 1350 | O110: Successful | P110: 2020-11-05 | R110: H
A111: 6 | B111: 2020-11-05 | D111: HINDUNILVR 2100 CE NOV | E111: Buy | F111: 45 | G111: 29 | H111: 52 | I111: 70 | J111: Profit of Rs.7/- | K111: 7 | L111: 100.00 | M111: 2000 | N111: 300 | O111: Successful | P111: 2020-11-06 | R111: H
A112: 7 | B112: 2020-11-06 | D112: TATACONSUM 520 CE NOV | E112: Buy | F112: 16.5 | G112: 11.5 | H112: 18.25 | I112: 25 | J112: Profit of Rs.1.75/- | K112: 1.75 | L112: 100.00 | M112: 2262.5 | N112: 1350 | O112: Successful | P112: 2020-11-09 | R112: H
A113: 8 | B113: 2020-11-06 | D113: HDFC 2150 CE NOV | E113: Buy | F113: 46 | G113: 30 | H113: 53 | I113: 70 | J113: Profit of Rs.7/- | K113: =H113-F113 -> 7 | L113: 100.00 | M113: =(K113*N113)-100 -> 2000 | N113: 300 | O113: Successful | P113: 2020-11-06 | R113: N
A114: 9 | B114: 2020-11-06 | D114: HINDUNILVR 2100 CE NOV | E114: Buy | F114: 44.5 | G114: 29 | H114: 52 | I114: 70 | J114: Profit of Rs.7.5/- | K114: 7.5 | L114: 100.00 | M114: 2150 | N114: 300 | O114: Successful | P114: 2020-11-09 | R114: H
A115: 10 | B115: 2020-11-09 | D115: COALINDIA 125 CE NOV | E115: Buy | F115: 2.4 | G115: 1 | H115: 2.95 | I115: 4.0-5.0 | J115: Profit of Rs.0.55/- | K115: =H115-F115 -> 0.55 | L115: 100.00 | M115: =(K115*N115)-100 -> 1935 | N115: 3700 | O115: Successful | P115: 2020-11-10 | R115: H
A116: 11 | B116: 2020-11-09 | D116: BANKNIFTY 27000 PE 12-NOV | E116: Buy | F116: 320 | G116: 140 | H116: 95 | I116: 500-600 | J116: Loss of Rs.225/- | K116: -225 | L116: 100.00 | M116: -5725 | N116: 25 | O116: Unsuccessful | P116: 2020-11-10 | R116: H
A117: 12 | B117: 2020-11-10 | D117: TATACONSUM 520 CE NOV | E117: Buy | F117: 11.5 | G117: 6.5 | H117: 13.35 | I117: 20 | J117: Profit of Rs.1.85/- | K117: 1.85 | L117: 100.00 | M117: 2397.5 | N117: 1350 | O117: Successful | P117: 2020-11-12 | R117: H
A118: 13 | B118: 2020-11-10 | D118: BANKNIFTY 27000 PE 12-NOV | E118: Buy | F118: 320 | G118: 140 | H118: 140 | I118: 500-600 | J118: Loss of Rs.180/- | K118: =H118-F118 -> -180 | L118: 100.00 | M118: =(K118*N118)-100 -> -4600 | N118: 25 | O118: Unsuccessful | P118: 2020-11-10 | R118: H
A119: 14 | B119: 2020-11-10 | D119: NIFTY 12450 PE 12-NOV | E119: Buy | F119: 39.5 | H119: 54 | I119: 95 | J119: Profit of Rs.14.5/- | K119: 14.5 | L119: 100.00 | M119: 987.5 | N119: 75 | O119: Successful | P119: 2020-11-10 | R119: N
A120: 15 | B120: 2020-11-11 | D120: HINDUNILVR 2120 CE NOV | E120: Buy | F120: 44 | G120: 29 | H120: 56.5 | I120: 70 | J120: Profit of Rs.12.5/- | K120: 12.5 | L120: 100.00 | M120: 3650 | N120: 300 | O120: Successful | P120: 2020-11-12 | R120: N
A121: 16 | B121: 2020-11-11 | D121: NIFTY 12650 PE 12-NOV | E121: Buy | F121: 45.5 | H121: 59 | I121: 95 | J121: Profit of Rs.13.5/- | K121: =H121-F121 -> 13.5 | L121: 100.00 | M121: =(K121*N121)-100 -> 912.5 | N121: 75 | O121: Successful | P121: 2020-11-11 | R121: N
A122: 17 | B122: 2020-11-11 | D122: NIFTY 13000 CE 26-NOV | E122: Sell | F122: 88 | G122: 140 | H122: 65 | I122: 1 | J122: Profit of Rs.23/- | K122: =F122-H122 -> 23 | L122: 100.00 | M122: =(K122*N122)-100 -> 1625 | N122: 75 | O122: Successful | P122: 2020-11-12 | R122: H
A123: 18 | B123: 2020-11-11 | D123: NIFTY 12700 PE 12-NOV | E123: Buy | F123: 29 | H123: 41 | I123: 70-80 | J123: Profit of Rs.12/- | K123: =H123-F123 -> 12 | L123: 100.00 | M123: =(K123*N123)-100 -> 800 | N123: 75 | O123: Successful | P123: 2020-11-11 | R123: N
A124: 19 | B124: 2020-11-12 | D124: LT 1060 PE NOV | E124: Buy | F124: 25 | G124: 16 | H124: 30.5 | I124: 35-37 | J124: Profit of Rs.5.5/- | K124: 5.5 | L124: 100.00 | M124: 2925 | N124: 550 | O124: Successful | P124: 2020-11-12 | R124: H
A125: 20 | B125: 2020-11-12 | D125: TATACONSUM 520 CE NOV | E125: Buy | F125: 11.75 | G125: 6.5 | H125: 13.5 | I125: 20 | J125: Profit of Rs.1.75/- | K125: 1.75 | L125: 100.00 | M125: 2262.5 | N125: 1350 | O125: Successful | P125: 2020-11-13 | R125: H
A126: 21 | B126: 2020-11-12 | D126: LT 1060 PE NOV | E126: Buy | F126: 25 | G126: 16 | H126: 27.5 | I126: 35-37 | J126: Profit of Rs.2.5/- | K126: =H126-F126 -> 2.5 | L126: 100.00 | M126: =(K126*N126)-100 -> 1275 | N126: 550 | O126: Successful | P126: 2020-11-13 | R126: H
A127: 22 | B127: 2020-11-13 | D127: HINDUNILVR 2200 CE NOV | E127: Buy | F127: 44.5 | G127: 29 | H127: 52.5 | I127: 70 | J127: Profit of Rs.8/- | K127: 8 | L127: 100.00 | M127: 2300 | N127: 300 | O127: Successful | P127: 2020-11-13 | R127: H
A128: 23 | B128: 2020-11-13 | D128: BATAINDIA 1360 CE NOV | E128: Buy | F128: 29.5 | G128: 20 | H128: 33.5 | I128: 50 | J128: Profit of Rs.4/- | K128: =H128-F128 -> 4 | L128: 100.00 | M128: =(K128*N128)-100 -> 2100 | N128: 550 | O128: Successful | P128: 2020-11-14 | R128: N
A129: 24 | B129: 2020-11-13 | D129: HINDUNILVR 2200 CE NOV | E129: Buy | F129: 44 | G129: 29 | H129: 31 | I129: 70 | J129: Loss of Rs.13/- | K129: -13 | L129: 100.00 | M129: -4000 | N129: 300 | O129: Unsuccessful | P129: 2020-11-17 | R129: H
A130: 25 | B130: 2020-11-13 | D130: AXISBANK 620 CE NOV | E130: Sell | F130: 15 | G130: 22.5 | H130: 22 | I130: 4 | J130: Loss of Rs.7/- | K130: =F130-H130 -> -7 | L130: 100.00 | M130: -8500 | N130: 1200 | O130: Unsuccessful | P130: 2020-11-17 | R130: H
A131: 26 | B131: 2020-11-13 | D131: TATACONSUM 520 CE NOV | E131: Buy | F131: 14-15 | G131: 9.5 | I131: 23 | J131: Open | R131: H
A132: 27 | B132: 2020-11-14 | D132: NIFTY 13000 CE 26-NOV | E132: Sell | F132: 63-67 | G132: 105 | I132: 1 | J132: Open
A133: 28 | B133: 2020-11-17 | D133: NIFTY 12800 PE 19-NOV | E133: Buy | F133: 49.5 | G133: 10 | H133: 61 | I133: 120 | J133: Profit of Rs.11.5/- | K133: =H133-F133 -> 11.5 | L133: 100.00 | M133: =(K133*N133)-100 -> 762.5 | N133: 75 | O133: Successful | P133: 2020-11-17
A134: 29 | B134: 2020-11-17 | D134: NIFTY 12800 PE 19-NOV | E134: Buy | F134: 42-45 | G134: 10 | I134: 120 | J134: Open
A135: 30 | B135: 2020-11-17 | D135: BATAINDIA 1360 CE NOV | E135: Buy | F135: 26 | G135: 16 | H135: 31.5 | I135: 40-45 | J135: Profit of Rs.5.5/- | K135: =H135-F135 -> 5.5 | L135: 100.00 | M135: =(K135*N135)-100 -> 2925 | N135: 550 | O135: Successful | P135: 2020-11-17
A136: 31
A143: Techno -Funda (positional)
A144: Sr.no | B144: Date | D144: Company | E144: Rec | F144: Rec Price | G144: Stop Loss*** | H144: Call Closed At | I144: Target | J144: Remark | K144: Profit / Loss per Share/Lot | L144: All charges | M144: Net Gain / Loss % | N144: Status | O144: Closed Date
A147: CLBS = Closing Basis *** | F147: Reinitiated $
A148: Dividend adjusted <> | F148: Revised stoploss #
B150: Intrday Call
A151: Sr.no | B151: Date | D151: Company | E151: Rec | F151: Rec Price | G151: Stop Loss | H151: Call Closed At | I151: Target | J151: Remark | K151: Profit / Loss per Share/Lot | L151: Gain / Loss per Lot | M151: Lot | N151: All charges | O151: Net Gain / Loss % | P151: Status | Q151: Closed Date
B164: Investment Idea
A165: Sr.no | B165: Date | D165: Company | E165: Rec | F165: Rec Price | G165: Point of Review | H165: Close Rate | I165: Target | J165: Remark | K165: Profit / Loss per Share | L165: Gain / Loss % | M165: Status | N165: Closed Date
A166: 1 | B166: 2013-11-01 | D166: L&T Finance Holding | E166: Accu | F166: 82.00 | G166: - | H166: 100 | I166: 100.00 | J166: Target Achieved | K166: =H166-F166 -> 18.00 | L166: =K166/F166 -> 21.95% | M166: Successful | N166: 2016-10-14
A167: 2 | B167: 2014-06-04 | D167: Finolex Inds | E167: Buy | F167: 257.00 | G167: - | H167: 300 | I167: 300.00 | J167: Target Achieved | K167: 43.00 | L167: 16.73% | M167: Successful | N167: 2014-07-02
A168: 3 | B168: 2014-07-08 | D168: JK Cement | E168: Buy | F168: 393.00 | G168: - | H168: 468 | I168: 468.00 | J168: Target Achieved | K168: 75.00 | L168: 19.08% | M168: Successful | N168: 2014-08-12
A169: 4 | B169: 2014-08-06 | D169: Finolex Cables | E169: Buy | F169: 205.00 | G169: - | H169: 275 | I169: 250.00 | J169: Target Achieved | K169: 70.00 | L169: 34.15% | M169: Successful | N169: 2014-11-19
A170: 5 | B170: 2014-09-04 | D170: Exide Inds | E170: Buy | F170: 162.00 | G170: - | H170: 190 | I170: 190.00 | J170: Target Achieved | K170: 28.00 | L170: 17.28% | M170: Successful | N170: 2015-01-02
A171: 6 | B171: 2014-09-04 | D171: Deepak Nitrite | E171: Buy | F171: 75.00 | G171: - | H171: 91.5 | I171: 95-100 | J171: Profit of Rs.16.50/- | K171: 16.50 | L171: 22.00% | M171: Successful | N171: 2014-11-11
A172: 7 | B172: 2014-10-01 | D172: Mercks | E172: Buy | F172: 850.00 | G172: - | H172: 982.5 | I172: 1050.00 | J172: Profit of Rs.132.50/- | K172: 132.50 | L172: 15.59% | M172: Successful | N172: 2015-02-04
A173: 8 | B173: 2014-10-01 | D173: Grindwell Norton | E173: Buy | F173: 475.00 | G173: - | H173: 515 | I173: 600.00 | J173: Profit of Rs.40/- | K173: 40.00 | L173: 8.42% | M173: Successful | N173: 2014-10-27
A174: 9 | B174: 2014-10-01 | D174: Snowman Logistics | E174: Buy | F174: 86.00 | G174: - | H174: 99 | I174: 140.00 | J174: Profit of Rs.13.00/- | K174: 13.00 | L174: 15.12% | M174: Successful | N174: 2014-10-27
A175: 10 | B175: 2014-10-14 | D175: Birla Corp | E175: Buy | F175: 496.60 | G175: - | H175: 621 | I175: 580.00 | J175: Target Achieved | K175: 124.40 | L175: 25.05% | M175: Successful | N175: 2016-08-23
A176: 11 | B176: 2014-10-14 | D176: Ultratech Cem | E176: Buy | F176: 2481.90 | G176: - | H176: 2840 | I176: 2870.00 | J176: Profit of Rs.358.10/- | K176: 358.10 | L176: 14.43% | M176: Successful | N176: 2015-01-13
A177: 12 | B177: 2014-10-16 | D177: Sintex Inds | E177: Buy | F177: 84.50 | G177: - | H177: 93 | I177: 110.00 | J177: Profit of Rs.8.50/- | K177: 8.50 | L177: 10.06% | M177: Successful | N177: 2014-10-27
A178: 13 | B178: 2014-10-16 | D178: HSIL | E178: Buy | F178: 401.00 | G178: - | H178: 428 | I178: 450.00 | J178: Profit of Rs.27.00/- | K178: 27.00 | L178: 6.73% | M178: Successful | N178: 2015-01-16
A179: 14 | B179: 2014-10-16 | D179: Eveready Inds | E179: Buy | F179: 101.00 | G179: - | H179: 112 | I179: 120.00 | J179: Profit of Rs.11.00/- | K179: 11.00 | L179: 10.89% | M179: Successful | N179: 2014-10-27
A180: 15 | B180: 2014-11-11 | D180: Pennar Inds | E180: Buy | F180: 59.00 | G180: - | H180: 76 | I180: 76.00 | J180: Target Achieved | K180: 17.00 | L180: 28.81% | M180: Successful | N180: 2017-10-24
A181: 16 | B181: 2014-11-11 | D181: Snowman Logistics | E181: Buy | F181: 99.00 | G181: - | H181: 120 | I181: 120.00 | J181: Profit of Rs.21/- | K181: 21.00 | L181: 21.21% | M181: Successful | N181: 2014-11-17
A182: 17 | B182: 2014-11-13 | D182: Dharamsi Morarji Chem | E182: Buy | F182: 22.00 | G182: - | H182: 33.55 | I182: 32.00 | J182: Profit of Rs 11.55/- | K182: 11.55 | L182: 52.50% | M182: Successful | N182: 2015-07-03
A183: 18 | B183: 2014-12-03 | D183: Tatachem | E183: Buy | F183: 440.00 | G183: - | H183: 520 | I183: 520.00 | J183: Profit of Rs 80.00/- | K183: 80.00 | L183: 18.18% | M183: Successful | N183: 2015-07-23
A184: 19 | B184: 2014-12-03 | D184: Advanta | E184: Buy | F184: 360.00 | G184: - | H184: 427 | I184: 425.00 | J184: Profit of Rs.67.00/- | K184: 67.00 | L184: 18.61% | M184: Successful | N184: 2015-02-23
A185: 20 | B185: 2015-01-08 | D185: GDL | E185: Buy | F185: 360.00 | G185: - | H185: 455 | I185: 420.00 | J185: Profit of Rs.95.00/- | K185: 95.00 | L185: 26.39% | M185: Successful | N185: 2015-01-20
A186: 21 | B186: 2015-01-08 | D186: NRB Bearing | E186: Buy | F186: 130.00 | H186: 175.5 | I186: 165.00 | J186: Profit of Rs 45.50/- | K186: 45.50 | L186: 35.00% | M186: Successful | N186: 2017-12-19
A187: 22 | B187: 2015-02-05 | D187: GSFC | E187: Accu | F187: 98.00 | H187: 120 | I187: 120.00 | J187: Target Achieved | K187: 22.00 | L187: 22.45% | M187: Successful | N187: 2017-01-18
A188: 23 | B188: 2015-02-05 | D188: Sundrmfast | E188: Accu | F188: 196.00 | H188: 262 | I188: 255.00 | J188: Target Achieved | K188: 66.00 | L188: 33.67% | M188: Successful | N188: 2016-08-17
A189: 24 | B189: 2015-03-04 | D189: GPPL | E189: Accu | F189: 235 | H189: 77.00 | I189: 280-285 | J189: Loss of Rs.158/- | K189: -158.00 | L189: -67.23% | M189: Unsuccessful | N189: 2019-02-26
A190: 25 | B190: 2015-03-04 | D190: ORIENTCEM | E190: Accu | F190: 185.00 | H190: 224 | I190: 220-225 | J190: Target Achieved | K190: 39.00 | L190: 21.08% | M190: Successful | N190: 2016-10-04
A191: 26 | B191: 2015-03-27 | D191: PFS | E191: Accu | F191: 49.5 | H191: 15.85 | I191: 67.00 | J191: Loss of Rs.33.65/- | K191: -33.65 | L191: -68% | M191: Unsuccessful | N191: 2019-06-11
A192: 27 | B192: 2015-03-30 | D192: Walchandnagar Ind Ltd | E192: Accu | F192: 183.50 | H192: 219 | I192: 218.00 | J192: Profit of Rs.35.50/- | K192: 35.50 | L192: 19.35% | M192: Successful | N192: 2015-04-09
A193: 28 | B193: 2015-04-20 | D193: Kalpataru Power Transmission Ltd | E193: Accu | F193: =(227+237)/2 -> 232.00 | H193: 298 | I193: 298.00 | J193: Target Achieved | K193: 66.00 | L193: 28.45% | M193: Successful | N193: 2017-03-29
A194: 29 | B194: 2015-05-04 | D194: Mastek Ltd | E194: Buy | F194: 385.00 | H194: =212.5+331 -> 543.5 | I194: 510.00 | J194: Profit of Rs 158.50/- | K194: 158.50 | L194: 41.17% | M194: Successful | N194: 2015-08-19
A195: 30 | B195: 2015-05-04 | D195: Suprajit Eng | E195: Buy | F195: 115.50 | H195: 146 | I195: 142.00 | J195: Profit of Rs 30.50/- | K195: 30.50 | L195: 26.41% | M195: Successful | N195: 2015-07-17
A196: 31 | B196: 2015-05-27 | D196: TCI | E196: Buy | F196: 237.50 | H196: 279.5 | I196: 278.00 | J196: Target Achieved | K196: 42.00 | L196: 17.68% | M196: Successful | N196: 2015-08-06
A197: 32 | B197: 2015-06-19 | D197: HSIL | E197: Accu | F197: 340.00 | H197: 448 | I197: 448.00 | J197: Target Achieved | K197: 108.00 | L197: 31.76% | M197: Successful | N197: 2017-10-10
A198: 33 | B198: 2015-07-06 | D198: Capital First | E198: Accu | F198: 390.00 | H198: 460 | I198: 460.00 | J198: Target Achieved | K198: =H198-F198 -> 70.00 | L198: =K198/F198 -> 17.95% | M198: Successful | N198: 2016-04-18
A199: 34 | B199: 2015-07-10 | D199: Dolphin OffShore | E199: Accu | F199: 122.5 | H199: 61.00 | I199: 172.00 | J199: Loss of Rs.61.50/- | K199: -61.50 | L199: -50.20% | M199: Unsuccessful | N199: 2018-08-21
A200: 35 | B200: 2015-08-03 | D200: Allcargo logistics | E200: Accu | F200: 297.50 | H200: 350 | I200: 360.00 | J200: Profit of Rs 52.50/- | K200: 52.50 | L200: 17.65% | M200: Successful | N200: 2015-08-16
A201: 36 | B201: 2015-08-03 | D201: Camline Fine | E201: Accu | F201: 115.50 | H201: 149 | I201: 140.00 | J201: Profit of Rs 33.50/- | K201: 33.50 | L201: 29.00% | M201: Successful | N201: 2017-01-05
A202: 37 | B202: 2015-09-04 | D202: TCI | E202: Accu | F202: 226.00 | H202: 292 | I202: 292.00 | J202: Target Achieved | K202: 66.00 | L202: 29.20% | M202: Successful | N202: 2015-10-09
A203: 38 | B203: 2015-09-07 | D203: Kalpataru Power Transmission Ltd | E203: Accu | F203: 232.50 | H203: 312.5 | I203: 310.00 | J203: Target Achieved | K203: 80.00 | L203: 34.41% | M203: Successful | N203: 2017-03-29
A204: 39 | B204: 2015-09-21 | D204: LLOYD ELECTRIC & ENG LTD | E204: Accu | F204: 196.50 | H204: 238 | I204: 238.00 | J204: Target Achieved | K204: 41.50 | L204: 21.12% | M204: Successful | N204: 2015-10-14
A205: 40 | B205: 2015-09-24 | D205: L&T Finance Holding | E205: Accu | F205: 65.00 | H205: 82 | I205: 82.00 | J205: Target Achieved | K205: 17.00 | L205: 26.15% | M205: Successful | N205: 2016-07-27
A206: 41 | B206: 2015-10-14 | D206: KEC International ltd | E206: Accu | F206: 144.00 | H206: 182.5 | I206: 181.00 | J206: Target Achieved | K206: 38.50 | L206: 26.74% | M206: Successful | N206: 2017-03-23
A207: 42 | B207: 2015-10-14 | D207: Gruh Finance | E207: Accu | F207: 264.00 | H207: 311 | I207: 311.00 | J207: Target Achieved | K207: 47.00 | L207: 17.80% | M207: Successful | N207: 2016-08-22
A208: 43 | B208: 2015-11-10 | D208: Pidilitind | E208: Buy | F208: 549.50 | H208: 630 | I208: 630.00 | J208: Target Achieved | K208: 80.50 | L208: 14.65% | M208: Successful | N208: 2016-02-19
A209: 44 | B209: 2015-12-04 | D209: Zensar Technology | E209: Accu | F209: 1027.50 | H209: 1315 | I209: 1250.00 | J209: Target Achieved | K209: 287.50 | L209: 27.98% | M209: Successful | N209: 2018-05-24
A210: 45 | B210: 2015-12-29 | D210: Vinati Organics Ltd | E210: Accu | F210: 465.00 | H210: 540 | I210: 540.00 | J210: Target Achieved | K210: 75.00 | L210: 16.13% | M210: Successful | N210: 2016-06-09
A211: 46 | B211: 2016-01-11 | D211: GSFC | E211: Buy | F211: 81.00 | H211: 110 | I211: 110.00 | J211: Target Achieved | K211: 29.00 | L211: 35.80% | M211: Successful | N211: 2017-01-10
A212: 47 | B212: 2016-01-13 | D212: SSWL | E212: Buy | F212: 417.50 | H212: 547 | I212: 535.00 | J212: Target Achieved | K212: 129.50 | L212: 31.02% | M212: Successful | N212: 2016-07-27
A213: 48 | B213: 2016-02-08 | D213: Persistent System Ltd | E213: Accu | F213: 650.00 | H213: 800 | I213: 800.00 | J213: Target Achieved | K213: 150.00 | L213: 23.08% | M213: Successful | N213: 2018-02-23
A214: 49 | B214: 2016-03-04 | D214: UPL | E214: Accu | F214: 437.50 | H214: 504.5 | I214: 522.00 | J214: Profit of Rs.67/- | K214: 67.00 | L214: 15.31% | M214: Successful | N214: 2016-04-20
A215: 50 | B215: 2016-03-09 | D215: Ashoka Buildcon Ltd | E215: Accu | F215: 189.50 | H215: 218 | I215: 218.00 | J215: Target Achieved | K215: 28.50 | L215: 15.04% | M215: Successful | N215: 2017-10-26
A216: 51 | B216: 2016-04-11 | D216: PTC INDIA FIN SERV LTD | E216: Accu | F216: 36.5 | H216: 15.85 | I216: 60.00 | J216: Loss of Rs.20.65/- | K216: -20.65 | L216: -56.58% | M216: Unsuccessful | N216: 2019-06-11
A217: 52 | B217: 2016-04-12 | D217: CAMLINFINE $ | E217: Accu | F217: 93.00 | H217: 149 | I217: 140.00 | J217: Profit of Rs 56/- | K217: 56.00 | L217: 60.22% | M217: Successful | N217: 2017-01-05
A218: 53 | B218: 2016-04-12 | D218: Greaves Cotton Ltd. | E218: Accu | F218: 130.00 | H218: 150 | I218: 150-155 | J218: Target Achieved | K218: 20.00 | L218: 15.38% | M218: Successful | N218: 2016-07-13
A219: 54 | B219: 2016-04-13 | D219: DHFL | E219: Accu | F219: 196.00 | H219: 299 | I219: 299.00 | J219: Target Achieved | K219: 103.00 | L219: 52.55% | M219: Successful | N219: 2016-09-07
A220: 55 | B220: 2016-04-13 | D220: Magma | E220: Accu | F220: 88.00 | H220: 103 | I220: 103.00 | J220: Target Achieved | K220: 15.00 | L220: 17.05% | M220: Successful | N220: 2016-06-09
A221: 56 | B221: 2016-05-02 | D221: KEC International ltd $ | E221: Accu | F221: 127.50 | H221: 148 | I221: 148-150 | J221: Target Achieved | K221: =H221-F221 -> 20.50 | L221: =K221/F221 -> 16.08% | M221: Successful | N221: 2016-07-13
A222: 57 | B222: 2016-05-03 | D222: Mindtree | E222: Accu | F222: 675.00 | H222: 815 | I222: 790-800 | J222: Target Achieved | K222: =H222-F222 -> 140.00 | L222: =K222/F222 -> 20.74% | M222: Successful | N222: 2018-02-23
A223: 58 | B223: 2016-06-01 | D223: Atulauto | E223: Accu | F223: 500 | H223: 232.50 | I223: 565-570 | J223: Loss of Rs.267.50 /- | K223: =H223-F223 -> -267.50 | L223: =K223/F223 -> -53.50% | M223: Unsuccessful | N223: 2019-09-27
A224: 59 | B224: 2016-06-06 | D224: TRITURBINE | E224: Accu | F224: 110.00 | H224: 126.5 | I224: 125.00 | J224: Profit of Rs.16.50/- | K224: =H224-F224 -> 16.50 | L224: =K224/F224 -> 15.00% | M224: Successful | N224: 2016-07-01
A225: 60 | B225: 2016-06-17 | D225: Pennar Industries Ltd | E225: Accu | F225: 44.00 | H225: 69.5 | I225: 69.50 | J225: Profit of Rs.25.50/- | K225: =H225-F225 -> 25.50 | L225: =K225/F225 -> 57.95% | M225: Successful | N225: 2017-08-30
A226: 61 | B226: 2016-06-28 | D226: EVEREADY | E226: Accu | F226: 262.50 | H226: 340 | I226: 333.00 | J226: Profit of Rs.77.50/- | K226: 77.50 | L226: 29.52% | M226: Successful | N226: 2017-10-09
A227: 62 | B227: 2016-06-28 | D227: FIEMIND | E227: Accu | F227: 840.00 | H227: 1230 | I227: 1230.00 | J227: Target Achieved | K227: 390.00 | L227: 46.43% | M227: Successful | N227: 2016-10-06
A228: 63 | B228: 2016-07-05 | D228: Bajaj Corp Ltd | E228: Accu | F228: 395 | H228: =(468.5+342.5)/2 -> 405.50 | I228: 510.00 | J228: Profit of Rs.10.50/- | K228: =H228-F228 -> 10.50 | L228: =K228/F228 -> 3% | M228: Neutral | N228: 2019-05-21
A229: 64 | B229: 2016-08-02 | D229: GPPL $ | E229: Buy | F229: =169.5-12.8 -> 156.7 | H229: 77.00 | I229: 198-200 | J229: Loss of Rs.79.7/- | K229: -79.70 | L229: -50.86% | M229: Unsuccessful | N229: 2019-02-26
A230: 65 | B230: 2016-08-04 | D230: WONDERLA HOLIDAYS LTD | E230: Accu | F230: 400 | H230: 305.00 | I230: 475.00 | J230: Loss of Rs.95/- | K230: -95.00 | L230: -23.75% | M230: Unsuccessful | N230: 2019-05-21
A231: 66 | B231: 2016-08-11 | D231: CAMLINFINE | E231: Accu | F231: 86.50 | H231: 130 | I231: 130.00 | J231: Profit of Rs.43.50/- | K231: 43.50 | L231: 50.29% | M231: Successful | N231: 2017-12-22
A232: 67 | B232: 2016-08-18 | D232: GRANULES | E232: Accu | F232: 133.5 | H232: 126.50 | I232: 178.00 | J232: Exit | K232: -7.00 | L232: -5.24% | M232: Unsuccessful | N232: 2016-09-02
A233: 68 | B233: 2016-08-31 | D233: VA TECH WABAG | E233: Accu | F233: 560.00 | H233: 725 | I233: 725.00 | J233: Target Achieved | K233: 165.00 | L233: 29.46% | M233: Successful | N233: 2016-03-27
A234: 69 | B234: 2016-09-01 | D234: SKIPPER LIMITED | E234: Accu | F234: 160.50 | H234: 210 | I234: 210.00 | J234: Target Achieved | K234: 49.50 | L234: 30.84% | M234: Successful | N234: 2017-05-16
A235: 70 | B235: 2016-10-03 | D235: IFBIND | E235: Accu | F235: 430.00 | H235: 596 | I235: 575.00 | J235: Profit of Rs.166/- | K235: 166.00 | L235: 38.60% | M235: Successful | N235: 2017-02-03
A236: 71 | B236: 2016-10-14 | D236: ASIANTILES | E236: Accu | F236: 280.00 | H236: 345 | I236: 345.00 | J236: Target Achieved | K236: =H236-F236 -> 65.00 | L236: =K236/F236 -> 23.21% | M236: Successful | N236: 2017-03-20
A237: 72 | B237: 2016-10-14 | D237: DEEPIND | E237: Accu | F237: 245.00 | H237: 325.5 | I237: 330.00 | J237: Profit of Rs.80.5/- | K237: 80.50 | L237: =K237/F237 -> 32.86% | M237: Successful | N237: 2017-02-03
A238: 73 | B238: 2016-10-17 | D238: DCBBANK | E238: Accu | F238: 125.00 | H238: 160 | I238: 160.00 | J238: Target Achieved | K238: 35.00 | L238: 28.00% | M238: Successful | N238: 2017-03-09
A239: 74 | B239: 2016-10-17 | D239: ORIENTREF | E239: Accu | F239: 114.00 | H239: 145 | I239: 145.00 | J239: Target Achieved | K239: 31.00 | L239: =K239/F239 -> 27.19% | M239: Successful | N239: 2017-05-04
A240: 75 | B240: 2016-10-17 | D240: GANECOS | E240: Accu | F240: 212.00 | H240: 280 | I240: 276.00 | J240: Profit of Rs.68/- | K240: 68.00 | L240: =K240/F240 -> 32.08% | M240: Successful | N240: 2017-05-03
A241: 76 | B241: 2016-11-04 | D241: NBCC | E241: Accu | F241: 155.00 | H241: 210 | I241: 210.00 | J241: Profit of Rs.55/- | K241: 55.00 | L241: =K241/F241 -> 35.48% | M241: Successful | N241: 2017-07-28
... 85 more rows

Sheet Sheet2 (hidden)
A1: SYMBOL | B1: SERIES | C1: OPEN | D1: HIGH | E1: LOW | F1: CLOSE | G1: LAST | H1: PREVCLOSE | I1: TOTTRDQTY | J1: TOTTRDVAL | K1: TIMESTAMP | L1: TOTALTRADES | M1: ISIN | N1: ISIN
A2: 20MICRONS | B2: EQ | C2: 27.9 | D2: 29 | E2: 25.9 | F2: 26.2 | G2: 25.9 | H2: 27.5 | I2: 80527 | J2: 2193820.55 | K2: 2020-04-08 | L2: 1099 | M2: INE144J01027
A3: 21STCENMGM | B3: EQ | C3: 10.15 | D3: 10.5 | E3: 10.1 | F3: 10.4 | G3: 10.5 | H3: 10.3 | I3: 3205 | J3: 32728.25 | K3: 2020-04-08 | L3: 28 | M3: INE253B01015
A4: 3IINFOTECH | B4: EQ | C4: 1.35 | D4: 1.35 | E4: 1.2 | F4: 1.25 | G4: 1.25 | H4: 1.35 | I4: 2793301 | J4: 3578364.95 | K4: 2020-04-08 | L4: 46535 | M4: INE748C01020
A5: 3MINDIA | B5: EQ | C5: 18950 | D5: 19170 | E5: 18155.05 | F5: 18318.2 | G5: 18270 | H5: 18755.7 | I5: 9926 | J5: 183605811.2 | K5: 2020-04-08 | L5: 4453 | M5: INE470A01017
A6: 3PLAND | B6: EQ | C6: 3.7 | D6: 3.85 | E6: 3.7 | F6: 3.85 | G6: 3.85 | H6: 3.7 | I6: 406 | J6: 1557.85 | K6: 2020-04-08 | L6: 9 | M6: INE105C01023
A7: 5PAISA | B7: EQ | C7: 119.95 | D7: 134 | E7: 115 | F7: 123.35 | G7: 120.5 | H7: 116.4 | I7: 6500 | J7: 793277.05 | K7: 2020-04-08 | L7: 265 | M7: INE618L01018
A8: 63MOONS | B8: EQ | C8: 50.7 | D8: 55.45 | E8: 50.7 | F8: 53.7 | G8: 53.55 | H8: 50.7 | I8: 72221 | J8: 3890984.7 | K8: 2020-04-08 | L8: 3078 | M8: INE111B01023
A9: A2ZINFRA | B9: EQ | C9: 3.15 | D9: 3.25 | E9: 3.1 | F9: 3.15 | G9: 3.15 | H9: 3.15 | I9: 116011 | J9: 367778.85 | K9: 2020-04-08 | L9: 227 | M9: INE619I01012
A10: AARTIDRUGS | B10: EQ | C10: 627 | D10: 669.3 | E10: 605 | F10: 631.6 | G10: 625 | H10: 607.85 | I10: 75970 | J10: 48223549.15 | K10: 2020-04-08 | L10: 5720 | M10: INE767A01016
A11: AARTIIND | B11: EQ | C11: 839.95 | D11: 909.8 | E11: 818 | F11: 854.9 | G11: 864 | H11: 830.7 | I11: 477805 | J11: 419092386.9 | K11: 2020-04-08 | L11: 50045 | M11: INE769A01020
A12: AARVEEDEN | B12: EQ | C12: 8.95 | D12: 9.25 | E12: 7.85 | F12: 8.35 | G12: 8.45 | H12: 8.1 | I12: 9251 | J12: 77100.1 | K12: 2020-04-08 | L12: 94 | M12: INE273D01019
A13: AAVAS | B13: EQ | C13: 1101 | D13: 1183 | E13: 1101 | F13: 1135.2 | G13: 1137 | H13: 1142.35 | I13: 24179 | J13: 28073100.85 | K13: 2020-04-08 | L13: 3631 | M13: INE216P01012
A14: ABAN | B14: EQ | C14: 15.7 | D14: 16.2 | E14: 15.7 | F14: 16.2 | G14: 16.2 | H14: 15.45 | I14: 37609 | J14: 608439.6 | K14: 2020-04-08 | L14: 288 | M14: INE421A01028
A15: ABB | B15: EQ | C15: 935 | D15: 965 | E15: 910 | F15: 930.7 | G15: 928 | H15: 931.35 | I15: 87757 | J15: 82358527.9 | K15: 2020-04-08 | L15: 4699 | M15: INE117A01022
A16: ABBOTINDIA | B16: EQ | C16: 16799.45 | D16: 18250 | E16: 16750 | F16: 17481.1 | G16: 17488 | H16: 16699.7 | I16: 57991 | J16: 1023745502 | K16: 2020-04-08 | L16: 21022 | M16: INE358A01014
A17: ABCAPITAL | B17: EQ | C17: 45 | D17: 47.9 | E17: 44.25 | F17: 45.6 | G17: 45.7 | H17: 45.1 | I17: 1253267 | J17: 57952493.6 | K17: 2020-04-08 | L17: 7317 | M17: INE674K01013
A18: ABFRL | B18: EQ | C18: 148 | D18: 152.8 | E18: 146.75 | F18: 149 | G18: 148 | H18: 149.85 | I18: 416099 | J18: 62371769.1 | K18: 2020-04-08 | L18: 10148 | M18: INE647O01011
A19: ABSLNN50ET | B19: EQ | C19: 244 | D19: 248 | E19: 210 | F19: 235 | G19: 235 | H19: 244 | I19: 56 | J19: 12779.4 | K19: 2020-04-08 | L19: 13 | M19: INF209KB1B87
A20: ACC | B20: EQ | C20: 1000 | D20: 1029.9 | E20: 941.25 | F20: 956.05 | G20: 958 | H20: 1009.95 | I20: 2153627 | J20: 2101320389 | K20: 2020-04-08 | L20: 79728 | M20: INE012A01025
A21: ACCELYA | B21: EQ | C21: 874.3 | D21: 886 | E21: 862 | F21: 880.45 | G21: 879.95 | H21: 874.3 | I21: 10865 | J21: 9557704.55 | K21: 2020-04-08 | L21: 923 | M21: INE793A01012
A22: ACE | B22: EQ | C22: 32.75 | D22: 35.2 | E22: 32.55 | F22: 33.25 | G22: 33.35 | H22: 32.95 | I22: 244708 | J22: 8296578.4 | K22: 2020-04-08 | L22: 2925 | M22: INE731H01025
A23: ADANIENT | B23: EQ | C23: 136.85 | D23: 147.15 | E23: 134.9 | F23: 138.1 | G23: 137.5 | H23: 138.15 | I23: 3237290 | J23: 456492273.1 | K23: 2020-04-08 | L23: 23696 | M23: INE423A01024
A24: ADANIGAS | B24: EQ | C24: 93.9 | D24: 96.35 | E24: 90.5 | F24: 90.8 | G24: 90.65 | H24: 94 | I24: 1888606 | J24: 176837924.4 | K24: 2020-04-08 | L24: 14517 | M24: INE399L01023
A25: ADANIGREEN | B25: EQ | C25: 166.85 | D25: 166.85 | E25: 162 | F25: 166.45 | G25: 166.85 | H25: 158.95 | I25: 702014 | J25: 116248737 | K25: 2020-04-08 | L25: 10187 | M25: INE364U01010
A26: ADANIPORTS | B26: EQ | C26: 248 | D26: 255.85 | E26: 242.75 | F26: 250.85 | G26: 249.7 | H26: 248.1 | I26: 6897883 | J26: 1724830525 | K26: 2020-04-08 | L26: 81499 | M26: INE742F01042
A27: ADANIPOWER | B27: EQ | C27: 28.65 | D27: 31.15 | E27: 27.5 | F27: 28.95 | G27: 28.85 | H27: 28.8 | I27: 12308064 | J27: 361987996.9 | K27: 2020-04-08 | L27: 23153 | M27: INE814H01011
A28: ADANITRANS | B28: EQ | C28: 196.65 | D28: 202 | E28: 190 | F28: 193.65 | G28: 193.5 | H28: 198.3 | I28: 306320 | J28: 59783940.3 | K28: 2020-04-08 | L28: 4236 | M28: INE931S01010
A29: ADFFOODS | B29: EQ | C29: 187.85 | D29: 192.25 | E29: 184 | F29: 187.7 | G29: 187.3 | H29: 183.1 | I29: 22107 | J29: 4185556.05 | K29: 2020-04-08 | L29: 773 | M29: INE982B01019
A30: ADHUNIKIND | B30: EQ | C30: 13.3 | D30: 13.3 | E30: 13.3 | F30: 13.3 | G30: 13.3 | H30: 12.7 | I30: 5518 | J30: 73389.4 | K30: 2020-04-08 | L30: 21 | M30: INE452L01012
A31: ADLABS | B31: EQ | C31: 2.75 | D31: 2.85 | E31: 2.75 | F31: 2.85 | G31: 2.85 | H31: 2.75 | I31: 19360 | J31: 54965.35 | K31: 2020-04-08 | L31: 72 | M31: INE172N01012
A32: ADORWELD | B32: EQ | C32: 195.7 | D32: 201.9 | E32: 193.95 | F32: 195.1 | G32: 194.45 | H32: 196.75 | I32: 1438 | J32: 283768.75 | K32: 2020-04-08 | L32: 94 | M32: INE045A01017
A33: ADROITINFO | B33: EQ | C33: 5.5 | D33: 5.7 | E33: 5.45 | F33: 5.7 | G33: 5.7 | H33: 5.7 | I33: 691 | J33: 3857 | K33: 2020-04-08 | L33: 25 | M33: INE737B01033
A34: ADSL | B34: EQ | C34: 13.05 | D34: 13.2 | E34: 12.4 | F34: 12.5 | G34: 12.45 | H34: 12.7 | I34: 16203 | J34: 205559.25 | K34: 2020-04-08 | L34: 143 | M34: INE102I01027
A35: ADVANIHOTR | B35: EQ | C35: 30.1 | D35: 33 | E35: 30.1 | F35: 31.8 | G35: 31.5 | H35: 30.65 | I35: 5340 | J35: 169948.95 | K35: 2020-04-08 | L35: 193 | M35: INE199C01026
A36: ADVENZYMES | B36: EQ | C36: 140.2 | D36: 146.55 | E36: 137.95 | F36: 139.2 | G36: 139.75 | H36: 136.55 | I36: 77441 | J36: 11046136.15 | K36: 2020-04-08 | L36: 1990 | M36: INE837H01020
A37: AEGISCHEM | B37: EQ | C37: 150 | D37: 158.5 | E37: 147.1 | F37: 156.35 | G37: 156.05 | H37: 144.1 | I37: 175470 | J37: 27041093.9 | K37: 2020-04-08 | L37: 4268 | M37: INE208C01025
A38: AFFLE | B38: BE | C38: 1050 | D38: 1053.45 | E38: 1030 | F38: 1053.45 | G38: 1053.45 | H38: 1003.3 | I38: 8191 | J38: 8619737.5 | K38: 2020-04-08 | L38: 470 | M38: INE00WC01019
A39: AGARIND | B39: EQ | C39: 49.8 | D39: 52.85 | E39: 49.05 | F39: 52.25 | G39: 52.5 | H39: 49.95 | I39: 7826 | J39: 404450.25 | K39: 2020-04-08 | L39: 207 | M39: INE204E01012
A40: AGCNET | B40: BE | C40: 224.35 | D40: 235.55 | E40: 213.25 | F40: 234.7 | G40: 235.55 | H40: 224.35 | I40: 2524 | J40: 573063 | K40: 2020-04-08 | L40: 70 | M40: INE676A01019
A41: AGRITECH | B41: EQ | C41: 23.95 | D41: 23.95 | E41: 23.95 | F41: 23.95 | G41: 23.95 | H41: 22.85 | I41: 504 | J41: 12070.8 | K41: 2020-04-08 | L41: 18 | M41: INE449G01018
A42: AGROPHOS | B42: EQ | C42: 5.7 | D42: 5.7 | E42: 5.2 | F42: 5.7 | G42: 5.7 | H42: 5.45 | I42: 40596 | J42: 227201.55 | K42: 2020-04-08 | L42: 340 | M42: INE740V01019
A43: AHLEAST | B43: EQ | C43: 133.15 | D43: 141.85 | E43: 128.15 | F43: 131.55 | G43: 128.35 | H43: 131.5 | I43: 3303 | J43: 439718.1 | K43: 2020-04-08 | L43: 350 | M43: INE926K01017
A44: AHLUCONT | B44: EQ | C44: 145.95 | D44: 148 | E44: 136 | F44: 146.3 | G44: 148 | H44: 144.1 | I44: 153910 | J44: 21077811.2 | K44: 2020-04-08 | L44: 995 | M44: INE758C01029
A45: AHLWEST | B45: EQ | C45: 289.9 | D45: 289.9 | E45: 270.95 | F45: 275 | G45: 275 | H45: 277 | I45: 238 | J45: 67030 | K45: 2020-04-08 | L45: 91 | M45: INE915K01010
A46: AIAENG | B46: EQ | C46: 1259.45 | D46: 1291 | E46: 1229 | F46: 1255.85 | G46: 1268 | H46: 1249.9 | I46: 73842 | J46: 92756824.05 | K46: 2020-04-08 | L46: 10503 | M46: INE212H01026
A47: AIONJSW | B47: EQ | C47: 10.9 | D47: 11.1 | E47: 10.2 | F47: 11.1 | G47: 11.1 | H47: 10.6 | I47: 90347 | J47: 996144.95 | K47: 2020-04-08 | L47: 180 | M47: INE743C01021
A48: AIRAN | B48: EQ | C48: 9.8 | D48: 10.3 | E48: 9.75 | F48: 9.8 | G48: 9.75 | H48: 9.85 | I48: 1826 | J48: 18127.1 | K48: 2020-04-08 | L48: 25 | M48: INE645W01026
A49: AJANTPHARM | B49: EQ | C49: 1325.75 | D49: 1450 | E49: 1325 | F49: 1367.5 | G49: 1363 | H49: 1340.2 | I49: 166582 | J49: 233126032.5 | K49: 2020-04-08 | L49: 8748 | M49: INE031B01049
A50: AJMERA | B50: EQ | C50: 64.95 | D50: 70.5 | E50: 64.6 | F50: 68.4 | G50: 69.9 | H50: 64.65 | I50: 31766 | J50: 2167947.5 | K50: 2020-04-08 | L50: 909 | M50: INE298G01027
A51: AKASH | B51: BE | C51: 90 | D51: 90 | E51: 90 | F51: 90 | G51: 90 | H51: 90.95 | I51: 500 | J51: 45000 | K51: 2020-04-08 | L51: 1 | M51: INE737W01013
A52: AKSHARCHEM | B52: EQ | C52: 174.75 | D52: 177.6 | E52: 165.3 | F52: 169.7 | G52: 167.15 | H52: 165.25 | I52: 3130 | J52: 531878.25 | K52: 2020-04-08 | L52: 293 | M52: INE542B01011
A53: AKSHOPTFBR | B53: EQ | C53: 3.6 | D53: 3.6 | E53: 3.6 | F53: 3.6 | G53: 3.6 | H53: 3.45 | I53: 27750 | J53: 99900 | K53: 2020-04-08 | L53: 45 | M53: INE523B01011
A54: AKZOINDIA | B54: EQ | C54: 2084.95 | D54: 2133 | E54: 2030 | F54: 2047.9 | G54: 2040 | H54: 2086.75 | I54: 12835 | J54: 26789836.95 | K54: 2020-04-08 | L54: 2242 | M54: INE133A01011
A55: ALANKIT | B55: EQ | C55: 12.9 | D55: 12.9 | E55: 12.9 | F55: 12.9 | G55: 12.9 | H55: 12.3 | I55: 14247 | J55: 183786.3 | K55: 2020-04-08 | L55: 75 | M55: INE914E01040
A56: ALBERTDAVD | B56: EQ | C56: 338.8 | D56: 364.75 | E56: 338.8 | F56: 353.15 | G56: 352 | H56: 341.15 | I56: 24334 | J56: 8579416.55 | K56: 2020-04-08 | L56: 1220 | M56: INE155C01010
A57: ALCHEM | B57: BE | C57: 1.4 | D57: 1.4 | E57: 1.4 | F57: 1.4 | G57: 1.4 | H57: 1.35 | I57: 8608 | J57: 12051.2 | K57: 2020-04-08 | L57: 18 | M57: INE964B01033
A58: ALEMBICLTD | B58: EQ | C58: 43.7 | D58: 48.05 | E58: 39.7 | F58: 45.05 | G58: 45.5 | H58: 42.15 | I58: 695128 | J58: 31779132.75 | K58: 2020-04-08 | L58: 6991 | M58: INE426A01027
A59: ALICON | B59: EQ | C59: 195.95 | D59: 196 | E59: 181.05 | F59: 184.75 | G59: 184 | H59: 189.25 | I59: 3909 | J59: 722322.5 | K59: 2020-04-08 | L59: 123 | M59: INE062D01024
A60: ALKALI | B60: EQ | C60: 29.95 | D60: 31.75 | E60: 29.65 | F60: 31.75 | G60: 31.75 | H60: 28.9 | I60: 9346 | J60: 289594.95 | K60: 2020-04-08 | L60: 349 | M60: INE773I01017
A61: ALKEM | B61: EQ | C61: 2360 | D61: 2736.5 | E61: 2326.2 | F61: 2671.15 | G61: 2639 | H61: 2324.05 | I61: 371259 | J61: 967330461.6 | K61: 2020-04-08 | L61: 44106 | M61: INE540L01014
A62: ALKYLAMINE | B62: EQ | C62: 1236.6 | D62: 1398 | E62: 1222.2 | F62: 1334.05 | G62: 1334 | H62: 1232.45 | I62: 41501 | J62: 55061848.25 | K62: 2020-04-08 | L62: 3832 | M62: INE150B01021
A63: ALLCARGO | B63: EQ | C63: 63.05 | D63: 65.85 | E63: 63 | F63: 65.7 | G63: 65.85 | H63: 59.9 | I63: 300794 | J63: 19569467.05 | K63: 2020-04-08 | L63: 3098 | M63: INE418H01029
A64: ALLSEC | B64: EQ | C64: 131.7 | D64: 131.9 | E64: 129.35 | F64: 131.9 | G64: 131.9 | H64: 125.65 | I64: 1335 | J64: 175836.2 | K64: 2020-04-08 | L64: 37 | M64: INE835G01018
A65: ALOKINDS | B65: EQ | C65: 4.7 | D65: 4.7 | E65: 4.7 | F65: 4.7 | G65: 4.7 | H65: 4.5 | I65: 1698707 | J65: 7983922.9 | K65: 2020-04-08 | L65: 397 | M65: INE270A01029
A66: ALPA | B66: EQ | C66: 18.55 | D66: 20.15 | E66: 17.8 | F66: 20.15 | G66: 20.15 | H66: 16.8 | I66: 131233 | J66: 2593665.9 | K66: 2020-04-08 | L66: 858 | M66: INE385I01010
A67: ALPHAGEO | B67: EQ | C67: 126 | D67: 137.5 | E67: 126 | F67: 134.45 | G67: 133.3 | H67: 129.7 | I67: 22258 | J67: 2986986.5 | K67: 2020-04-08 | L67: 783 | M67: INE137C01018
A68: ALPSINDUS | B68: EQ | C68: 0.65 | D68: 0.75 | E68: 0.65 | F68: 0.75 | G68: 0.7 | H68: 0.7 | I68: 25369 | J68: 18108.8 | K68: 2020-04-08 | L68: 33 | M68: INE093B01015
A69: AMARAJABAT | B69: EQ | C69: 501.1 | D69: 513.65 | E69: 488.45 | F69: 502.05 | G69: 504.9 | H69: 501.1 | I69: 755312 | J69: 378881689.9 | K69: 2020-04-08 | L69: 18162 | M69: INE885A01032
A70: AMBER | B70: EQ | C70: 1189.9 | D70: 1199 | E70: 1072 | F70: 1108.05 | G70: 1109.25 | H70: 1189.9 | I70: 93512 | J70: 105805912.2 | K70: 2020-04-08 | L70: 14252 | M70: INE371P01015
A71: AMBIKCO | B71: EQ | C71: 539.25 | D71: 559 | E71: 531.05 | F71: 545.2 | G71: 536.4 | H71: 537.25 | I71: 3988 | J71: 2168349.4 | K71: 2020-04-08 | L71: 406 | M71: INE540G01014
A72: AMBUJACEM | B72: EQ | C72: 158.5 | D72: 159.5 | E72: 148.2 | F72: 149.7 | G72: 149.55 | H72: 159 | I72: 10421438 | J72: 1597618498 | K72: 2020-04-08 | L72: 84074 | M72: INE079A01024
A73: AMDIND | B73: EQ | C73: 9.9 | D73: 10.5 | E73: 9.5 | F73: 9.8 | G73: 9.55 | H73: 10 | I73: 17757 | J73: 177659.15 | K73: 2020-04-08 | L73: 707 | M73: INE005I01014
A74: AMJLAND | B74: EQ | C74: 14.3 | D74: 14.95 | E74: 13.7 | F74: 14 | G74: 14 | H74: 14.25 | I74: 12523 | J74: 176065.3 | K74: 2020-04-08 | L74: 106 | M74: INE606A01024
A75: AMRUTANJAN | B75: EQ | C75: 326 | D75: 352 | E75: 320.1 | F75: 345.45 | G75: 344.3 | H75: 324 | I75: 278725 | J75: 95586275.35 | K75: 2020-04-08 | L75: 9075 | M75: INE098F01031
A76: ANANTRAJ | B76: EQ | C76: 19.55 | D76: 20.15 | E76: 18.6 | F76: 18.75 | G76: 18.8 | H76: 19.55 | I76: 184694 | J76: 3509270.8 | K76: 2020-04-08 | L76: 1012 | M76: INE242C01024
A77: ANDHRACEMT | B77: EQ | C77: 1.8 | D77: 1.9 | E77: 1.7 | F77: 1.85 | G77: 1.9 | H77: 1.75 | I77: 105618 | J77: 196578.05 | K77: 2020-04-08 | L77: 227 | M77: INE666E01012
A78: ANDHRAPAP | B78: EQ | C78: 148.55 | D78: 148.55 | E78: 147 | F78: 148.55 | G78: 148.55 | H78: 141.5 | I78: 2622 | J78: 389210.05 | K78: 2020-04-08 | L78: 70 | M78: INE435A01028
A79: ANDHRSUGAR | B79: EQ | C79: 206.95 | D79: 212 | E79: 195 | F79: 206.05 | G79: 205.85 | H79: 203.55 | I79: 35494 | J79: 7286675.25 | K79: 2020-04-08 | L79: 1328 | M79: INE715B01013
A80: ANIKINDS | B80: EQ | C80: 7.25 | D80: 7.25 | E80: 6.65 | F80: 6.8 | G80: 6.8 | H80: 6.95 | I80: 4994 | J80: 34701.65 | K80: 2020-04-08 | L80: 35 | M80: INE087B01017
A81: ANKITMETAL | B81: EQ | C81: 0.4 | D81: 0.45 | E81: 0.35 | F81: 0.45 | G81: 0.45 | H81: 0.4 | I81: 64810 | J81: 27213.05 | K81: 2020-04-08 | L81: 29 | M81: INE106I01010
A82: ANSALAPI | B82: EQ | C82: 3.65 | D82: 3.8 | E82: 3.65 | F82: 3.8 | G82: 3.8 | H82: 3.65 | I82: 3974 | J82: 15023.75 | K82: 2020-04-08 | L82: 28 | M82: INE436A01026
A83: ANSALHSG | B83: EQ | C83: 3 | D83: 3 | E83: 2.8 | F83: 2.9 | G83: 2.9 | H83: 2.9 | I83: 31510 | J83: 91846.6 | K83: 2020-04-08 | L83: 64 | M83: INE880B01015
A84: ANUP | B84: EQ | C84: 304.75 | D84: 323.7 | E84: 303.1 | F84: 313.2 | G84: 313.05 | H84: 312.75 | I84: 11786 | J84: 3732090.6 | K84: 2020-04-08 | L84: 460 | M84: INE294Z01018
A85: APARINDS | B85: EQ | C85: 296.95 | D85: 300.35 | E85: 290.6 | F85: 295.85 | G85: 295.5 | H85: 296.05 | I85: 6051 | J85: 1806443.45 | K85: 2020-04-08 | L85: 427 | M85: INE372A01015
A86: APCL | B86: EQ | C86: 102.4 | D86: 102.4 | E86: 95.2 | F86: 97.35 | G86: 97 | H86: 98.5 | I86: 3739 | J86: 362867.6 | K86: 2020-04-08 | L86: 79 | M86: INE071F01012
A87: APCOTEXIND | B87: EQ | C87: 87.55 | D87: 94.85 | E87: 86 | F87: 87.5 | G87: 86.1 | H87: 87.45 | I87: 13115 | J87: 1175575.25 | K87: 2020-04-08 | L87: 323 | M87: INE116A01032
A88: APEX | B88: EQ | C88: 190 | D88: 201.65 | E88: 185.1 | F88: 201.65 | G88: 201.65 | H88: 183.35 | I88: 141806 | J88: 27768799.35 | K88: 2020-04-08 | L88: 3293 | M88: INE346W01013
A89: APLAPOLLO | B89: EQ | C89: 1245 | D89: 1274 | E89: 1220 | F89: 1259.5 | G89: 1258 | H89: 1231.75 | I89: 21152 | J89: 26442272.1 | K89: 2020-04-08 | L89: 3032 | M89: INE702C01019
A90: APLLTD | B90: EQ | C90: 630 | D90: 702.65 | E90: 615.5 | F90: 640.85 | G90: 626 | H90: 610.2 | I90: 540272 | J90: 353935242.1 | K90: 2020-04-08 | L90: 30323 | M90: INE901L01018
A91: APOLLO | B91: EQ | C91: 45.5 | D91: 56 | E91: 45.25 | F91: 54.3 | G91: 53.55 | H91: 46.7 | I91: 68951 | J91: 3631629.4 | K91: 2020-04-08 | L91: 1694 | M91: INE713T01010
A92: APOLLOHOSP | B92: EQ | C92: 1225.9 | D92: 1338.4 | E92: 1211 | F92: 1263.95 | G92: 1261 | H92: 1225.95 | I92: 2070270 | J92: 2654141027 | K92: 2020-04-08 | L92: 156926 | M92: INE437A01024
A93: APOLLOPIPE | B93: EQ | C93: 279.5 | D93: 304 | E93: 262.95 | F93: 281.3 | G93: 281 | H93: 280.1 | I93: 12940 | J93: 3607793.25 | K93: 2020-04-08 | L93: 543 | M93: INE126J01016
A94: APOLLOTYRE | B94: EQ | C94: 83.5 | D94: 87.15 | E94: 82 | F94: 83.4 | G94: 83.15 | H94: 83.5 | I94: 2950752 | J94: 248872037.1 | K94: 2020-04-08 | L94: 19408 | M94: INE438A01022
A95: APOLSINHOT | B95: EQ | C95: 460.35 | D95: 460.4 | E95: 421.1 | F95: 439.8 | G95: 436 | H95: 438.6 | I95: 694 | J95: 306874.65 | K95: 2020-04-08 | L95: 84 | M95: INE451F01024
A96: APTECHT | B96: EQ | C96: 85.3 | D96: 87.7 | E96: 83.55 | F96: 84.6 | G96: 84.3 | H96: 85.3 | I96: 106721 | J96: 9133416.7 | K96: 2020-04-08 | L96: 2385 | M96: INE266F01018
A97: ARCHIDPLY | B97: EQ | C97: 16.55 | D97: 17 | E97: 16.45 | F97: 16.85 | G97: 16.95 | H97: 16.75 | I97: 4083 | J97: 68300.2 | K97: 2020-04-08 | L97: 63 | M97: INE877I01016
A98: ARCHIES | B98: EQ | C98: 9.4 | D98: 9.5 | E98: 9 | F98: 9.05 | G98: 9.15 | H98: 9.45 | I98: 24343 | J98: 224667.6 | K98: 2020-04-08 | L98: 150 | M98: INE731A01020
A99: ARCOTECH | B99: EQ | C99: 0.9 | D99: 0.95 | E99: 0.85 | F99: 0.9 | G99: 0.9 | H99: 0.9 | I99: 51482 | J99: 47500.05 | K99: 2020-04-08 | L99: 77 | M99: INE574I01035
A100: ARENTERP | B100: EQ | C100: 12.65 | D100: 12.65 | E100: 12.05 | F100: 12.05 | G100: 12.05 | H100: 12.65 | I100: 63 | J100: 765.15 | K100: 2020-04-08 | L100: 4 | M100: INE610C01014
A101: ARIES | B101: EQ | C101: 44.4 | D101: 47.6 | E101: 42.65 | F101: 43.6 | G101: 44 | H101: 44.4 | I101: 50875 | J101: 2250478.25 | K101: 2020-04-08 | L101: 1080 | M101: INE298I01015
A102: ARIHANT | B102: EQ | C102: 12.05 | D102: 12.55 | E102: 11.6 | F102: 12.15 | G102: 12.5 | H102: 12.05 | I102: 964 | J102: 11418.15 | K102: 2020-04-08 | L102: 27 | M102: INE413D01011
A103: ARIHANTSUP | B103: EQ | C103: 21.4 | D103: 21.45 | E103: 19.45 | F103: 19.5 | G103: 21 | H103: 20.45 | I103: 4362 | J103: 85414.05 | K103: 2020-04-08 | L103: 80 | M103: INE643K01018
A104: ARMANFIN | B104: EQ | C104: 340 | D104: 373.2 | E104: 337.7 | F104: 373.05 | G104: 373.2 | H104: 355.45 | I104: 50867 | J104: 18465582.65 | K104: 2020-04-08 | L104: 911 | M104: INE109C01017
A105: AROGRANITE | B105: EQ | C105: 21.95 | D105: 24.5 | E105: 20.85 | F105: 24.2 | G105: 24.5 | H105: 22.35 | I105: 26052 | J105: 602565.3 | K105: 2020-04-08 | L105: 183 | M105: INE210C01013
A106: ARROWGREEN | B106: BE | C106: 33.55 | D106: 35 | E106: 33.45 | F106: 33.45 | G106: 33.45 | H106: 33.85 | I106: 5735 | J106: 195198.5 | K106: 2020-04-08 | L106: 32 | M106: INE570D01018
A107: ARSHIYA | B107: EQ | C107: 7.1 | D107: 7.6 | E107: 7.1 | F107: 7.6 | G107: 7.6 | H107: 7.25 | I107: 23178 | J107: 175819.45 | K107: 2020-04-08 | L107: 63 | M107: INE968D01022
A108: ARSSINFRA | B108: EQ | C108: 11.25 | D108: 12.3 | E108: 10.9 | F108: 11.8 | G108: 11.85 | H108: 11.15 | I108: 16388 | J108: 189874.85 | K108: 2020-04-08 | L108: 107 | M108: INE267I01010
A109: ARTEMISMED | B109: EQ | C109: 140 | D109: 147 | E109: 136.3 | F109: 138 | G109: 137 | H109: 139.15 | I109: 1729 | J109: 245138.4 | K109: 2020-04-08 | L109: 31 | M109: INE025R01013
A110: ARVIND | B110: EQ | C110: 23.5 | D110: 24.4 | E110: 22.45 | F110: 23.75 | G110: 23.75 | H110: 22.2 | I110: 2137547 | J110: 50521243.45 | K110: 2020-04-08 | L110: 7057 | M110: INE034A01011
A111: ARVINDFASN | B111: EQ | C111: 139.8 | D111: 141.9 | E111: 132.2 | F111: 133.8 | G111: 134.75 | H111: 139.85 | I111: 46445 | J111: 6387304.5 | K111: 2020-04-08 | L111: 1243 | M111: INE955V01021
A112: ARVSMART | B112: EQ | C112: 64.05 | D112: 67 | E112: 64 | F112: 65.4 | G112: 65.5 | H112: 65 | I112: 10000 | J112: 656036.65 | K112: 2020-04-08 | L112: 320 | M112: INE034S01021
A113: ASAHIINDIA | B113: EQ | C113: 152 | D113: 158 | E113: 147.05 | F113: 155.5 | G113: 152.35 | H113: 153.2 | I113: 5605 | J113: 858978.65 | K113: 2020-04-08 | L113: 218 | M113: INE439A01020
A114: ASAHISONG | B114: EQ | C114: 80.8 | D114: 88.95 | E114: 80.05 | F114: 85.25 | G114: 86 | H114: 80.9 | I114: 8055 | J114: 692533.2 | K114: 2020-04-08 | L114: 314 | M114: INE228I01012
A115: ASAL | B115: EQ | C115: 14.8 | D115: 14.9 | E115: 14.5 | F115: 14.5 | G115: 14.5 | H115: 14.25 | I115: 8037 | J115: 118819.3 | K115: 2020-04-08 | L115: 36 | M115: INE900C01027
A116: ASALCBR | B116: EQ | C116: 164.9 | D116: 175 | E116: 158 | F116: 165.7 | G116: 165 | H116: 162.9 | I116: 31033 | J116: 5116102.05 | K116: 2020-04-08 | L116: 970 | M116: INE073G01016
A117: ASHAPURMIN | B117: EQ | C117: 22.1 | D117: 22.1 | E117: 22.05 | F117: 22.1 | G117: 22.1 | H117: 21.05 | I117: 8770 | J117: 193792 | K117: 2020-04-08 | L117: 43 | M117: INE348A01023
A118: ASHIANA | B118: EQ | C118: 52.9 | D118: 52.9 | E118: 49.1 | F118: 49.95 | G118: 50 | H118: 50 | I118: 69042 | J118: 3480534.3 | K118: 2020-04-08 | L118: 621 | M118: INE365D01021
A119: ASHIMASYN | B119: EQ | C119: 3.9 | D119: 3.9 | E119: 3.9 | F119: 3.9 | G119: 3.9 | H119: 3.55 | I119: 28914 | J119: 112764.6 | K119: 2020-04-08 | L119: 46 | M119: INE440A01010
A120: ASHOKA | B120: EQ | C120: 38.35 | D120: 42.7 | E120: 37.8 | F120: 42.7 | G120: 42.7 | H120: 38.85 | I120: 1577514 | J120: 65134101.3 | K120: 2020-04-08 | L120: 8475 | M120: INE442H01029
A121: ASHOKLEY | B121: EQ | C121: 39.85 | D121: 47.8 | E121: 38.75 | F121: 43.85 | G121: 43.6 | H121: 39.85 | I121: 76817768 | J121: 3355417806 | K121: 2020-04-08 | L121: 169889 | M121: INE208A01029
A122: ASIANHOTNR | B122: EQ | C122: 70 | D122: 71.8 | E122: 66 | F122: 71.55 | G122: 71.5 | H122: 65.4 | I122: 4982 | J122: 349215.55 | K122: 2020-04-08 | L122: 198 | M122: INE363A01022
A123: ASIANPAINT | B123: EQ | C123: 1623.8 | D123: 1687.8 | E123: 1600 | F123: 1608.95 | G123: 1608 | H123: 1623.8 | I123: 2382216 | J123: 3911658954 | K123: 2020-04-08 | L123: 101146 | M123: INE021A01026
A124: ASIANTILES | B124: EQ | C124: 156 | D124: 162.9 | E124: 155 | F124: 157.6 | G124: 156.5 | H124: 157.65 | I124: 19917 | J124: 3151924.4 | K124: 2020-04-08 | L124: 431 | M124: INE022I01019
A125: ASPINWALL | B125: EQ | C125: 93 | D125: 98.7 | E125: 83.55 | F125: 93 | G125: 93 | H125: 90 | I125: 413 | J125: 38837.15 | K125: 2020-04-08 | L125: 20 | M125: INE991I01015
A126: ASTEC | B126: EQ | C126: 450.65 | D126: 465.05 | E126: 440 | F126: 460.05 | G126: 460.3 | H126: 443.9 | I126: 5283 | J126: 2392645.5 | K126: 2020-04-08 | L126: 494 | M126: INE563J01010
A127: ASTERDM | B127: EQ | C127: 96 | D127: 103.5 | E127: 93.8 | F127: 99.25 | G127: 99 | H127: 94.55 | I127: 996205 | J127: 98978623.7 | K127: 2020-04-08 | L127: 4570 | M127: INE914M01019
A128: ASTRAL | B128: EQ | C128: 962 | D128: 986 | E128: 952 | F128: 955.45 | G128: 954 | H128: 973.85 | I128: 59212 | J128: 57381672.65 | K128: 2020-04-08 | L128: 7623 | M128: INE006I01046
A129: ASTRAMICRO | B129: EQ | C129: 56.9 | D129: 62.55 | E129: 55.85 | F129: 61.7 | G129: 62.55 | H129: 56.9 | I129: 253097 | J129: 15146656.55 | K129: 2020-04-08 | L129: 1961 | M129: INE386C01029
A130: ASTRAZEN | B130: EQ | C130: 2700 | D130: 2830 | E130: 2544 | F130: 2561.6 | G130: 2549 | H130: 2693.65 | I130: 38510 | J130: 104113109 | K130: 2020-04-08 | L130: 6647 | M130: INE203A01020
A131: ASTRON | B131: EQ | C131: 26.15 | D131: 29.9 | E131: 25.3 | F131: 27.5 | G131: 27.8 | H131: 27.65 | I131: 61618 | J131: 1693449.45 | K131: 2020-04-08 | L131: 1743 | M131: INE646X01014
A132: ATFL | B132: EQ | C132: 479.65 | D132: 499 | E132: 475 | F132: 481.55 | G132: 475 | H132: 479.65 | I132: 6104 | J132: 2975754.9 | K132: 2020-04-08 | L132: 411 | M132: INE209A01019
A133: ATLANTA | B133: EQ | C133: 3 | D133: 3.15 | E133: 3 | F133: 3.15 | G133: 3.15 | H133: 3 | I133: 8624 | J133: 26936.35 | K133: 2020-04-08 | L133: 28 | M133: INE285H01022
A134: ATLASCYCLE | B134: BE | C134: 30 | D134: 31.5 | E134: 29.5 | F134: 30.7 | G134: 30.7 | H134: 30 | I134: 2000 | J134: 60118.65 | K134: 2020-04-08 | L134: 42 | M134: INE446A01025
A135: ATNINTER | B135: BE | C135: 0.1 | D135: 0.1 | E135: 0.1 | F135: 0.1 | G135: 0.1 | H135: 0.1 | I135: 12716 | J135: 1271.6 | K135: 2020-04-08 | L135: 5 | M135: INE803A01027
A136: ATUL | B136: EQ | C136: 3930 | D136: 4005 | E136: 3908.35 | F136: 3951.85 | G136: 3954.95 | H136: 3927.1 | I136: 76768 | J136: 304824820.4 | K136: 2020-04-08 | L136: 11635 | M136: INE100A01010
A137: ATULAUTO | B137: EQ | C137: 151.35 | D137: 154.05 | E137: 146.8 | F137: 153.45 | G137: 153.95 | H137: 146.75 | I137: 13699 | J137: 2093863.3 | K137: 2020-04-08 | L137: 810 | M137: INE951D01028
A138: AUBANK | B138: EQ | C138: 461.2 | D138: 490 | E138: 457 | F138: 480.3 | G138: 473 | H138: 478.4 | I138: 1791057 | J138: 837589012.6 | K138: 2020-04-08 | L138: 59410 | M138: INE949L01017
A139: AURIONPRO | B139: EQ | C139: 41.75 | D139: 43.7 | E139: 40 | F139: 42.9 | G139: 42.9 | H139: 40.95 | I139: 8828 | J139: 376649.05 | K139: 2020-04-08 | L139: 213 | M139: INE132H01018
A140: AUROPHARMA | B140: EQ | C140: 432.5 | D140: 476.3 | E140: 426.3 | F140: 438.15 | G140: 438.9 | H140: 445.7 | I140: 13186213 | J140: 5925576015 | K140: 2020-04-08 | L140: 205238 | M140: INE406A01037
A141: AUSOMENT | B141: EQ | C141: 26.1 | D141: 26.1 | E141: 26.1 | F141: 26.1 | G141: 26.1 | H141: 25 | I141: 100 | J141: 2610 | K141: 2020-04-08 | L141: 1 | M141: INE218C01016
A142: AUTOAXLES | B142: EQ | C142: 413 | D142: 423.5 | E142: 398.05 | F142: 413.45 | G142: 416 | H142: 399.3 | I142: 5448 | J142: 2244823.45 | K142: 2020-04-08 | L142: 638 | M142: INE449A01011
A143: AUTOIND | B143: EQ | C143: 11.3 | D143: 11.35 | E143: 11.1 | F143: 11.35 | G143: 11.35 | H143: 10.85 | I143: 9358 | J143: 105383.05 | K143: 2020-04-08 | L143: 68 | M143: INE718H01014
A144: AUTOLITIND | B144: EQ | C144: 13.2 | D144: 14.4 | E144: 13.2 | F144: 13.8 | G144: 13.9 | H144: 13.75 | I144: 4699 | J144: 65525.8 | K144: 2020-04-08 | L144: 68 | M144: INE448A01013
A145: AVADHSUGAR | B145: EQ | C145: 143.55 | D145: 143.55 | E145: 143.55 | F145: 143.55 | G145: 143.55 | H145: 136.75 | I145: 13174 | J145: 1891127.7 | K145: 2020-04-08 | L145: 157 | M145: INE349W01017
A146: AVANTIFEED | B146: EQ | C146: 311 | D146: 341.55 | E146: 310.5 | F146: 341.35 | G146: 341.55 | H146: 310.5 | I146: 748404 | J146: 246839085.1 | K146: 2020-04-08 | L146: 23272 | M146: INE871C01038
A147: AVTNPL | B147: EQ | C147: 25.45 | D147: 27.8 | E147: 24.25 | F147: 27.25 | G147: 27 | H147: 25.05 | I147: 213540 | J147: 5643644.4 | K147: 2020-04-08 | L147: 1601 | M147: INE488D01021
A148: AXISBANK | B148: EQ | C148: 383.75 | D148: 427.7 | E148: 373.5 | F148: 391.35 | G148: 391.4 | H148: 388.85 | I148: 64930772 | J148: 2.575974593e+10 | K148: 2020-04-08 | L148: 769506 | M148: INE238A01034
A149: AXISCADES | B149: EQ | C149: 30.9 | D149: 31.5 | E149: 28.65 | F149: 31.4 | G149: 31.5 | H149: 30 | I149: 39670 | J149: 1232336.75 | K149: 2020-04-08 | L149: 621 | M149: INE555B01013
A150: AXISGOLD | B150: EQ | C150: 3969.9 | D150: 3989 | E150: 3925 | F150: 3973.3 | G150: 3983 | H150: 3919.55 | I150: 701 | J150: 2769851.6 | K150: 2020-04-08 | L150: 206 | M150: INF846K01347
A151: AXISNIFTY | B151: EQ | C151: 1000.01 | D151: 1000.01 | E151: 1000.01 | F151: 1000.01 | G151: 1000.01 | H151: 1007 | I151: 2 | J151: 2000.02 | K151: 2020-04-08 | L151: 1 | M151: INF846K01ZL0
A152: AYMSYNTEX | B152: EQ | C152: 15.5 | D152: 16.8 | E152: 15.5 | F152: 16.5 | G152: 16.5 | H152: 16.1 | I152: 2637 | J152: 43548.55 | K152: 2020-04-08 | L152: 26 | M152: INE193B01039
A153: BAFNAPH | B153: EQ | C153: 16.05 | D153: 16.05 | E153: 16.05 | F153: 16.05 | G153: 16.05 | H153: 15.3 | I153: 272 | J153: 4365.6 | K153: 2020-04-08 | L153: 8 | M153: INE878I01022
A154: BAGFILMS | B154: BE | C154: 1.75 | D154: 1.8 | E154: 1.75 | F154: 1.8 | G154: 1.8 | H154: 1.75 | I154: 3861 | J154: 6912.3 | K154: 2020-04-08 | L154: 20 | M154: INE116D01028
A155: BAJAJ-AUTO | B155: EQ | C155: 2180 | D155: 2383.45 | E155: 2168.55 | F155: 2241.7 | G155: 2260 | H155: 2280.05 | I155: 840875 | J155: 1933266167 | K155: 2020-04-08 | L155: 59866 | M155: INE917I01010
A156: BAJAJCON | B156: EQ | C156: 136 | D156: 148.65 | E156: 135.1 | F156: 137.95 | G156: 138 | H156: 138.15 | I156: 1031633 | J156: 145711259.1 | K156: 2020-04-08 | L156: 26102 | M156: INE933K01021
A157: BAJAJELEC | B157: EQ | C157: 277.3 | D157: 294.5 | E157: 277.3 | F157: 287.8 | G157: 289 | H157: 277.3 | I157: 58251 | J157: 16797537.55 | K157: 2020-04-08 | L157: 3821 | M157: INE193E01025
A158: BAJAJFINSV | B158: EQ | C158: 4575 | D158: 4950 | E158: 4537.8 | F158: 4608.5 | G158: 4604 | H158: 4724.9 | I158: 1113057 | J158: 5259493342 | K158: 2020-04-08 | L158: 158158 | M158: INE918I01018
A159: BAJAJHIND | B159: EQ | C159: 3.05 | D159: 3.05 | E159: 3.05 | F159: 3.05 | G159: 3.05 | H159: 2.95 | I159: 80900 | J159: 246745 | K159: 2020-04-08 | L159: 110 | M159: INE306A01021
A160: BAJAJHLDNG | B160: EQ | C160: 2027.95 | D160: 2073.85 | E160: 1925 | F160: 2024.75 | G160: 2025 | H160: 1978.9 | I160: 25453 | J160: 51363834.45 | K160: 2020-04-08 | L160: 6198 | M160: INE118A01012
A161: BAJFINANCE | B161: EQ | C161: 2184 | D161: 2374 | E161: 2144.15 | F161: 2332.9 | G161: 2329 | H161: 2253.35 | I161: 9109346 | J161: 2.088826331e+10 | K161: 2020-04-08 | L161: 516967 | M161: INE296A01024
A162: BALAJITELE | B162: EQ | C162: 43 | D162: 45 | E162: 40.8 | F162: 41.9 | G162: 42.15 | H162: 43.75 | I162: 194912 | J162: 8414452.4 | K162: 2020-04-08 | L162: 1677 | M162: INE794B01026
A163: BALAMINES | B163: EQ | C163: 277 | D163: 296 | E163: 260.4 | F163: 283.65 | G163: 284.45 | H163: 271.2 | I163: 70594 | J163: 20058887.5 | K163: 2020-04-08 | L163: 2337 | M163: INE050E01027
A164: BALAXI | B164: BE | C164: 82.7 | D164: 82.7 | E164: 75.05 | F164: 79.9 | G164: 79.9 | H164: 79 | I164: 1047 | J164: 78761.9 | K164: 2020-04-08 | L164: 24 | M164: INE618N01014
A165: BALKRISHNA | B165: EQ | C165: 8.6 | D165: 8.8 | E165: 8.35 | F165: 8.8 | G165: 8.8 | H165: 8.4 | I165: 7860 | J165: 67624.35 | K165: 2020-04-08 | L165: 49 | M165: INE875R01011
A166: BALKRISIND | B166: EQ | C166: 822 | D166: 862 | E166: 815 | F166: 821.35 | G166: 818.3 | H166: 823.55 | I166: 444079 | J166: 371870250.3 | K166: 2020-04-08 | L166: 24462 | M166: INE787D01026
A167: BALLARPUR | B167: EQ | C167: 0.4 | D167: 0.4 | E167: 0.3 | F167: 0.35 | G167: 0.35 | H167: 0.35 | I167: 9769871 | J167: 3419941.15 | K167: 2020-04-08 | L167: 514 | M167: INE294A01037
A168: BALMLAWRIE | B168: EQ | C168: 84 | D168: 87.9 | E168: 81 | F168: 84.75 | G168: 85.65 | H168: 85.5 | I168: 202053 | J168: 17357055.25 | K168: 2020-04-08 | L168: 3105 | M168: INE164A01016
A169: BALPHARMA | B169: EQ | C169: 38.9 | D169: 41.7 | E169: 38.9 | F169: 41.7 | G169: 41.7 | H169: 37.95 | I169: 40933 | J169: 1688199.5 | K169: 2020-04-08 | L169: 518 | M169: INE083D01012
A170: BALRAMCHIN | B170: EQ | C170: 123.85 | D170: 126.4 | E170: 123 | F170: 126.4 | G170: 126.4 | H170: 120.4 | I170: 642515 | J170: 80884980.2 | K170: 2020-04-08 | L170: 7125 | M170: INE119A01028
A171: BANARBEADS | B171: EQ | C171: 30.25 | D171: 32.5 | E171: 29.6 | F171: 29.75 | G171: 29.75 | H171: 31.5 | I171: 160 | J171: 4873.85 | K171: 2020-04-08 | L171: 26 | M171: INE655B01011
A172: BANARISUG | B172: EQ | C172: 900 | D172: 925 | E172: 880 | F172: 886.1 | G172: 880 | H172: 893.1 | I172: 410 | J172: 368979.1 | K172: 2020-04-08 | L172: 94 | M172: INE459A01010
A173: BANCOINDIA | B173: EQ | C173: 65.45 | D173: 67.5 | E173: 64.1 | F173: 65.95 | G173: 66 | H173: 65.45 | I173: 40062 | J173: 2654130.6 | K173: 2020-04-08 | L173: 1013 | M173: INE213C01025
A174: BANDHANBNK | B174: EQ | C174: 167.95 | D174: 209.05 | E174: 167.5 | F174: 193.75 | G174: 195.25 | H174: 167.25 | I174: 30692919 | J174: 5833285762 | K174: 2020-04-08 | L174: 332020 | M174: INE545U01014
A175: BANG | B175: EQ | C175: 12.05 | D175: 13.1 | E175: 11.9 | F175: 13.1 | G175: 13.1 | H175: 12.5 | I175: 1590 | J175: 20489 | K175: 2020-04-08 | L175: 31 | M175: INE863I01016
A176: BANKBARODA | B176: EQ | C176: 48 | D176: 51.5 | E176: 47.3 | F176: 48.35 | G176: 48.45 | H176: 48.15 | I176: 27159204 | J176: 1340103716 | K176: 2020-04-08 | L176: 77070 | M176: INE028A01039
A177: BANKBEES | B177: EQ | C177: 190 | D177: 205.4 | E177: 186.06 | F177: 191.28 | G177: 191.4 | H177: 192.12 | I177: 676832 | J177: 131368353.2 | K177: 2020-04-08 | L177: 10023 | M177: INF204KB15I9
A178: BANKINDIA | B178: EQ | C178: 32.7 | D178: 34.75 | E178: 32.5 | F178: 33.35 | G178: 33.25 | H178: 32.95 | I178: 1236627 | J178: 41574499.75 | K178: 2020-04-08 | L178: 6257 | M178: INE084A01016
A179: BANSWRAS | B179: EQ | C179: 77.4 | D179: 77.4 | E179: 70.2 | F179: 71.15 | G179: 70.2 | H179: 73.75 | I179: 22922 | J179: 1667255.55 | K179: 2020-04-08 | L179: 137 | M179: INE629D01012
A180: BASF | B180: EQ | C180: 1154 | D180: 1154 | E180: 1105 | F180: 1119.95 | G180: 1120.5 | H180: 1138.25 | I180: 26139 | J180: 29425244.35 | K180: 2020-04-08 | L180: 2640 | M180: INE373A01013
A181: BASML | B181: EQ | C181: 74.05 | D181: 84 | E181: 74.05 | F181: 80 | G181: 80 | H181: 78.7 | I181: 1648 | J181: 135366.45 | K181: 2020-04-08 | L181: 154 | M181: INE186H01014
A182: BATAINDIA | B182: EQ | C182: 1246.5 | D182: 1339 | E182: 1228 | F182: 1240.05 | G182: 1238.95 | H182: 1246.4 | I182: 1346088 | J182: 1726485633 | K182: 2020-04-08 | L182: 66274 | M182: INE176A01028
A183: BAYERCROP | B183: EQ | C183: 3500 | D183: 3946.6 | E183: 3499.3 | F183: 3818.15 | G183: 3772.15 | H183: 3510 | I183: 32833 | J183: 125437264 | K183: 2020-04-08 | L183: 6737 | M183: INE462A01022
A184: BBL | B184: EQ | C184: 590 | D184: 621.25 | E184: 590 | F184: 613.05 | G184: 621.25 | H184: 589.55 | I184: 9335 | J184: 5684085.45 | K184: 2020-04-08 | L184: 804 | M184: INE464A01028
A185: BBTC | B185: EQ | C185: 810 | D185: 854.3 | E185: 774 | F185: 784.2 | G185: 787.95 | H185: 788.4 | I185: 76612 | J185: 62014517.65 | K185: 2020-04-08 | L185: 5281 | M185: INE050A01025
A186: BCG | B186: EQ | C186: 3.6 | D186: 3.65 | E186: 3.55 | F186: 3.65 | G186: 3.65 | H186: 3.5 | I186: 305718 | J186: 1113234.95 | K186: 2020-04-08 | L186: 149 | M186: INE425B01027
A187: BCP | B187: EQ | C187: 10.75 | D187: 10.75 | E187: 10.5 | F187: 10.75 | G187: 10.75 | H187: 10.25 | I187: 8192 | J187: 87934.6 | K187: 2020-04-08 | L187: 28 | M187: INE905P01028
A188: BDL | B188: EQ | C188: 191 | D188: 229 | E188: 188.2 | F188: 218.2 | G188: 216.4 | H188: 191.4 | I188: 448405 | J188: 97968192.25 | K188: 2020-04-08 | L188: 13672 | M188: INE171Z01018
A189: BEARDSELL | B189: EQ | C189: 6.7 | D189: 7.3 | E189: 6.7 | F189: 7.3 | G189: 7.3 | H189: 7.05 | I189: 1250 | J189: 8417 | K189: 2020-04-08 | L189: 4 | M189: INE520H01022
A190: BEDMUTHA | B190: EQ | C190: 12.8 | D190: 13.05 | E190: 12.45 | F190: 12.45 | G190: 12.45 | H190: 13.1 | I190: 19584 | J190: 245429.15 | K190: 2020-04-08 | L190: 32 | M190: INE844K01012
A191: BEL | B191: EQ | C191: 69 | D191: 71.3 | E191: 65.1 | F191: 66.4 | G191: 66.5 | H191: 69 | I191: 16699885 | J191: 1138705070 | K191: 2020-04-08 | L191: 69587 | M191: INE263A01024
A192: BEML | B192: EQ | C192: 492 | D192: 523.5 | E192: 492 | F192: 503.6 | G192: 503 | H192: 475.95 | I192: 890527 | J192: 458689246.6 | K192: 2020-04-08 | L192: 23670 | M192: INE258A01016
A193: BEPL | B193: EQ | C193: 31 | D193: 32.75 | E193: 30.3 | F193: 31.25 | G193: 31.6 | H193: 30.25 | I193: 333595 | J193: 10578641.1 | K193: 2020-04-08 | L193: 3321 | M193: INE922A01025
A194: BERGEPAINT | B194: EQ | C194: 479.9 | D194: 487.65 | E194: 460 | F194: 463.5 | G194: 462 | H194: 479.2 | I194: 1729062 | J194: 817908730.6 | K194: 2020-04-08 | L194: 32950 | M194: INE463A01038
A195: BFINVEST | B195: EQ | C195: 258 | D195: 268.8 | E195: 244.6 | F195: 246.3 | G195: 248.95 | H195: 257.45 | I195: 4938 | J195: 1236639.95 | K195: 2020-04-08 | L195: 244 | M195: INE878K01010
A196: BFUTILITIE | B196: EQ | C196: 158.35 | D196: 158.35 | E196: 151.05 | F196: 154.05 | G196: 153.7 | H196: 150.85 | I196: 138134 | J196: 21700813.75 | K196: 2020-04-08 | L196: 1649 | M196: INE243D01012
A197: BGRENERGY | B197: EQ | C197: 22.1 | D197: 22.85 | E197: 20.95 | F197: 21.1 | G197: 21.15 | H197: 22.2 | I197: 172282 | J197: 3763089.75 | K197: 2020-04-08 | L197: 1108 | M197: INE661I01014
A198: BHAGERIA | B198: EQ | C198: 85 | D198: 91.05 | E198: 80.65 | F198: 81.6 | G198: 82.3 | H198: 84.2 | I198: 34795 | J198: 2944870.7 | K198: 2020-04-08 | L198: 925 | M198: INE354C01027
A199: BHAGYANGR | B199: EQ | C199: 14.05 | D199: 15.2 | E199: 14 | F199: 14.4 | G199: 14.4 | H199: 14.4 | I199: 1338 | J199: 19622.25 | K199: 2020-04-08 | L199: 50 | M199: INE458B01036
A200: BHAGYAPROP | B200: EQ | C200: 18 | D200: 20 | E200: 18 | F200: 20 | G200: 20 | H200: 19 | I200: 999 | J200: 19011 | K200: 2020-04-08 | L200: 5 | M200: INE363W01018
... 1470 more rows

Sheet Sheet1 (hidden)

Sheet Sheet3 (hidden)

Sheet Sheet4 (hidden)

Sheet Sheet5 (hidden)
